Workbook

Sheet Interfaz
C5: POBLACIÓN ASIGNADA SEGÚN CENSOS INEI - RENIEC - PN - CNV - 2022
C10: RED INTEGRADA DE SALUD HUAURA OYÓN
A22: Elaboración: Área de Estadística - RIS Huaura Oyón.
A23: NOTA: LA POBLACION ESTIMADA DE EDADES SIMPLES Y GRUPOS DE EDAD DE DISTRITOS, CORRESPONDEN A CIFRAS REFERENCIALES HASTA OBTENER LAS CIFRAS DE LAS PROYECCIONES DEL INEI
A26: OFICINA DE GESTION DE LA INFORMACIÓN - MINISTERIO DE SALUD
R27: Versión1.030

Sheet Poblacion
C1: 1 | D1: 2 | E1: 3 | F1: 4 | G1: 5 | H1: 6 | I1: 7 | J1: 8 | K1: 9 | L1: 10 | M1: 11 | N1: 12 | O1: 13 | P1: 14 | Q1: 15 | R1: 16 | S1: 17 | T1: 18 | U1: 19 | V1: 20 | W1: 21 | X1: 22 | Y1: 23 | Z1: 24 | AA1: 25 | AB1: 26 | AC1: 27 | AD1: 28 | AE1: 29 | AF1: 30 | AG1: 31 | AH1: 32 | AI1: 33 | AJ1: 34 | AK1: 35 | AL1: 36 | AM1: 37 | AN1: 38 | AO1: 39 | AP1: 40 | AQ1: 41 | AR1: 42 | AS1: 43 | AT1: 44 | AU1: 45 | AV1: 46 | AW1: 47 | AX1: 48 | AY1: 49 | AZ1: 50 | BA1: 51 | BB1: 52 | BC1: 53 | BD1: 54 | BE1: 55 | BF1: 56 | BG1: 57 | BH1: 58 | BI1: 59 | BJ1: 60 | BK1: 61 | BL1: 62 | BM1: 63 | BN1: 64 | BO1: 65 | BP1: 66 | BQ1: 67 | BR1: 68 | BS1: 69 | BT1: 70 | BU1: 71 | BV1: 72 | BW1: 73 | BX1: 74 | BY1: 75 | BZ1: 76 | CA1: 77 | CB1: 78 | CC1: 79 | CD1: 80 | CE1: 81 | CF1: 82 | CG1: 83 | CH1: 84 | CI1: 85 | CJ1: 86 | CK1: 87 | CL1: 88 | CM1: 89 | CN1: 90 | CO1: 91 | CP1: 92 | CQ1: 93 | CR1: 94 | CS1: 95 | CT1: 96 | CU1: 97 | CV1: 98 | CZ1: 77 | DA1: 78 | DB1: 79 | DC1: 80 | DD1: 81 | DE1: 82 | DF1: 83 | DG1: 84 | DH1: 85 | DI1: 86 | DJ1: 87 | DK1: 88 | DL1: 89 | DM1: 90 | DN1: 91 | DO1: 92 | DP1: 93 | DQ1: 94 | DR1: 95 | DS1: 96 | DT1: 97 | DU1: 98 | DV1: 99 | DW1: 106 | DX1: 107 | DY1: 108 | DZ1: 109 | EA1: 110 | EB1: 111
AE2: POBLACIÓN ESTIMADA POR GRUPOS DE EDAD, SEGÚN PROVINCIAS DISTRITOS Y ESTABLECIMIENTOS DE SALUD
AE3: RED INTEGRADA DE SALUD HUAURA OYON - AÑO 2022 | BW3: =ROUND(BY3,0) -> 0 | CP3: MAS GRUPOS DE EDAD
AE4: EDADES PUNTUALES Y GRUPOS DE EDAD
C5: N° | E5: DIRECCION DE SALUD | F5: TOTAL GENERAL | H5: TOTAL MASCULINO | I5: TOTAL FEMENINO | K5: EDAD | M5: EDAD | O5: EDAD | Q5: EDAD | S5: EDAD | U5: EDAD | W5: EDAD | Y5: EDAD | AA5: EDAD | AC5: EDAD | AE5: EDAD | AG5: EDAD | AI5: EDAD | AK5: EDAD | AM5: EDAD | AO5: EDAD | AQ5: EDAD | AS5: EDAD | AU5: EDAD | AW5: EDAD | AY5: EDAD | BA5: EDAD | BC5: EDAD | BE5: EDAD | BG5: EDAD | BI5: EDAD | BK5: EDAD | BM5: EDAD | BO5: EDAD | BQ5: EDAD | BS5: EDAD | BU5: EDAD | BW5: EDAD | BY5: EDADES ESPECIALES | CD5: NACIMIENTOS | CE5: POBLACION FEMENINA TOTAL | CF5: POBLACION FEMENINA | CI5: GESTANTES ESPERADAS | CK5: menor de 1 Año | CL5: Pre escolar (1-4) | CM5: Niño (0 - 11) | CN5: Escolar (05 - 17) | CO5: Adolescente (12 - 17) | CP5: Adulto Joven (18 - 29) | CQ5: Adulto (30-59) | CR5: Adu.Mayor (60 a MAS) | CT5: Escolar (05 - 09) | CU5: Adolescente (10 - 19) | CV5: Adulto (20-59)
A6: UBIGEO | E6: PROVINCIA | K6: 0 | M6: 1 | O6: 2 | Q6: 3 | S6: 4 | U6: 5 | W6: 6 | Y6: 7 | AA6: 8 | AC6: 9 | AE6: 10 | AG6: 11 | AI6: 12 | AK6: 13 | AM6: 14 | AO6: 15 | AQ6: 16 | AS6: 17 | AU6: 18 | AW6: 19 | AY6: 20 - 24 | BA6: 25 - 29 | BC6: 30 - 34 | BE6: 35 - 39 | BG6: 40 - 44 | BI6: 45 - 49 | BK6: 50 - 54 | BM6: 55 - 59 | BO6: 60 - 64 | BQ6: 65 - 69 | BS6: 70- 74 | BU6: 75 - 79 | BW6: 80 - + | BY6: 28 DIAS | BZ6: 0-5 MESES | CB6: 6-11 MESES
B7: Microredes | D7: RENAES | E7: DISTRITO | K7: M | L7: F | M7: M | N7: F | O7: M | P7: F | Q7: M | R7: F | S7: M | T7: F | U7: M | V7: F | W7: M | X7: F | Y7: M | Z7: F | AA7: M | AB7: F | AC7: M | AD7: F | AE7: M | AF7: F | AG7: M | AH7: F | AI7: M | AJ7: F | AK7: M | AL7: F | AM7: M | AN7: F | AO7: M | AP7: F | AQ7: M | AR7: F | AS7: M | AT7: F | AU7: M | AV7: F | AW7: M | AX7: F | AY7: M | AZ7: F | BA7: M | BB7: F | BC7: M | BD7: F | BE7: M | BF7: F | BG7: M | BH7: F | BI7: M | BJ7: F | BK7: M | BL7: F | BM7: M | BN7: F | BO7: M | BP7: F | BQ7: M | BR7: F | BS7: M | BT7: F | BU7: M | BV7: F | BW7: M | BX7: F | BZ7: M | CA7: F | CB7: M | CC7: F | CF7: 10 - 14 | CG7: 15 - 19 | CH7: 20 - 49
A8: 150000 | C8: 1 | E8: HUAURA - OYON | F8: 266778 | H8: 133563 | I8: 133215 | K8: 1838 | L8: 1807 | M8: 2004 | N8: 1921 | O8: 2121 | P8: 1982 | Q8: 2093 | R8: 2024 | S8: 1762 | T8: 1762 | U8: 1855 | V8: 1777 | W8: 2336 | X8: 2264 | Y8: 2408 | Z8: 2258 | AA8: 2353 | AB8: 2328 | AC8: 2296 | AD8: 2244 | AE8: 2293 | AF8: 2087 | AG8: 2284 | AH8: 2182 | AI8: 2440 | AJ8: 2262 | AK8: 2313 | AL8: 2256 | AM8: 2181 | AN8: 2076 | AO8: 2184 | AP8: 2188 | AQ8: 2143 | AR8: 2086 | AS8: 2058 | AT8: 2016 | AU8: 2098 | AV8: 1957 | AW8: 1961 | AX8: 1946 | AY8: 9967 | AZ8: 9655 | BA8: 11209 | BB8: 11410 | BC8: 10223 | BD8: 10482 | BE8: 9787 | BF8: 9875 | BG8: 8960 | BH8: 8832 | BI8: 8248 | BJ8: 8256 | BK8: 7250 | BL8: 7279 | BM8: 6275 | BN8: 6423 | BO8: 5280 | BP8: 5297 | BQ8: 4295 | BR8: 4420 | BS8: 3375 | BT8: 3427 | BU8: 2453 | BV8: 2622 | BW8: 3220 | BX8: 3814 | BY8: 230 | BZ8: 913 | CA8: 950 | CB8: 925 | CC8: 856 | CD8: 4437 | CE8: 0 | CF8: 10863 | CG8: 10193 | CH8: 58510 | CI8: 6423 | CK8: =SUM(K8:L8) -> 3645 | CL8: =SUM(M8:T8) -> 15669 | CM8: =SUM(K8:AH8) -> 50279 | CN8: =SUM(U8:AT8) -> 57168 | CO8: =SUM(AI8:AT8) -> 26203 | CP8: =SUM(AU8:BB8) -> 50203 | CQ8: =SUM(BC8:BN8) -> 101890 | CR8: =SUM(BO8:BX8) -> 38203 | CT8: =SUM(U8:AD8) -> 22119 | CU8: =SUM(AE8:AX8) -> 43011 | CV8: =SUM(AY8:BN8) -> 144131
A9: 150800 | C9: 2 | D9: 150800 | E9: PROVINCIA HUAURA | F9: 247048 | H9: 123709 | I9: 123339 | K9: 1722 | L9: 1685 | M9: 1882 | N9: 1799 | O9: 1983 | P9: 1861 | Q9: 1956 | R9: 1876 | S9: 1631 | T9: 1655 | U9: 1706 | V9: 1667 | W9: 2174 | X9: 2118 | Y9: 2247 | Z9: 2096 | AA9: 2200 | AB9: 2152 | AC9: 2116 | AD9: 2068 | AE9: 2101 | AF9: 1899 | AG9: 2092 | AH9: 1993 | AI9: 2240 | AJ9: 2041 | AK9: 2095 | AL9: 2041 | AM9: 2007 | AN9: 1889 | AO9: 1975 | AP9: 1973 | AQ9: 1944 | AR9: 1859 | AS9: 1869 | AT9: 1840 | AU9: 1908 | AV9: 1792 | AW9: 1806 | AX9: 1793 | AY9: 9213 | AZ9: 8931 | BA9: 10452 | BB9: 10645 | BC9: 9545 | BD9: 9769 | BE9: 9119 | BF9: 9188 | BG9: 8383 | BH9: 8303 | BI9: 7656 | BJ9: 7718 | BK9: 6726 | BL9: 6759 | BM9: 5818 | BN9: 5956 | BO9: 4860 | BP9: 4895 | BQ9: 3973 | BR9: 4095 | BS9: 3109 | BT9: 3165 | BU9: 2261 | BV9: 2392 | BW9: 2940 | BX9: 3426 | BY9: 208 | BZ9: 855 | CA9: 889 | CB9: 867 | CC9: 796 | CD9: 4147 | CE9: 0 | CF9: 9863 | CG9: 9257 | CH9: 54554 | CI9: 6010 | CK9: =SUM(K9:L9) -> 3407 | CL9: =SUM(M9:T9) -> 14643 | CM9: =SUM(K9:AH9) -> 46679 | CN9: =SUM(U9:AT9) -> 52402 | CO9: =SUM(AI9:AT9) -> 23773 | CP9: =SUM(AU9:BB9) -> 46540 | CQ9: =SUM(BC9:BN9) -> 94940 | CR9: =SUM(BO9:BX9) -> 35116 | CT9: 20544 | CU9: 39157 | CV9: 134181
A10: 150801 | C10: 3 | D10: 150802 | E10: DISTRITO HUACHO | F10: 69671 | H10: 34129 | I10: 35542 | K10: 367 | L10: 336 | M10: 402 | N10: 396 | O10: 498 | P10: 454 | Q10: 468 | R10: 446 | S10: 332 | T10: 431 | U10: 413 | V10: 401 | W10: 563 | X10: 568 | Y10: 590 | Z10: 530 | AA10: 587 | AB10: 608 | AC10: 568 | AD10: 583 | AE10: 557 | AF10: 517 | AG10: 558 | AH10: 508 | AI10: 542 | AJ10: 535 | AK10: 539 | AL10: 542 | AM10: 501 | AN10: 496 | AO10: 509 | AP10: 525 | AQ10: 510 | AR10: 498 | AS10: 495 | AT10: 489 | AU10: 536 | AV10: 465 | AW10: 478 | AX10: 463 | AY10: 2420 | AZ10: 2332 | BA10: 2649 | BB10: 2859 | BC10: 2484 | BD10: 2668 | BE10: 2496 | BF10: 2540 | BG10: 2383 | BH10: 2461 | BI10: 2233 | BJ10: 2350 | BK10: 2068 | BL10: 2163 | BM10: 1817 | BN10: 1981 | BO10: 1557 | BP10: 1708 | BQ10: 1319 | BR10: 1448 | BS10: 1003 | BT10: 1169 | BU10: 703 | BV10: 819 | BW10: 984 | BX10: 1253 | BY10: 32 | BZ10: 189 | CA10: 169 | CB10: 178 | CC10: 167 | CD10: 854 | CE10: 0 | CF10: 2598 | CG10: 2440 | CH10: 15210 | CI10: 1261 | CK10: 703 | CL10: 3427 | CM10: 11681 | CN10: 13732 | CO10: 6181 | CP10: 12202 | CQ10: 27644 | CR10: 11963 | CT10: 5411 | CU10: 10263 | CV10: 37904
B11: 00 | C11: 4 | D11: 7639 | E11: HOSPITAL HUACHO | F11: 50863 | H11: 24915 | I11: 25948 | K11: 268 | L11: 245 | M11: 293 | N11: 289 | O11: 364 | P11: 331 | Q11: 342 | R11: 326 | S11: 242 | T11: 315 | U11: 301 | V11: 293 | W11: 411 | X11: 415 | Y11: 431 | Z11: 387 | AA11: 429 | AB11: 444 | AC11: 415 | AD11: 426 | AE11: 407 | AF11: 377 | AG11: 407 | AH11: 371 | AI11: 396 | AJ11: 391 | AK11: 393 | AL11: 396 | AM11: 366 | AN11: 362 | AO11: 372 | AP11: 383 | AQ11: 372 | AR11: 364 | AS11: 361 | AT11: 357 | AU11: 391 | AV11: 339 | AW11: 349 | AX11: 338 | AY11: 1767 | AZ11: 1702 | BA11: 1934 | BB11: 2087 | BC11: 1813 | BD11: 1948 | BE11: 1822 | BF11: 1854 | BG11: 1740 | BH11: 1797 | BI11: 1630 | BJ11: 1716 | BK11: 1510 | BL11: 1579 | BM11: 1326 | BN11: 1446 | BO11: 1137 | BP11: 1247 | BQ11: 963 | BR11: 1057 | BS11: 732 | BT11: 853 | BU11: 513 | BV11: 598 | BW11: 718 | BX11: 915 | BY11: 24 | BZ11: 138 | CA11: 123 | CB11: 130 | CC11: 122 | CD11: 624 | CF11: 1897 | CG11: 1781 | CH11: 11104 | CI11: 921 | CK11: 513 | CL11: 2502 | CM11: 8529 | CN11: 10027 | CO11: 4513 | CP11: 8907 | CQ11: 20181 | CR11: 8733 | CT11: 3952 | CU11: 7492 | CV11: 27671
B12: 02 | C12: 5 | D12: 5679 | E12: C.S. MANZANARES | F12: 18808 | H12: 9214 | I12: 9594 | K12: 99 | L12: 91 | M12: 109 | N12: 107 | O12: 134 | P12: 123 | Q12: 126 | R12: 120 | S12: 90 | T12: 116 | U12: 112 | V12: 108 | W12: 152 | X12: 153 | Y12: 159 | Z12: 143 | AA12: 158 | AB12: 164 | AC12: 153 | AD12: 157 | AE12: 150 | AF12: 140 | AG12: 151 | AH12: 137 | AI12: 146 | AJ12: 144 | AK12: 146 | AL12: 146 | AM12: 135 | AN12: 134 | AO12: 137 | AP12: 142 | AQ12: 138 | AR12: 134 | AS12: 134 | AT12: 132 | AU12: 145 | AV12: 126 | AW12: 129 | AX12: 125 | AY12: 653 | AZ12: 630 | BA12: 715 | BB12: 772 | BC12: 671 | BD12: 720 | BE12: 674 | BF12: 686 | BG12: 643 | BH12: 664 | BI12: 603 | BJ12: 634 | BK12: 558 | BL12: 584 | BM12: 491 | BN12: 535 | BO12: 420 | BP12: 461 | BQ12: 356 | BR12: 391 | BS12: 271 | BT12: 316 | BU12: 190 | BV12: 221 | BW12: 266 | BX12: 338 | BY12: 8 | BZ12: 51 | CA12: 46 | CB12: 48 | CC12: 45 | CD12: 230 | CF12: 701 | CG12: 659 | CH12: 4106 | CI12: 340 | CK12: 190 | CL12: 925 | CM12: 3152 | CN12: 3705 | CO12: 1668 | CP12: 3295 | CQ12: 7463 | CR12: 3230 | CT12: 1459 | CU12: 2771 | CV12: 10233
A13: 150802 | C13: 6 | D13: 150802 | E13: DISTRITO AMBAR | F13: 2620 | H13: 1391 | I13: 1229 | K13: 26 | L13: 29 | M13: 19 | N13: 14 | O13: 26 | P13: 20 | Q13: 21 | R13: 19 | S13: 15 | T13: 15 | U13: 21 | V13: 20 | W13: 18 | X13: 13 | Y13: 22 | Z13: 12 | AA13: 26 | AB13: 17 | AC13: 23 | AD13: 16 | AE13: 17 | AF13: 15 | AG13: 21 | AH13: 20 | AI13: 30 | AJ13: 17 | AK13: 20 | AL13: 19 | AM13: 20 | AN13: 22 | AO13: 16 | AP13: 22 | AQ13: 19 | AR13: 11 | AS13: 18 | AT13: 20 | AU13: 24 | AV13: 15 | AW13: 22 | AX13: 23 | AY13: 114 | AZ13: 95 | BA13: 104 | BB13: 108 | BC13: 78 | BD13: 89 | BE13: 96 | BF13: 109 | BG13: 83 | BH13: 65 | BI13: 88 | BJ13: 72 | BK13: 71 | BL13: 67 | BM13: 76 | BN13: 51 | BO13: 56 | BP13: 54 | BQ13: 64 | BR13: 54 | BS13: 48 | BT13: 31 | BU13: 49 | BV13: 18 | BW13: 40 | BX13: 57 | BY13: 2 | BZ13: 12 | CA13: 18 | CB13: 14 | CC13: 11 | CD13: 63 | CE13: 0 | CF13: 93 | CG13: 91 | CH13: 538 | CI13: 89 | CK13: 55 | CL13: 149 | CM13: 465 | CN13: 495 | CO13: 234 | CP13: 505 | CQ13: 945 | CR13: 471 | CT13: 188 | CU13: 391 | CV13: 1366
B14: 01 | C14: 7 | D14: 5680 | E14: C.S. AMBAR | F14: 1576 | H14: 837 | I14: 739 | K14: 16 | L14: 17 | M14: 11 | N14: 8 | O14: 16 | P14: 12 | Q14: 13 | R14: 11 | S14: 9 | T14: 9 | U14: 13 | V14: 12 | W14: 11 | X14: 8 | Y14: 13 | Z14: 7 | AA14: 16 | AB14: 10 | AC14: 14 | AD14: 10 | AE14: 10 | AF14: 9 | AG14: 13 | AH14: 12 | AI14: 18 | AJ14: 10 | AK14: 12 | AL14: 11 | AM14: 12 | AN14: 13 | AO14: 10 | AP14: 13 | AQ14: 11 | AR14: 7 | AS14: 11 | AT14: 12 | AU14: 14 | AV14: 9 | AW14: 13 | AX14: 14 | AY14: 68 | AZ14: 57 | BA14: 62 | BB14: 65 | BC14: 47 | BD14: 53 | BE14: 58 | BF14: 65 | BG14: 50 | BH14: 39 | BI14: 53 | BJ14: 43 | BK14: 43 | BL14: 41 | BM14: 46 | BN14: 31 | BO14: 34 | BP14: 33 | BQ14: 38 | BR14: 33 | BS14: 29 | BT14: 19 | BU14: 29 | BV14: 11 | BW14: 24 | BX14: 35 | BY14: 2 | BZ14: 7 | CA14: 11 | CB14: 8 | CC14: 7 | CD14: 38 | CF14: 55 | CG14: 55 | CH14: 322 | CI14: 53 | CK14: 33 | CL14: 89 | CM14: 280 | CN14: 298 | CO14: 140 | CP14: 302 | CQ14: 569 | CR14: 285 | CT14: 114 | CU14: 234 | CV14: 821
B15: 01 | C15: 8 | D15: 5681 | E15: P.S. AYNACA | F15: 1044 | H15: 554 | I15: 490 | K15: 10 | L15: 12 | M15: 8 | N15: 6 | O15: 10 | P15: 8 | Q15: 8 | R15: 8 | S15: 6 | T15: 6 | U15: 8 | V15: 8 | W15: 7 | X15: 5 | Y15: 9 | Z15: 5 | AA15: 10 | AB15: 7 | AC15: 9 | AD15: 6 | AE15: 7 | AF15: 6 | AG15: 8 | AH15: 8 | AI15: 12 | AJ15: 7 | AK15: 8 | AL15: 8 | AM15: 8 | AN15: 9 | AO15: 6 | AP15: 9 | AQ15: 8 | AR15: 4 | AS15: 7 | AT15: 8 | AU15: 10 | AV15: 6 | AW15: 9 | AX15: 9 | AY15: 46 | AZ15: 38 | BA15: 42 | BB15: 43 | BC15: 31 | BD15: 36 | BE15: 38 | BF15: 44 | BG15: 33 | BH15: 26 | BI15: 35 | BJ15: 29 | BK15: 28 | BL15: 26 | BM15: 30 | BN15: 20 | BO15: 22 | BP15: 21 | BQ15: 26 | BR15: 21 | BS15: 19 | BT15: 12 | BU15: 20 | BV15: 7 | BW15: 16 | BX15: 22 | BY15: 0 | BZ15: 5 | CA15: 7 | CB15: 6 | CC15: 4 | CD15: 25 | CF15: 38 | CG15: 36 | CH15: 216 | CI15: 36 | CK15: 22 | CL15: 60 | CM15: 185 | CN15: 197 | CO15: 94 | CP15: 203 | CQ15: 376 | CR15: 186 | CT15: 74 | CU15: 157 | CV15: 545
A16: 150803 | C16: 9 | D16: 150803 | E16: DISTRITO CARQUIN | F16: 6806 | H16: 3475 | I16: 3331 | K16: 45 | L16: 40 | M16: 53 | N16: 38 | O16: 50 | P16: 60 | Q16: 41 | R16: 52 | S16: 56 | T16: 45 | U16: 46 | V16: 64 | W16: 55 | X16: 54 | Y16: 69 | Z16: 52 | AA16: 63 | AB16: 59 | AC16: 57 | AD16: 59 | AE16: 56 | AF16: 53 | AG16: 71 | AH16: 59 | AI16: 64 | AJ16: 54 | AK16: 73 | AL16: 64 | AM16: 55 | AN16: 60 | AO16: 64 | AP16: 55 | AQ16: 69 | AR16: 64 | AS16: 51 | AT16: 52 | AU16: 41 | AV16: 43 | AW16: 43 | AX16: 46 | AY16: 262 | AZ16: 244 | BA16: 277 | BB16: 254 | BC16: 264 | BD16: 276 | BE16: 275 | BF16: 248 | BG16: 244 | BH16: 256 | BI16: 222 | BJ16: 206 | BK16: 178 | BL16: 171 | BM16: 169 | BN16: 164 | BO16: 139 | BP16: 116 | BQ16: 96 | BR16: 107 | BS16: 93 | BT16: 84 | BU16: 58 | BV16: 60 | BW16: 76 | BX16: 72 | BY16: 5 | BZ16: 19 | CA16: 27 | CB16: 26 | CC16: 13 | CD16: 103 | CE16: 0 | CF16: 290 | CG16: 260 | CH16: 1484 | CI16: 305 | CK16: 85 | CL16: 395 | CM16: 1297 | CN16: 1542 | CO16: 725 | CP16: 1210 | CQ16: 2673 | CR16: 901 | CT16: 578 | CU16: 1137 | CV16: 3710
B17: 02 | C17: 10 | D17: 5664 | E17: P.S. CARQUIN | F17: 6806 | H17: 3475 | I17: 3331 | K17: 45 | L17: 40 | M17: 53 | N17: 38 | O17: 50 | P17: 60 | Q17: 41 | R17: 52 | S17: 56 | T17: 45 | U17: 46 | V17: 64 | W17: 55 | X17: 54 | Y17: 69 | Z17: 52 | AA17: 63 | AB17: 59 | AC17: 57 | AD17: 59 | AE17: 56 | AF17: 53 | AG17: 71 | AH17: 59 | AI17: 64 | AJ17: 54 | AK17: 73 | AL17: 64 | AM17: 55 | AN17: 60 | AO17: 64 | AP17: 55 | AQ17: 69 | AR17: 64 | AS17: 51 | AT17: 52 | AU17: 41 | AV17: 43 | AW17: 43 | AX17: 46 | AY17: 262 | AZ17: 244 | BA17: 277 | BB17: 254 | BC17: 264 | BD17: 276 | BE17: 275 | BF17: 248 | BG17: 244 | BH17: 256 | BI17: 222 | BJ17: 206 | BK17: 178 | BL17: 171 | BM17: 169 | BN17: 164 | BO17: 139 | BP17: 116 | BQ17: 96 | BR17: 107 | BS17: 93 | BT17: 84 | BU17: 58 | BV17: 60 | BW17: 76 | BX17: 72 | BY17: 5 | BZ17: 19 | CA17: 27 | CB17: 26 | CC17: 13 | CD17: 103 | CF17: 290 | CG17: 260 | CH17: 1484 | CI17: 305 | CK17: 85 | CL17: 395 | CM17: 1297 | CN17: 1542 | CO17: 725 | CP17: 1210 | CQ17: 2673 | CR17: 901 | CT17: 578 | CU17: 1137 | CV17: 3710
A18: 150804 | C18: 11 | D18: 150804 | E18: DISTRITO CHECRAS | F18: 997 | H18: 494 | I18: 503 | K18: 6 | L18: 8 | M18: 4 | N18: 3 | O18: 4 | P18: 4 | Q18: 2 | R18: 7 | S18: 4 | T18: 0 | U18: 5 | V18: 5 | W18: 4 | X18: 5 | Y18: 10 | Z18: 4 | AA18: 3 | AB18: 5 | AC18: 8 | AD18: 2 | AE18: 3 | AF18: 0 | AG18: 7 | AH18: 7 | AI18: 6 | AJ18: 12 | AK18: 13 | AL18: 4 | AM18: 6 | AN18: 7 | AO18: 8 | AP18: 8 | AQ18: 20 | AR18: 12 | AS18: 12 | AT18: 8 | AU18: 5 | AV18: 10 | AW18: 8 | AX18: 1 | AY18: 21 | AZ18: 34 | BA18: 36 | BB18: 28 | BC18: 19 | BD18: 24 | BE18: 21 | BF18: 26 | BG18: 27 | BH18: 17 | BI18: 26 | BJ18: 17 | BK18: 29 | BL18: 35 | BM18: 37 | BN18: 31 | BO18: 27 | BP18: 26 | BQ18: 31 | BR18: 33 | BS18: 27 | BT18: 31 | BU18: 14 | BV18: 24 | BW18: 41 | BX18: 65 | BY18: 0 | BZ18: 1 | CA18: 4 | CB18: 5 | CC18: 4 | CD18: 17 | CE18: 0 | CF18: 30 | CG18: 39 | CH18: 146 | CI18: 36 | CK18: 14 | CL18: 28 | CM18: 110 | CN18: 184 | CO18: 116 | CP18: 143 | CQ18: 309 | CR18: 319 | CT18: 51 | CU18: 157 | CV18: 428
B19: 05 | C19: 12 | D19: 5663 | E19: P.S. PUÑUN | F19: 997 | H19: 494 | I19: 503 | K19: 6 | L19: 8 | M19: 4 | N19: 3 | O19: 4 | P19: 4 | Q19: 2 | R19: 7 | S19: 4 | T19: 0 | U19: 5 | V19: 5 | W19: 4 | X19: 5 | Y19: 10 | Z19: 4 | AA19: 3 | AB19: 5 | AC19: 8 | AD19: 2 | AE19: 3 | AF19: 0 | AG19: 7 | AH19: 7 | AI19: 6 | AJ19: 12 | AK19: 13 | AL19: 4 | AM19: 6 | AN19: 7 | AO19: 8 | AP19: 8 | AQ19: 20 | AR19: 12 | AS19: 12 | AT19: 8 | AU19: 5 | AV19: 10 | AW19: 8 | AX19: 1 | AY19: 21 | AZ19: 34 | BA19: 36 | BB19: 28 | BC19: 19 | BD19: 24 | BE19: 21 | BF19: 26 | BG19: 27 | BH19: 17 | BI19: 26 | BJ19: 17 | BK19: 29 | BL19: 35 | BM19: 37 | BN19: 31 | BO19: 27 | BP19: 26 | BQ19: 31 | BR19: 33 | BS19: 27 | BT19: 31 | BU19: 14 | BV19: 24 | BW19: 41 | BX19: 65 | BY19: 0 | BZ19: 1 | CA19: 4 | CB19: 5 | CC19: 4 | CD19: 17 | CF19: 30 | CG19: 39 | CH19: 146 | CI19: 36 | CK19: 14 | CL19: 28 | CM19: 110 | CN19: 184 | CO19: 116 | CP19: 143 | CQ19: 309 | CR19: 319 | CT19: 51 | CU19: 157 | CV19: 428
A20: 150805 | C20: 13 | D20: 150805 | E20: DISTRITO HUALMAY | F20: 29514 | H20: 14643 | I20: 14871 | K20: 183 | L20: 173 | M20: 203 | N20: 193 | O20: 215 | P20: 213 | Q20: 228 | R20: 241 | S20: 214 | T20: 198 | U20: 222 | V20: 196 | W20: 240 | X20: 241 | Y20: 274 | Z20: 277 | AA20: 280 | AB20: 251 | AC20: 258 | AD20: 266 | AE20: 251 | AF20: 225 | AG20: 230 | AH20: 226 | AI20: 266 | AJ20: 242 | AK20: 253 | AL20: 253 | AM20: 228 | AN20: 244 | AO20: 223 | AP20: 235 | AQ20: 209 | AR20: 218 | AS20: 229 | AT20: 216 | AU20: 243 | AV20: 212 | AW20: 180 | AX20: 213 | AY20: 1125 | AZ20: 1101 | BA20: 1251 | BB20: 1312 | BC20: 1165 | BD20: 1131 | BE20: 1095 | BF20: 1184 | BG20: 998 | BH20: 1025 | BI20: 980 | BJ20: 976 | BK20: 855 | BL20: 779 | BM20: 690 | BN20: 704 | BO20: 541 | BP20: 546 | BQ20: 438 | BR20: 497 | BS20: 335 | BT20: 358 | BU20: 254 | BV20: 315 | BW20: 287 | BX20: 410 | BY20: 18 | BZ20: 93 | CA20: 94 | CB20: 90 | CC20: 79 | CD20: 434 | CE20: 0 | CF20: 1190 | CG20: 1094 | CH20: 6729 | CI20: 557 | CK20: 356 | CL20: 1705 | CM20: 5498 | CN20: 6253 | CO20: 2816 | CP20: 5637 | CQ20: 11582 | CR20: 3981 | CT20: 2505 | CU20: 4596 | CV20: 16371
B21: 02 | C21: 14 | D21: 5665 | E21: C.S. HUALMAY | F21: 14182 | H21: 7037 | I21: 7145 | K21: 88 | L21: 83 | M21: 98 | N21: 93 | O21: 104 | P21: 102 | Q21: 110 | R21: 116 | S21: 103 | T21: 95 | U21: 107 | V21: 94 | W21: 116 | X21: 116 | Y21: 132 | Z21: 133 | AA21: 134 | AB21: 121 | AC21: 124 | AD21: 128 | AE21: 121 | AF21: 108 | AG21: 110 | AH21: 109 | AI21: 128 | AJ21: 116 | AK21: 122 | AL21: 122 | AM21: 110 | AN21: 117 | AO21: 107 | AP21: 113 | AQ21: 101 | AR21: 105 | AS21: 110 | AT21: 104 | AU21: 117 | AV21: 102 | AW21: 86 | AX21: 102 | AY21: 540 | AZ21: 529 | BA21: 601 | BB21: 630 | BC21: 560 | BD21: 543 | BE21: 526 | BF21: 569 | BG21: 479 | BH21: 492 | BI21: 470 | BJ21: 469 | BK21: 410 | BL21: 374 | BM21: 332 | BN21: 338 | BO21: 260 | BP21: 262 | BQ21: 210 | BR21: 239 | BS21: 161 | BT21: 172 | BU21: 122 | BV21: 152 | BW21: 138 | BX21: 197 | BY21: 8 | BZ21: 45 | CA21: 45 | CB21: 44 | CC21: 38 | CD21: 208 | CF21: 572 | CG21: 526 | CH21: 3232 | CI21: 267 | CK21: 171 | CL21: 821 | CM21: 2645 | CN21: 3008 | CO21: 1355 | CP21: 2707 | CQ21: 5562 | CR21: 1913 | CT21: 1205 | CU21: 2210 | CV21: 7862
B22: 02 | C22: 15 | D22: 5666 | E22: P.S. DGO. MANDAMIENTO | F22: 10610 | H22: 5264 | I22: 5346 | K22: 66 | L22: 62 | M22: 73 | N22: 69 | O22: 77 | P22: 77 | Q22: 82 | R22: 86 | S22: 77 | T22: 71 | U22: 79 | V22: 71 | W22: 86 | X22: 86 | Y22: 98 | Z22: 100 | AA22: 101 | AB22: 90 | AC22: 93 | AD22: 95 | AE22: 90 | AF22: 81 | AG22: 83 | AH22: 81 | AI22: 95 | AJ22: 87 | AK22: 91 | AL22: 91 | AM22: 82 | AN22: 88 | AO22: 80 | AP22: 84 | AQ22: 75 | AR22: 78 | AS22: 82 | AT22: 77 | AU22: 87 | AV22: 76 | AW22: 65 | AX22: 77 | AY22: 405 | AZ22: 396 | BA22: 450 | BB22: 472 | BC22: 419 | BD22: 407 | BE22: 394 | BF22: 426 | BG22: 359 | BH22: 369 | BI22: 353 | BJ22: 351 | BK22: 308 | BL22: 280 | BM22: 248 | BN22: 253 | BO22: 194 | BP22: 197 | BQ22: 158 | BR22: 178 | BS22: 120 | BT22: 129 | BU22: 91 | BV22: 113 | BW22: 103 | BX22: 148 | BY22: 7 | BZ22: 33 | CA22: 34 | CB22: 32 | CC22: 28 | CD22: 156 | CF22: 428 | CG22: 392 | CH22: 2421 | CI22: 201 | CK22: 128 | CL22: 612 | CM22: 1974 | CN22: 2244 | CO22: 1010 | CP22: 2028 | CQ22: 4167 | CR22: 1431 | CT22: 899 | CU22: 1650 | CV22: 5890
B23: 02 | C23: 16 | D23: 5667 | E23: P.S. CAMPO ALEGRE | F23: 4722 | H23: 2342 | I23: 2380 | K23: 29 | L23: 28 | M23: 32 | N23: 31 | O23: 34 | P23: 34 | Q23: 36 | R23: 39 | S23: 34 | T23: 32 | U23: 36 | V23: 31 | W23: 38 | X23: 39 | Y23: 44 | Z23: 44 | AA23: 45 | AB23: 40 | AC23: 41 | AD23: 43 | AE23: 40 | AF23: 36 | AG23: 37 | AH23: 36 | AI23: 43 | AJ23: 39 | AK23: 40 | AL23: 40 | AM23: 36 | AN23: 39 | AO23: 36 | AP23: 38 | AQ23: 33 | AR23: 35 | AS23: 37 | AT23: 35 | AU23: 39 | AV23: 34 | AW23: 29 | AX23: 34 | AY23: 180 | AZ23: 176 | BA23: 200 | BB23: 210 | BC23: 186 | BD23: 181 | BE23: 175 | BF23: 189 | BG23: 160 | BH23: 164 | BI23: 157 | BJ23: 156 | BK23: 137 | BL23: 125 | BM23: 110 | BN23: 113 | BO23: 87 | BP23: 87 | BQ23: 70 | BR23: 80 | BS23: 54 | BT23: 57 | BU23: 41 | BV23: 50 | BW23: 46 | BX23: 65 | BY23: 3 | BZ23: 15 | CA23: 15 | CB23: 14 | CC23: 13 | CD23: 70 | CF23: 190 | CG23: 176 | CH23: 1076 | CI23: 89 | CK23: 57 | CL23: 272 | CM23: 879 | CN23: 1001 | CO23: 451 | CP23: 902 | CQ23: 1853 | CR23: 637 | CT23: 401 | CU23: 736 | CV23: 2619
A24: 150806 | C24: 17 | D24: 150806 | E24: DISTRITO HUAURA | F24: 38463 | H24: 19504 | I24: 18959 | J24: 0 | K24: 235 | L24: 246 | M24: 306 | N24: 276 | O24: 319 | P24: 312 | Q24: 319 | R24: 282 | S24: 245 | T24: 234 | U24: 242 | V24: 240 | W24: 364 | X24: 370 | Y24: 382 | Z24: 309 | AA24: 363 | AB24: 319 | AC24: 343 | AD24: 316 | AE24: 355 | AF24: 328 | AG24: 354 | AH24: 345 | AI24: 359 | AJ24: 345 | AK24: 329 | AL24: 322 | AM24: 322 | AN24: 310 | AO24: 308 | AP24: 305 | AQ24: 301 | AR24: 335 | AS24: 280 | AT24: 293 | AU24: 296 | AV24: 295 | AW24: 297 | AX24: 287 | AY24: 1459 | AZ24: 1410 | BA24: 1807 | BB24: 1713 | BC24: 1691 | BD24: 1564 | BE24: 1439 | BF24: 1428 | BG24: 1390 | BH24: 1286 | BI24: 1160 | BJ24: 1207 | BK24: 1003 | BL24: 1084 | BM24: 878 | BN24: 901 | BO24: 743 | BP24: 695 | BQ24: 540 | BR24: 530 | BS24: 410 | BT24: 397 | BU24: 291 | BV24: 273 | BW24: 374 | BX24: 402 | BY24: 34 | BZ24: 107 | CA24: 141 | CB24: 128 | CC24: 105 | CD24: 588 | CE24: 0 | CF24: 1650 | CG24: 1515 | CH24: 8608 | CI24: 827 | CK24: 481 | CL24: 2293 | CM24: 7404 | CN24: 8439 | CO24: 3809 | CP24: 7564 | CQ24: 15031 | CR24: 4655 | CT24: 3248 | CU24: 6366 | CV24: 21420
B25: 01 | C25: 18 | D25: 5682 | E25: C.S. HUAURA | F25: 19231 | H25: 9753 | I25: 9478 | K25: 118 | L25: 123 | M25: 153 | N25: 138 | O25: 160 | P25: 156 | Q25: 160 | R25: 141 | S25: 123 | T25: 117 | U25: 121 | V25: 120 | W25: 182 | X25: 185 | Y25: 191 | Z25: 154 | AA25: 181 | AB25: 160 | AC25: 172 | AD25: 158 | AE25: 177 | AF25: 164 | AG25: 176 | AH25: 173 | AI25: 180 | AJ25: 173 | AK25: 164 | AL25: 161 | AM25: 161 | AN25: 155 | AO25: 153 | AP25: 153 | AQ25: 151 | AR25: 168 | AS25: 140 | AT25: 146 | AU25: 147 | AV25: 147 | AW25: 148 | AX25: 143 | AY25: 730 | AZ25: 705 | BA25: 904 | BB25: 857 | BC25: 846 | BD25: 782 | BE25: 719 | BF25: 714 | BG25: 695 | BH25: 643 | BI25: 580 | BJ25: 604 | BK25: 502 | BL25: 541 | BM25: 439 | BN25: 451 | BO25: 372 | BP25: 347 | BQ25: 270 | BR25: 265 | BS25: 205 | BT25: 198 | BU25: 146 | BV25: 136 | BW25: 187 | BX25: 200 | BY25: 17 | BZ25: 54 | CA25: 70 | CB25: 64 | CC25: 53 | CD25: 294 | CF25: 826 | CG25: 757 | CH25: 4305 | CI25: 414 | CK25: 241 | CL25: 1148 | CM25: 3703 | CN25: 4219 | CO25: 1905 | CP25: 3781 | CQ25: 7516 | CR25: 2326 | CT25: 1624 | CU25: 3180 | CV25: 10712
B26: 01 | C26: 19 | D26: 5686 | E26: C.S. SOCORRO | F26: 12693 | H26: 6436 | I26: 6257 | K26: 78 | L26: 82 | M26: 101 | N26: 91 | O26: 105 | P26: 103 | Q26: 105 | R26: 93 | S26: 81 | T26: 78 | U26: 80 | V26: 79 | W26: 120 | X26: 122 | Y26: 126 | Z26: 102 | AA26: 120 | AB26: 105 | AC26: 113 | AD26: 105 | AE26: 117 | AF26: 108 | AG26: 117 | AH26: 114 | AI26: 118 | AJ26: 114 | AK26: 109 | AL26: 106 | AM26: 106 | AN26: 102 | AO26: 102 | AP26: 101 | AQ26: 99 | AR26: 111 | AS26: 92 | AT26: 97 | AU26: 98 | AV26: 97 | AW26: 98 | AX26: 95 | AY26: 481 | AZ26: 465 | BA26: 596 | BB26: 565 | BC26: 558 | BD26: 516 | BE26: 475 | BF26: 471 | BG26: 459 | BH26: 424 | BI26: 383 | BJ26: 398 | BK26: 331 | BL26: 358 | BM26: 290 | BN26: 297 | BO26: 245 | BP26: 229 | BQ26: 178 | BR26: 175 | BS26: 135 | BT26: 131 | BU26: 96 | BV26: 90 | BW26: 124 | BX26: 133 | BY26: 11 | BZ26: 35 | CA26: 47 | CB26: 42 | CC26: 35 | CD26: 194 | CF26: 544 | CG26: 501 | CH26: 2839 | CI26: 273 | CK26: 160 | CL26: 757 | CM26: 2445 | CN26: 2785 | CO26: 1257 | CP26: 2495 | CQ26: 4960 | CR26: 1536 | CT26: 1072 | CU26: 2101 | CV26: 7067
B27: 01 | C27: 20 | D27: 5683 | E27: P.S. HUMAYA | F27: 3466 | H27: 1757 | I27: 1709 | K27: 21 | L27: 22 | M27: 28 | N27: 25 | O27: 29 | P27: 28 | Q27: 29 | R27: 25 | S27: 22 | T27: 21 | U27: 22 | V27: 22 | W27: 33 | X27: 33 | Y27: 34 | Z27: 28 | AA27: 33 | AB27: 29 | AC27: 31 | AD27: 28 | AE27: 32 | AF27: 30 | AG27: 32 | AH27: 31 | AI27: 32 | AJ27: 31 | AK27: 30 | AL27: 29 | AM27: 29 | AN27: 28 | AO27: 28 | AP27: 27 | AQ27: 27 | AR27: 30 | AS27: 25 | AT27: 26 | AU27: 27 | AV27: 27 | AW27: 27 | AX27: 26 | AY27: 131 | AZ27: 127 | BA27: 163 | BB27: 154 | BC27: 152 | BD27: 141 | BE27: 130 | BF27: 129 | BG27: 125 | BH27: 116 | BI27: 104 | BJ27: 109 | BK27: 90 | BL27: 98 | BM27: 79 | BN27: 81 | BO27: 67 | BP27: 63 | BQ27: 49 | BR27: 48 | BS27: 37 | BT27: 36 | BU27: 26 | BV27: 25 | BW27: 33 | BX27: 36 | BY27: 3 | BZ27: 10 | CA27: 13 | CB27: 12 | CC27: 9 | CD27: 53 | CF27: 149 | CG27: 136 | CH27: 776 | CI27: 74 | CK27: 43 | CL27: 207 | CM27: 668 | CN27: 760 | CO27: 342 | CP27: 682 | CQ27: 1354 | CR27: 420 | CT27: 293 | CU27: 574 | CV27: 1929
B28: 01 | C28: 21 | D28: 5684 | E28: P.S. VILCAHUAURA | F28: 2691 | H28: 1363 | I28: 1328 | K28: 16 | L28: 17 | M28: 21 | N28: 19 | O28: 22 | P28: 22 | Q28: 22 | R28: 20 | S28: 17 | T28: 16 | U28: 17 | V28: 17 | W28: 25 | X28: 26 | Y28: 27 | Z28: 22 | AA28: 25 | AB28: 22 | AC28: 24 | AD28: 22 | AE28: 25 | AF28: 23 | AG28: 25 | AH28: 24 | AI28: 25 | AJ28: 24 | AK28: 23 | AL28: 23 | AM28: 23 | AN28: 22 | AO28: 22 | AP28: 21 | AQ28: 21 | AR28: 23 | AS28: 20 | AT28: 21 | AU28: 21 | AV28: 21 | AW28: 21 | AX28: 20 | AY28: 102 | AZ28: 99 | BA28: 126 | BB28: 120 | BC28: 118 | BD28: 109 | BE28: 101 | BF28: 100 | BG28: 97 | BH28: 90 | BI28: 81 | BJ28: 84 | BK28: 70 | BL28: 76 | BM28: 61 | BN28: 63 | BO28: 52 | BP28: 49 | BQ28: 38 | BR28: 37 | BS28: 29 | BT28: 28 | BU28: 20 | BV28: 19 | BW28: 26 | BX28: 29 | BY28: 3 | BZ28: 7 | CA28: 10 | CB28: 9 | CC28: 7 | CD28: 41 | CF28: 116 | CG28: 106 | CH28: 602 | CI28: 58 | CK28: 33 | CL28: 159 | CM28: 516 | CN28: 592 | CO28: 268 | CP28: 530 | CQ28: 1050 | CR28: 327 | CT28: 227 | CU28: 448 | CV28: 1497
B29: 01 | C29: 22 | D29: 5685 | E29: P.S. PEÑICO | F29: 382 | H29: 195 | I29: 187 | K29: 2 | L29: 2 | M29: 3 | N29: 3 | O29: 3 | P29: 3 | Q29: 3 | R29: 3 | S29: 2 | T29: 2 | U29: 2 | V29: 2 | W29: 4 | X29: 4 | Y29: 4 | Z29: 3 | AA29: 4 | AB29: 3 | AC29: 3 | AD29: 3 | AE29: 4 | AF29: 3 | AG29: 4 | AH29: 3 | AI29: 4 | AJ29: 3 | AK29: 3 | AL29: 3 | AM29: 3 | AN29: 3 | AO29: 3 | AP29: 3 | AQ29: 3 | AR29: 3 | AS29: 3 | AT29: 3 | AU29: 3 | AV29: 3 | AW29: 3 | AX29: 3 | AY29: 15 | AZ29: 14 | BA29: 18 | BB29: 17 | BC29: 17 | BD29: 16 | BE29: 14 | BF29: 14 | BG29: 14 | BH29: 13 | BI29: 12 | BJ29: 12 | BK29: 10 | BL29: 11 | BM29: 9 | BN29: 9 | BO29: 7 | BP29: 7 | BQ29: 5 | BR29: 5 | BS29: 4 | BT29: 4 | BU29: 3 | BV29: 3 | BW29: 4 | BX29: 4 | BY29: 0 | BZ29: 1 | CA29: 1 | CB29: 1 | CC29: 1 | CD29: 6 | CF29: 15 | CG29: 15 | CH29: 86 | CI29: 8 | CK29: 4 | CL29: 22 | CM29: 72 | CN29: 83 | CO29: 37 | CP29: 76 | CQ29: 151 | CR29: 46 | CT29: 32 | CU29: 63 | CV29: 215
A30: 150807 | C30: 23 | D30: 150807 | E30: DISTRITO LEONCIO PRADO | F30: 2484 | H30: 1379 | I30: 1105 | K30: 23 | L30: 19 | M30: 29 | N30: 15 | O30: 13 | P30: 13 | Q30: 15 | R30: 10 | S30: 19 | T30: 13 | U30: 14 | V30: 14 | W30: 12 | X30: 18 | Y30: 16 | Z30: 12 | AA30: 17 | AB30: 17 | AC30: 17 | AD30: 19 | AE30: 17 | AF30: 13 | AG30: 21 | AH30: 18 | AI30: 18 | AJ30: 18 | AK30: 23 | AL30: 22 | AM30: 17 | AN30: 20 | AO30: 29 | AP30: 17 | AQ30: 22 | AR30: 22 | AS30: 21 | AT30: 16 | AU30: 26 | AV30: 19 | AW30: 26 | AX30: 17 | AY30: 129 | AZ30: 104 | BA30: 84 | BB30: 84 | BC30: 118 | BD30: 77 | BE30: 101 | BF30: 77 | BG30: 92 | BH30: 63 | BI30: 92 | BJ30: 66 | BK30: 70 | BL30: 58 | BM30: 65 | BN30: 42 | BO30: 60 | BP30: 49 | BQ30: 67 | BR30: 54 | BS30: 35 | BT30: 25 | BU30: 26 | BV30: 27 | BW30: 45 | BX30: 47 | BY30: 5 | BZ30: 12 | CA30: 13 | CB30: 11 | CC30: 6 | CD30: 52 | CE30: 0 | CF30: 91 | CG30: 91 | CH30: 471 | CI30: 77 | CK30: 42 | CL30: 127 | CM30: 394 | CN30: 470 | CO30: 245 | CP30: 489 | CQ30: 921 | CR30: 435 | CT30: 156 | CU30: 402 | CV30: 1322
B31: 03 | C31: 24 | D31: 5778 | E31: P.S. AUQUIMARCA | F31: 126 | H31: 69 | I31: 57 | K31: 1 | L31: 1 | M31: 1 | N31: 1 | O31: 1 | P31: 1 | Q31: 1 | R31: 1 | S31: 1 | T31: 1 | U31: 1 | V31: 1 | W31: 1 | X31: 1 | Y31: 1 | Z31: 1 | AA31: 1 | AB31: 1 | AC31: 1 | AD31: 1 | AE31: 1 | AF31: 1 | AG31: 1 | AH31: 1 | AI31: 1 | AJ31: 1 | AK31: 1 | AL31: 1 | AM31: 1 | AN31: 1 | AO31: 1 | AP31: 1 | AQ31: 1 | AR31: 1 | AS31: 1 | AT31: 1 | AU31: 1 | AV31: 1 | AW31: 1 | AX31: 1 | AY31: 6 | AZ31: 5 | BA31: 4 | BB31: 4 | BC31: 6 | BD31: 4 | BE31: 5 | BF31: 4 | BG31: 5 | BH31: 3 | BI31: 5 | BJ31: 3 | BK31: 4 | BL31: 3 | BM31: 3 | BN31: 2 | BO31: 3 | BP31: 2 | BQ31: 3 | BR31: 3 | BS31: 2 | BT31: 1 | BU31: 1 | BV31: 1 | BW31: 2 | BX31: 2 | BY31: 0 | BZ31: 1 | CA31: 1 | CB31: 1 | CC31: 0 | CD31: 2 | CF31: 5 | CG31: 5 | CH31: 23 | CI31: 4 | CK31: 2 | CL31: 8 | CM31: 24 | CN31: 26 | CO31: 12 | CP31: 23 | CQ31: 47 | CR31: 20 | CT31: 10 | CU31: 20 | CV31: 66
B32: 03 | C32: 25 | D32: 5779 | E32: P.S. PARAN | F32: 856 | H32: 477 | I32: 379 | K32: 8 | L32: 6 | M32: 10 | N32: 5 | O32: 4 | P32: 4 | Q32: 5 | R32: 3 | S32: 6 | T32: 4 | U32: 4 | V32: 4 | W32: 4 | X32: 6 | Y32: 6 | Z32: 4 | AA32: 6 | AB32: 6 | AC32: 6 | AD32: 6 | AE32: 6 | AF32: 4 | AG32: 7 | AH32: 6 | AI32: 6 | AJ32: 6 | AK32: 8 | AL32: 8 | AM32: 6 | AN32: 7 | AO32: 10 | AP32: 6 | AQ32: 8 | AR32: 8 | AS32: 7 | AT32: 6 | AU32: 9 | AV32: 6 | AW32: 9 | AX32: 6 | AY32: 45 | AZ32: 36 | BA32: 29 | BB32: 29 | BC32: 41 | BD32: 27 | BE32: 35 | BF32: 27 | BG32: 32 | BH32: 22 | BI32: 32 | BJ32: 23 | BK32: 24 | BL32: 20 | BM32: 23 | BN32: 15 | BO32: 21 | BP32: 17 | BQ32: 23 | BR32: 18 | BS32: 12 | BT32: 9 | BU32: 9 | BV32: 9 | BW32: 16 | BX32: 16 | BY32: 1 | BZ32: 4 | CA32: 4 | CB32: 4 | CC32: 2 | CD32: 18 | CF32: 31 | CG32: 32 | CH32: 164 | CI32: 27 | CK32: 14 | CL32: 41 | CM32: 130 | CN32: 161 | CO32: 86 | CP32: 169 | CQ32: 321 | CR32: 150 | CT32: 52 | CU32: 139 | CV32: 460
B33: 03 | C33: 26 | D33: 6725 | E33: P.S. SANTA CRUZ | F33: 495 | H33: 274 | I33: 221 | K33: 5 | L33: 4 | M33: 6 | N33: 3 | O33: 3 | P33: 3 | Q33: 3 | R33: 2 | S33: 4 | T33: 3 | U33: 3 | V33: 3 | W33: 2 | X33: 4 | Y33: 3 | Z33: 2 | AA33: 3 | AB33: 3 | AC33: 3 | AD33: 4 | AE33: 3 | AF33: 3 | AG33: 4 | AH33: 4 | AI33: 4 | AJ33: 4 | AK33: 5 | AL33: 4 | AM33: 3 | AN33: 4 | AO33: 6 | AP33: 3 | AQ33: 4 | AR33: 4 | AS33: 4 | AT33: 3 | AU33: 5 | AV33: 4 | AW33: 5 | AX33: 3 | AY33: 26 | AZ33: 21 | BA33: 17 | BB33: 17 | BC33: 24 | BD33: 15 | BE33: 20 | BF33: 15 | BG33: 18 | BH33: 13 | BI33: 18 | BJ33: 13 | BK33: 14 | BL33: 12 | BM33: 13 | BN33: 8 | BO33: 12 | BP33: 10 | BQ33: 13 | BR33: 11 | BS33: 7 | BT33: 5 | BU33: 5 | BV33: 5 | BW33: 9 | BX33: 9 | BY33: 1 | BZ33: 2 | CA33: 3 | CB33: 2 | CC33: 1 | CD33: 11 | CF33: 19 | CG33: 17 | CH33: 94 | CI33: 15 | CK33: 9 | CL33: 27 | CM33: 80 | CN33: 92 | CO33: 48 | CP33: 98 | CQ33: 183 | CR33: 86 | CT33: 30 | CU33: 79 | CV33: 264
B34: 03 | C34: 27 | D34: 7757 | E34: P.S. HUANANGUI | F34: 1007 | H34: 559 | I34: 448 | K34: 9 | L34: 8 | M34: 12 | N34: 6 | O34: 5 | P34: 5 | Q34: 6 | R34: 4 | S34: 8 | T34: 5 | U34: 6 | V34: 6 | W34: 5 | X34: 7 | Y34: 6 | Z34: 5 | AA34: 7 | AB34: 7 | AC34: 7 | AD34: 8 | AE34: 7 | AF34: 5 | AG34: 9 | AH34: 7 | AI34: 7 | AJ34: 7 | AK34: 9 | AL34: 9 | AM34: 7 | AN34: 8 | AO34: 12 | AP34: 7 | AQ34: 9 | AR34: 9 | AS34: 9 | AT34: 6 | AU34: 11 | AV34: 8 | AW34: 11 | AX34: 7 | AY34: 52 | AZ34: 42 | BA34: 34 | BB34: 34 | BC34: 47 | BD34: 31 | BE34: 41 | BF34: 31 | BG34: 37 | BH34: 25 | BI34: 37 | BJ34: 27 | BK34: 28 | BL34: 23 | BM34: 26 | BN34: 17 | BO34: 24 | BP34: 20 | BQ34: 28 | BR34: 22 | BS34: 14 | BT34: 10 | BU34: 11 | BV34: 12 | BW34: 18 | BX34: 20 | BY34: 3 | BZ34: 5 | CA34: 5 | CB34: 4 | CC34: 3 | CD34: 21 | CF34: 36 | CG34: 37 | CH34: 190 | CI34: 31 | CK34: 17 | CL34: 51 | CM34: 160 | CN34: 191 | CO34: 99 | CP34: 199 | CQ34: 370 | CR34: 179 | CT34: 64 | CU34: 164 | CV34: 532
A35: 150808 | C35: 28 | D35: 150808 | E35: DISTRITO PACCHO | F35: 1608 | H35: 819 | I35: 789 | K35: 5 | L35: 9 | M35: 6 | N35: 13 | O35: 10 | P35: 4 | Q35: 8 | R35: 16 | S35: 12 | T35: 12 | U35: 7 | V35: 7 | W35: 9 | X35: 6 | Y35: 14 | Z35: 4 | AA35: 9 | AB35: 8 | AC35: 6 | AD35: 12 | AE35: 12 | AF35: 10 | AG35: 10 | AH35: 7 | AI35: 12 | AJ35: 8 | AK35: 7 | AL35: 11 | AM35: 13 | AN35: 12 | AO35: 17 | AP35: 11 | AQ35: 8 | AR35: 6 | AS35: 12 | AT35: 9 | AU35: 13 | AV35: 12 | AW35: 8 | AX35: 9 | AY35: 43 | AZ35: 50 | BA35: 44 | BB35: 45 | BC35: 42 | BD35: 39 | BE35: 51 | BF35: 33 | BG35: 41 | BH35: 39 | BI35: 55 | BJ35: 48 | BK35: 55 | BL35: 64 | BM35: 55 | BN35: 47 | BO35: 45 | BP35: 40 | BQ35: 44 | BR35: 39 | BS35: 33 | BT35: 38 | BU35: 44 | BV35: 45 | BW35: 69 | BX35: 76 | BY35: 1 | BZ35: 4 | CA35: 6 | CB35: 1 | CC35: 3 | CD35: 16 | CE35: 0 | CF35: 48 | CG35: 47 | CH35: 254 | CI35: 19 | CK35: 14 | CL35: 81 | CM35: 216 | CN35: 247 | CO35: 126 | CP35: 224 | CQ35: 569 | CR35: 473 | CT35: 82 | CU35: 207 | CV35: 751
B36: 05 | C36: 29 | D36: 5650 | E36: P.S. PACCHO | F36: 659 | H36: 337 | I36: 322 | K36: 2 | L36: 4 | M36: 3 | N36: 6 | O36: 4 | P36: 2 | Q36: 3 | R36: 6 | S36: 5 | T36: 5 | U36: 3 | V36: 3 | W36: 4 | X36: 3 | Y36: 6 | Z36: 2 | AA36: 4 | AB36: 3 | AC36: 3 | AD36: 5 | AE36: 5 | AF36: 4 | AG36: 4 | AH36: 3 | AI36: 5 | AJ36: 3 | AK36: 3 | AL36: 4 | AM36: 6 | AN36: 5 | AO36: 7 | AP36: 4 | AQ36: 3 | AR36: 3 | AS36: 5 | AT36: 4 | AU36: 6 | AV36: 5 | AW36: 3 | AX36: 4 | AY36: 18 | AZ36: 20 | BA36: 18 | BB36: 18 | BC36: 17 | BD36: 16 | BE36: 20 | BF36: 13 | BG36: 16 | BH36: 16 | BI36: 23 | BJ36: 19 | BK36: 23 | BL36: 26 | BM36: 23 | BN36: 19 | BO36: 18 | BP36: 16 | BQ36: 18 | BR36: 16 | BS36: 13 | BT36: 16 | BU36: 18 | BV36: 18 | BW36: 28 | BX36: 31 | BY36: 1 | BZ36: 2 | CA36: 3 | CB36: 1 | CC36: 2 | CD36: 7 | CF36: 19 | CG36: 20 | CH36: 102 | CI36: 7 | CK36: 6 | CL36: 34 | CM36: 92 | CN36: 104 | CO36: 52 | CP36: 92 | CQ36: 231 | CR36: 192 | CT36: 36 | CU36: 86 | CV36: 305
B37: 05 | C37: 30 | D37: 5651 | E37: P.S. LACSANGA | F37: 384 | H37: 195 | I37: 189 | K37: 1 | L37: 2 | M37: 1 | N37: 3 | O37: 2 | P37: 1 | Q37: 2 | R37: 4 | S37: 3 | T37: 3 | U37: 2 | V37: 2 | W37: 2 | X37: 1 | Y37: 3 | Z37: 1 | AA37: 2 | AB37: 2 | AC37: 1 | AD37: 3 | AE37: 3 | AF37: 2 | AG37: 2 | AH37: 2 | AI37: 3 | AJ37: 2 | AK37: 2 | AL37: 3 | AM37: 3 | AN37: 3 | AO37: 4 | AP37: 3 | AQ37: 2 | AR37: 1 | AS37: 3 | AT37: 2 | AU37: 3 | AV37: 3 | AW37: 2 | AX37: 2 | AY37: 10 | AZ37: 12 | BA37: 11 | BB37: 11 | BC37: 10 | BD37: 9 | BE37: 12 | BF37: 8 | BG37: 10 | BH37: 9 | BI37: 13 | BJ37: 12 | BK37: 13 | BL37: 15 | BM37: 13 | BN37: 11 | BO37: 11 | BP37: 10 | BQ37: 11 | BR37: 9 | BS37: 8 | BT37: 9 | BU37: 11 | BV37: 11 | BW37: 16 | BX37: 18 | BY37: 0 | BZ37: 1 | CA37: 1 | CB37: 0 | CC37: 1 | CD37: 3 | CF37: 12 | CG37: 11 | CH37: 61 | CI37: 5 | CK37: 3 | CL37: 19 | CM37: 50 | CN37: 59 | CO37: 31 | CP37: 54 | CQ37: 135 | CR37: 114 | CT37: 19 | CU37: 50 | CV37: 179
B38: 05 | C38: 31 | D38: 5653 | E38: P.S. AYARANGA | F38: 263 | H38: 134 | I38: 129 | K38: 1 | L38: 1 | M38: 1 | N38: 2 | O38: 2 | P38: 0 | Q38: 1 | R38: 3 | S38: 2 | T38: 2 | U38: 1 | V38: 1 | W38: 1 | X38: 1 | Y38: 2 | Z38: 0 | AA38: 1 | AB38: 1 | AC38: 1 | AD38: 2 | AE38: 2 | AF38: 2 | AG38: 2 | AH38: 1 | AI38: 2 | AJ38: 1 | AK38: 1 | AL38: 2 | AM38: 2 | AN38: 2 | AO38: 3 | AP38: 2 | AQ38: 1 | AR38: 1 | AS38: 2 | AT38: 1 | AU38: 2 | AV38: 2 | AW38: 1 | AX38: 1 | AY38: 7 | AZ38: 8 | BA38: 7 | BB38: 7 | BC38: 7 | BD38: 7 | BE38: 9 | BF38: 6 | BG38: 7 | BH38: 7 | BI38: 9 | BJ38: 8 | BK38: 9 | BL38: 11 | BM38: 9 | BN38: 8 | BO38: 7 | BP38: 6 | BQ38: 7 | BR38: 7 | BS38: 6 | BT38: 6 | BU38: 7 | BV38: 7 | BW38: 12 | BX38: 13 | BY38: 0 | BZ38: 0 | CA38: 1 | CB38: 0 | CC38: 0 | CD38: 3 | CF38: 8 | CG38: 7 | CH38: 43 | CI38: 3 | CK38: 2 | CL38: 13 | CM38: 33 | CN38: 38 | CO38: 20 | CP38: 35 | CQ38: 97 | CR38: 78 | CT38: 11 | CU38: 33 | CV38: 126
B39: 05 | C39: 32 | D39: 5652 | E39: P.S. MUZGA | F39: 302 | H39: 153 | I39: 149 | K39: 1 | L39: 2 | M39: 1 | N39: 2 | O39: 2 | P39: 1 | Q39: 2 | R39: 3 | S39: 2 | T39: 2 | U39: 1 | V39: 1 | W39: 2 | X39: 1 | Y39: 3 | Z39: 1 | AA39: 2 | AB39: 2 | AC39: 1 | AD39: 2 | AE39: 2 | AF39: 2 | AG39: 2 | AH39: 1 | AI39: 2 | AJ39: 2 | AK39: 1 | AL39: 2 | AM39: 2 | AN39: 2 | AO39: 3 | AP39: 2 | AQ39: 2 | AR39: 1 | AS39: 2 | AT39: 2 | AU39: 2 | AV39: 2 | AW39: 2 | AX39: 2 | AY39: 8 | AZ39: 10 | BA39: 8 | BB39: 9 | BC39: 8 | BD39: 7 | BE39: 10 | BF39: 6 | BG39: 8 | BH39: 7 | BI39: 10 | BJ39: 9 | BK39: 10 | BL39: 12 | BM39: 10 | BN39: 9 | BO39: 9 | BP39: 8 | BQ39: 8 | BR39: 7 | BS39: 6 | BT39: 7 | BU39: 8 | BV39: 9 | BW39: 13 | BX39: 14 | BY39: 0 | BZ39: 1 | CA39: 1 | CB39: 0 | CC39: 0 | CD39: 3 | CF39: 9 | CG39: 9 | CH39: 48 | CI39: 4 | CK39: 3 | CL39: 15 | CM39: 41 | CN39: 46 | CO39: 23 | CP39: 43 | CQ39: 106 | CR39: 89 | CT39: 16 | CU39: 38 | CV39: 141
A40: 150809 | C40: 33 | D40: 150809 | E40: DISTRITO SANTA LEONOR | F40: 1171 | H40: 618 | I40: 553 | K40: 5 | L40: 5 | M40: 9 | N40: 9 | O40: 6 | P40: 8 | Q40: 6 | R40: 5 | S40: 3 | T40: 7 | U40: 5 | V40: 5 | W40: 4 | X40: 11 | Y40: 9 | Z40: 5 | AA40: 11 | AB40: 4 | AC40: 4 | AD40: 4 | AE40: 11 | AF40: 8 | AG40: 7 | AH40: 8 | AI40: 8 | AJ40: 13 | AK40: 8 | AL40: 7 | AM40: 8 | AN40: 7 | AO40: 13 | AP40: 6 | AQ40: 8 | AR40: 11 | AS40: 10 | AT40: 3 | AU40: 10 | AV40: 9 | AW40: 7 | AX40: 6 | AY40: 38 | AZ40: 28 | BA40: 42 | BB40: 40 | BC40: 38 | BD40: 44 | BE40: 43 | BF40: 27 | BG40: 34 | BH40: 35 | BI40: 31 | BJ40: 32 | BK40: 38 | BL40: 30 | BM40: 39 | BN40: 28 | BO40: 40 | BP40: 35 | BQ40: 37 | BR40: 27 | BS40: 28 | BT40: 17 | BU40: 23 | BV40: 30 | BW40: 35 | BX40: 39 | BY40: 1 | BZ40: 4 | CA40: 2 | CB40: 1 | CC40: 3 | CD40: 12 | CE40: 0 | CF40: 43 | CG40: 35 | CH40: 206 | CI40: 26 | CK40: 10 | CL40: 53 | CM40: 159 | CN40: 198 | CO40: 102 | CP40: 180 | CQ40: 419 | CR40: 311 | CT40: =SUM(U40:AD40) -> 62 | CU40: =SUM(AE40:AX40) -> 168 | CV40: =SUM(AY40:BN40) -> 567
B41: 05 | C41: 34 | D41: 5645 | E41: P.S. CHIUCHIN | F41: 728 | H41: 384 | I41: 344 | K41: 3 | L41: 3 | M41: 6 | N41: 6 | O41: 4 | P41: 5 | Q41: 4 | R41: 3 | S41: 2 | T41: 4 | U41: 3 | V41: 3 | W41: 2 | X41: 7 | Y41: 6 | Z41: 3 | AA41: 7 | AB41: 2 | AC41: 2 | AD41: 2 | AE41: 7 | AF41: 5 | AG41: 4 | AH41: 5 | AI41: 5 | AJ41: 8 | AK41: 5 | AL41: 4 | AM41: 5 | AN41: 4 | AO41: 8 | AP41: 4 | AQ41: 5 | AR41: 7 | AS41: 6 | AT41: 2 | AU41: 6 | AV41: 6 | AW41: 4 | AX41: 4 | AY41: 24 | AZ41: 17 | BA41: 26 | BB41: 25 | BC41: 24 | BD41: 27 | BE41: 27 | BF41: 17 | BG41: 21 | BH41: 22 | BI41: 19 | BJ41: 20 | BK41: 24 | BL41: 19 | BM41: 24 | BN41: 17 | BO41: 25 | BP41: 22 | BQ41: 23 | BR41: 17 | BS41: 17 | BT41: 11 | BU41: 14 | BV41: 19 | BW41: 22 | BX41: 24 | BY41: 1 | BZ41: 2 | CA41: 1 | CB41: 1 | CC41: 2 | CD41: 8 | CF41: 26 | CG41: 23 | CH41: 128 | CI41: 17 | CK41: 6 | CL41: 34 | CM41: 98 | CN41: 121 | CO41: 63 | CP41: 112 | CQ41: 261 | CR41: 194 | CT41: 37 | CU41: 104 | CV41: 353
B42: 05 | C42: 35 | D42: 5646 | E42: P.S. PARQUIN | F42: 252 | H42: 133 | I42: 119 | K42: 1 | L42: 1 | M42: 2 | N42: 2 | O42: 1 | P42: 2 | Q42: 1 | R42: 1 | S42: 1 | T42: 2 | U42: 1 | V42: 1 | W42: 1 | X42: 2 | Y42: 2 | Z42: 1 | AA42: 2 | AB42: 1 | AC42: 1 | AD42: 1 | AE42: 2 | AF42: 2 | AG42: 2 | AH42: 2 | AI42: 2 | AJ42: 3 | AK42: 2 | AL42: 2 | AM42: 2 | AN42: 2 | AO42: 3 | AP42: 1 | AQ42: 2 | AR42: 2 | AS42: 2 | AT42: 1 | AU42: 2 | AV42: 2 | AW42: 2 | AX42: 1 | AY42: 8 | AZ42: 6 | BA42: 9 | BB42: 8 | BC42: 8 | BD42: 10 | BE42: 9 | BF42: 6 | BG42: 7 | BH42: 7 | BI42: 7 | BJ42: 7 | BK42: 8 | BL42: 6 | BM42: 8 | BN42: 6 | BO42: 8 | BP42: 7 | BQ42: 8 | BR42: 6 | BS42: 6 | BT42: 4 | BU42: 5 | BV42: 6 | BW42: 8 | BX42: 8 | BY42: 0 | BZ42: 1 | CA42: 1 | CB42: 0 | CC42: 1 | CD42: 2 | CF42: 11 | CG42: 7 | CH42: 44 | CI42: 5 | CK42: 2 | CL42: 12 | CM42: 35 | CN42: 45 | CO42: 24 | CP42: 38 | CQ42: 89 | CR42: 66 | CT42: 13 | CU42: 39 | CV42: 120
B43: 05 | C43: 36 | D43: 5647 | E43: P.S. JUCUL | F43: 191 | H43: 101 | I43: 90 | K43: 1 | L43: 1 | M43: 1 | N43: 1 | O43: 1 | P43: 1 | Q43: 1 | R43: 1 | S43: 0 | T43: 1 | U43: 1 | V43: 1 | W43: 1 | X43: 2 | Y43: 1 | Z43: 1 | AA43: 2 | AB43: 1 | AC43: 1 | AD43: 1 | AE43: 2 | AF43: 1 | AG43: 1 | AH43: 1 | AI43: 1 | AJ43: 2 | AK43: 1 | AL43: 1 | AM43: 1 | AN43: 1 | AO43: 2 | AP43: 1 | AQ43: 1 | AR43: 2 | AS43: 2 | AT43: 0 | AU43: 2 | AV43: 1 | AW43: 1 | AX43: 1 | AY43: 6 | AZ43: 5 | BA43: 7 | BB43: 7 | BC43: 6 | BD43: 7 | BE43: 7 | BF43: 4 | BG43: 6 | BH43: 6 | BI43: 5 | BJ43: 5 | BK43: 6 | BL43: 5 | BM43: 7 | BN43: 5 | BO43: 7 | BP43: 6 | BQ43: 6 | BR43: 4 | BS43: 5 | BT43: 2 | BU43: 4 | BV43: 5 | BW43: 5 | BX43: 7 | BY43: 0 | BZ43: 1 | CA43: 0 | CB43: 0 | CC43: 0 | CD43: 2 | CF43: 6 | CG43: 5 | CH43: 34 | CI43: 4 | CK43: 2 | CL43: 7 | CM43: 26 | CN43: 32 | CO43: 15 | CP43: 30 | CQ43: 69 | CR43: 51 | CT43: 12 | CU43: 25 | CV43: 94
A44: 150810 | C44: 37 | D44: 150810 | E44: DISTRITO SANTA MARIA | F44: 40189 | H44: 20139 | I44: 20050 | K44: 336 | L44: 344 | M44: 347 | N44: 367 | O44: 341 | P44: 332 | Q44: 324 | R44: 326 | S44: 276 | T44: 242 | U44: 248 | V44: 247 | W44: 386 | X44: 355 | Y44: 347 | Z44: 369 | AA44: 356 | AB44: 385 | AC44: 345 | AD44: 338 | AE44: 322 | AF44: 312 | AG44: 360 | AH44: 331 | AI44: 388 | AJ44: 339 | AK44: 337 | AL44: 330 | AM44: 346 | AN44: 299 | AO44: 312 | AP44: 321 | AQ44: 323 | AR44: 266 | AS44: 318 | AT44: 317 | AU44: 277 | AV44: 291 | AW44: 320 | AX44: 314 | AY44: 1659 | AZ44: 1507 | BA44: 1777 | BB44: 1813 | BC44: 1534 | BD44: 1614 | BE44: 1461 | BF44: 1508 | BG44: 1326 | BH44: 1305 | BI44: 1189 | BJ44: 1226 | BK44: 1056 | BL44: 1036 | BM44: 866 | BN44: 868 | BO44: 716 | BP44: 760 | BQ44: 595 | BR44: 609 | BS44: 502 | BT44: 528 | BU44: 369 | BV44: 387 | BW44: 480 | BX44: 464 | BY44: 40 | BZ44: 185 | CA44: 169 | CB44: 151 | CC44: 175 | CD44: 830 | CE44: 0 | CF44: 1611 | CG44: 1509 | CH44: 8973 | CI44: 1181 | CK44: 680 | CL44: 2555 | CM44: 7936 | CN44: 8597 | CO44: 3896 | CP44: 7958 | CQ44: 14989 | CR44: 5410 | CT44: 3376 | CU44: 6423 | CV44: 21745
B45: 02 | C45: 38 | D45: 5668 | E45: C.S. SANTA MARIA | F45: 11252 | H45: 5639 | I45: 5613 | K45: 94 | L45: 96 | M45: 97 | N45: 103 | O45: 95 | P45: 93 | Q45: 91 | R45: 91 | S45: 77 | T45: 68 | U45: 69 | V45: 69 | W45: 108 | X45: 99 | Y45: 97 | Z45: 103 | AA45: 100 | AB45: 108 | AC45: 97 | AD45: 95 | AE45: 90 | AF45: 87 | AG45: 101 | AH45: 93 | AI45: 109 | AJ45: 95 | AK45: 94 | AL45: 92 | AM45: 97 | AN45: 84 | AO45: 87 | AP45: 90 | AQ45: 90 | AR45: 74 | AS45: 89 | AT45: 89 | AU45: 78 | AV45: 81 | AW45: 90 | AX45: 88 | AY45: 465 | AZ45: 422 | BA45: 498 | BB45: 508 | BC45: 430 | BD45: 452 | BE45: 409 | BF45: 422 | BG45: 371 | BH45: 365 | BI45: 333 | BJ45: 343 | BK45: 296 | BL45: 290 | BM45: 242 | BN45: 243 | BO45: 200 | BP45: 213 | BQ45: 167 | BR45: 171 | BS45: 141 | BT45: 148 | BU45: 103 | BV45: 108 | BW45: 134 | BX45: 130 | BY45: 11 | BZ45: 52 | CA45: 47 | CB45: 42 | CC45: 49 | CD45: 233 | CF45: 451 | CG45: 422 | CH45: 2512 | CI45: 331 | CK45: 190 | CL45: 715 | CM45: 2221 | CN45: 2406 | CO45: 1090 | CP45: 2230 | CQ45: 4196 | CR45: 1515 | CT45: 945 | CU45: 1798 | CV45: 6089
B46: 02 | C46: 39 | D46: 5669 | E46: P.S. CHONTA | F46: 6028 | H46: 3019 | I46: 3009 | K46: 50 | L46: 52 | M46: 52 | N46: 55 | O46: 51 | P46: 50 | Q46: 49 | R46: 49 | S46: 41 | T46: 36 | U46: 37 | V46: 37 | W46: 58 | X46: 53 | Y46: 52 | Z46: 55 | AA46: 53 | AB46: 58 | AC46: 52 | AD46: 51 | AE46: 48 | AF46: 47 | AG46: 54 | AH46: 50 | AI46: 58 | AJ46: 51 | AK46: 51 | AL46: 50 | AM46: 52 | AN46: 45 | AO46: 47 | AP46: 48 | AQ46: 48 | AR46: 40 | AS46: 48 | AT46: 48 | AU46: 42 | AV46: 44 | AW46: 48 | AX46: 47 | AY46: 249 | AZ46: 226 | BA46: 267 | BB46: 272 | BC46: 230 | BD46: 242 | BE46: 219 | BF46: 226 | BG46: 199 | BH46: 196 | BI46: 178 | BJ46: 184 | BK46: 158 | BL46: 155 | BM46: 130 | BN46: 130 | BO46: 107 | BP46: 114 | BQ46: 89 | BR46: 91 | BS46: 75 | BT46: 79 | BU46: 55 | BV46: 58 | BW46: 72 | BX46: 70 | BY46: 6 | BZ46: 28 | CA46: 25 | CB46: 23 | CC46: 26 | CD46: 125 | CF46: 243 | CG46: 227 | CH46: 1346 | CI46: 177 | CK46: 102 | CL46: 383 | CM46: 1190 | CN46: 1291 | CO46: 586 | CP46: 1195 | CQ46: 2247 | CR46: 810 | CT46: 506 | CU46: 966 | CV46: 3261
B47: 02 | C47: 40 | D47: 5671 | E47: P.S. ZAPATA | F47: 4007 | H47: 2005 | I47: 2002 | K47: 34 | L47: 34 | M47: 35 | N47: 36 | O47: 34 | P47: 33 | Q47: 31 | R47: 33 | S47: 28 | T47: 24 | U47: 25 | V47: 25 | W47: 39 | X47: 36 | Y47: 35 | Z47: 37 | AA47: 35 | AB47: 38 | AC47: 33 | AD47: 33 | AE47: 32 | AF47: 31 | AG47: 36 | AH47: 33 | AI47: 38 | AJ47: 34 | AK47: 34 | AL47: 33 | AM47: 34 | AN47: 29 | AO47: 31 | AP47: 32 | AQ47: 32 | AR47: 27 | AS47: 32 | AT47: 31 | AU47: 26 | AV47: 29 | AW47: 31 | AX47: 31 | AY47: 165 | AZ47: 151 | BA47: 176 | BB47: 181 | BC47: 153 | BD47: 161 | BE47: 146 | BF47: 151 | BG47: 133 | BH47: 131 | BI47: 119 | BJ47: 123 | BK47: 105 | BL47: 104 | BM47: 87 | BN47: 87 | BO47: 72 | BP47: 76 | BQ47: 59 | BR47: 60 | BS47: 50 | BT47: 53 | BU47: 37 | BV47: 39 | BW47: 48 | BX47: 46 | BY47: 4 | BZ47: 18 | CA47: 17 | CB47: 15 | CC47: 18 | CD47: 81 | CF47: 160 | CG47: 150 | CH47: 898 | CI47: 118 | CK47: 68 | CL47: 254 | CM47: 790 | CN47: 855 | CO47: 387 | CP47: 790 | CQ47: 1500 | CR47: 540 | CT47: 336 | CU47: 636 | CV47: 2173
B48: 02 | C48: 41 | D48: 5670 | E48: P.S. AMADO VELASQUEZ | F48: 11252 | H48: 5639 | I48: 5613 | K48: 94 | L48: 96 | M48: 97 | N48: 103 | O48: 95 | P48: 93 | Q48: 91 | R48: 91 | S48: 77 | T48: 68 | U48: 69 | V48: 69 | W48: 108 | X48: 99 | Y48: 97 | Z48: 103 | AA48: 100 | AB48: 108 | AC48: 97 | AD48: 95 | AE48: 90 | AF48: 87 | AG48: 101 | AH48: 93 | AI48: 109 | AJ48: 95 | AK48: 94 | AL48: 92 | AM48: 97 | AN48: 84 | AO48: 87 | AP48: 90 | AQ48: 90 | AR48: 74 | AS48: 89 | AT48: 89 | AU48: 78 | AV48: 81 | AW48: 90 | AX48: 88 | AY48: 465 | AZ48: 422 | BA48: 498 | BB48: 508 | BC48: 430 | BD48: 452 | BE48: 409 | BF48: 422 | BG48: 371 | BH48: 365 | BI48: 333 | BJ48: 343 | BK48: 296 | BL48: 290 | BM48: 242 | BN48: 243 | BO48: 200 | BP48: 213 | BQ48: 167 | BR48: 171 | BS48: 141 | BT48: 148 | BU48: 103 | BV48: 108 | BW48: 134 | BX48: 130 | BY48: 11 | BZ48: 52 | CA48: 47 | CB48: 42 | CC48: 49 | CD48: 233 | CF48: 451 | CG48: 422 | CH48: 2512 | CI48: 331 | CK48: 190 | CL48: 715 | CM48: 2221 | CN48: 2406 | CO48: 1090 | CP48: 2230 | CQ48: 4196 | CR48: 1515 | CT48: 945 | CU48: 1798 | CV48: 6089
B49: 02 | C49: 42 | D49: 5672 | E49: P.S. SAN BARTOLOME | F49: 7650 | H49: 3837 | I49: 3813 | K49: 64 | L49: 66 | M49: 66 | N49: 70 | O49: 66 | P49: 63 | Q49: 62 | R49: 62 | S49: 53 | T49: 46 | U49: 48 | V49: 47 | W49: 73 | X49: 68 | Y49: 66 | Z49: 71 | AA49: 68 | AB49: 73 | AC49: 66 | AD49: 64 | AE49: 62 | AF49: 60 | AG49: 68 | AH49: 62 | AI49: 74 | AJ49: 64 | AK49: 64 | AL49: 63 | AM49: 66 | AN49: 57 | AO49: 60 | AP49: 61 | AQ49: 63 | AR49: 51 | AS49: 60 | AT49: 60 | AU49: 53 | AV49: 56 | AW49: 61 | AX49: 60 | AY49: 315 | AZ49: 286 | BA49: 338 | BB49: 344 | BC49: 291 | BD49: 307 | BE49: 278 | BF49: 287 | BG49: 252 | BH49: 248 | BI49: 226 | BJ49: 233 | BK49: 201 | BL49: 197 | BM49: 165 | BN49: 165 | BO49: 137 | BP49: 144 | BQ49: 113 | BR49: 116 | BS49: 95 | BT49: 100 | BU49: 71 | BV49: 74 | BW49: 92 | BX49: 88 | BY49: 8 | BZ49: 35 | CA49: 33 | CB49: 29 | CC49: 33 | CD49: 158 | CF49: 306 | CG49: 288 | CH49: 1705 | CI49: 224 | CK49: 130 | CL49: 488 | CM49: 1514 | CN49: 1639 | CO49: 743 | CP49: 1513 | CQ49: 2850 | CR49: 1030 | CT49: 644 | CU49: 1225 | CV49: 4133
A50: 150811 | C50: 43 | D50: 150811 | E50: DISTRITO SAYAN | F50: 25538 | H50: 13036 | I50: 12502 | K50: 212 | L50: 193 | M50: 185 | N50: 188 | O50: 222 | P50: 189 | Q50: 227 | R50: 205 | S50: 194 | T50: 189 | U50: 240 | V50: 218 | W50: 231 | X50: 233 | Y50: 225 | Z50: 262 | AA50: 233 | AB50: 219 | AC50: 239 | AD50: 223 | AE50: 251 | AF50: 177 | AG50: 220 | AH50: 214 | AI50: 240 | AJ50: 219 | AK50: 219 | AL50: 228 | AM50: 235 | AN50: 204 | AO50: 214 | AP50: 252 | AQ50: 217 | AR50: 218 | AS50: 205 | AT50: 194 | AU50: 216 | AV50: 215 | AW50: 207 | AX50: 196 | AY50: 968 | AZ50: 1009 | BA50: 1131 | BB50: 1104 | BC50: 976 | BD50: 1028 | BE50: 982 | BF50: 927 | BG50: 869 | BH50: 855 | BI50: 814 | BJ50: 737 | BK50: 648 | BL50: 620 | BM50: 565 | BN50: 555 | BO50: 492 | BP50: 404 | BQ50: 372 | BR50: 352 | BS50: 309 | BT50: 234 | BU50: 215 | BV50: 197 | BW50: 263 | BX50: 244 | BY50: 29 | BZ50: 102 | CA50: 107 | CB50: 110 | CC50: 86 | CD50: 494 | CE50: 0 | CF50: 1042 | CG50: 1075 | CH50: 5660 | CI50: 594 | CK50: 405 | CL50: 1599 | CM50: 5189 | CN50: 5830 | CO50: 2645 | CP50: 5046 | CQ50: 9576 | CR50: 3082 | CT50: 2323 | CU50: 4341 | CV50: 13788
B51: 03 | C51: 44 | D51: 5780 | E51: C.S. SAYAN | F51: 8160 | H51: 4174 | I51: 3986 | K51: 70 | L51: 61 | M51: 58 | N51: 58 | O51: 70 | P51: 59 | Q51: 72 | R51: 67 | S51: 62 | T51: 59 | U51: 77 | V51: 68 | W51: 74 | X51: 75 | Y51: 71 | Z51: 84 | AA51: 75 | AB51: 69 | AC51: 76 | AD51: 71 | AE51: 79 | AF51: 57 | AG51: 69 | AH51: 69 | AI51: 77 | AJ51: 69 | AK51: 69 | AL51: 72 | AM51: 76 | AN51: 66 | AO51: 69 | AP51: 79 | AQ51: 67 | AR51: 68 | AS51: 67 | AT51: 62 | AU51: 71 | AV51: 70 | AW51: 67 | AX51: 62 | AY51: 310 | AZ51: 324 | BA51: 362 | BB51: 354 | BC51: 313 | BD51: 328 | BE51: 316 | BF51: 296 | BG51: 278 | BH51: 273 | BI51: 261 | BJ51: 237 | BK51: 209 | BL51: 197 | BM51: 180 | BN51: 177 | BO51: 156 | BP51: 130 | BQ51: 120 | BR51: 111 | BS51: 100 | BT51: 75 | BU51: 70 | BV51: 63 | BW51: 83 | BX51: 76 | BY51: 11 | BZ51: 32 | CA51: 35 | CB51: 36 | CC51: 27 | CD51: 158 | CF51: 333 | CG51: 341 | CH51: 1812 | CI51: 190 | CK51: 131 | CL51: 505 | CM51: 1650 | CN51: 1855 | CO51: 841 | CP51: 1620 | CQ51: 3065 | CR51: 984 | CT51: 740 | CU51: 1385 | CV51: 4415
B52: 03 | C52: 45 | D52: 5774 | E52: C.S. 9 DE OCTUBRE | F52: 6893 | H52: 3519 | I52: 3374 | K52: 57 | L52: 52 | M52: 50 | N52: 51 | O52: 60 | P52: 51 | Q52: 61 | R52: 55 | S52: 52 | T52: 51 | U52: 65 | V52: 59 | W52: 62 | X52: 63 | Y52: 61 | Z52: 71 | AA52: 63 | AB52: 59 | AC52: 65 | AD52: 60 | AE52: 68 | AF52: 48 | AG52: 59 | AH52: 58 | AI52: 65 | AJ52: 59 | AK52: 59 | AL52: 62 | AM52: 63 | AN52: 55 | AO52: 58 | AP52: 68 | AQ52: 59 | AR52: 59 | AS52: 55 | AT52: 52 | AU52: 58 | AV52: 58 | AW52: 56 | AX52: 53 | AY52: 261 | AZ52: 272 | BA52: 305 | BB52: 298 | BC52: 264 | BD52: 278 | BE52: 265 | BF52: 250 | BG52: 235 | BH52: 231 | BI52: 220 | BJ52: 199 | BK52: 175 | BL52: 167 | BM52: 153 | BN52: 150 | BO52: 133 | BP52: 109 | BQ52: 100 | BR52: 95 | BS52: 83 | BT52: 63 | BU52: 58 | BV52: 53 | BW52: 71 | BX52: 65 | BY52: 7 | BZ52: 28 | CA52: 29 | CB52: 30 | CC52: 23 | CD52: 133 | CF52: 282 | CG52: 290 | CH52: 1528 | CI52: 160 | CK52: 109 | CL52: 431 | CM52: 1401 | CN52: 1575 | CO52: 714 | CP52: 1361 | CQ52: 2587 | CR52: 830 | CT52: 628 | CU52: 1172 | CV52: 3723
B53: 03 | C53: 46 | D53: 5781 | E53: P.S. CHAMBARA | F53: 770 | H53: 390 | I53: 380 | K53: 6 | L53: 6 | M53: 6 | N53: 6 | O53: 7 | P53: 6 | Q53: 7 | R53: 6 | S53: 6 | T53: 6 | U53: 7 | V53: 7 | W53: 7 | X53: 7 | Y53: 7 | Z53: 8 | AA53: 7 | AB53: 7 | AC53: 7 | AD53: 7 | AE53: 8 | AF53: 5 | AG53: 7 | AH53: 6 | AI53: 7 | AJ53: 7 | AK53: 7 | AL53: 7 | AM53: 7 | AN53: 6 | AO53: 6 | AP53: 8 | AQ53: 7 | AR53: 7 | AS53: 6 | AT53: 6 | AU53: 6 | AV53: 6 | AW53: 6 | AX53: 6 | AY53: 29 | AZ53: 30 | BA53: 34 | BB53: 33 | BC53: 29 | BD53: 31 | BE53: 29 | BF53: 28 | BG53: 26 | BH53: 26 | BI53: 24 | BJ53: 22 | BK53: 19 | BL53: 19 | BM53: 17 | BN53: 17 | BO53: 15 | BP53: 12 | BQ53: 11 | BR53: 11 | BS53: 9 | BT53: 7 | BU53: 6 | BV53: 6 | BW53: 8 | BX53: 8 | BY53: 1 | BZ53: 3 | CA53: 3 | CB53: 3 | CC53: 3 | CD53: 15 | CF53: 31 | CG53: 33 | CH53: 170 | CI53: 18 | CK53: 12 | CL53: 50 | CM53: 159 | CN53: 178 | CO53: 81 | CP53: 150 | CQ53: 287 | CR53: 93 | CT53: 71 | CU53: 131 | CV53: 413
B54: 03 | C54: 47 | D54: 5775 | E54: P.S. LA MERCED | F54: 1025 | H54: 524 | I54: 501 | K54: 8 | L54: 8 | M54: 7 | N54: 8 | O54: 9 | P54: 8 | Q54: 9 | R54: 8 | S54: 8 | T54: 8 | U54: 10 | V54: 9 | W54: 9 | X54: 9 | Y54: 9 | Z54: 10 | AA54: 9 | AB54: 9 | AC54: 10 | AD54: 9 | AE54: 10 | AF54: 7 | AG54: 9 | AH54: 9 | AI54: 10 | AJ54: 9 | AK54: 9 | AL54: 9 | AM54: 9 | AN54: 8 | AO54: 9 | AP54: 10 | AQ54: 9 | AR54: 9 | AS54: 8 | AT54: 8 | AU54: 9 | AV54: 9 | AW54: 8 | AX54: 8 | AY54: 39 | AZ54: 40 | BA54: 45 | BB54: 44 | BC54: 39 | BD54: 41 | BE54: 39 | BF54: 37 | BG54: 35 | BH54: 34 | BI54: 33 | BJ54: 29 | BK54: 26 | BL54: 25 | BM54: 23 | BN54: 22 | BO54: 20 | BP54: 16 | BQ54: 15 | BR54: 14 | BS54: 12 | BT54: 9 | BU54: 9 | BV54: 8 | BW54: 11 | BX54: 10 | BY54: 1 | BZ54: 4 | CA54: 4 | CB54: 4 | CC54: 3 | CD54: 19 | CF54: 42 | CG54: 44 | CH54: 225 | CI54: 24 | CK54: 16 | CL54: 65 | CM54: 209 | CN54: 235 | CO54: 107 | CP54: 202 | CQ54: 383 | CR54: 124 | CT54: 93 | CU54: 176 | CV54: 551
B55: 03 | C55: 48 | D55: 5776 | E55: P.S. LA VILLA | F55: 7150 | H55: 3649 | I55: 3501 | K55: 59 | L55: 54 | M55: 52 | N55: 53 | O55: 62 | P55: 53 | Q55: 64 | R55: 57 | S55: 54 | T55: 53 | U55: 67 | V55: 61 | W55: 65 | X55: 65 | Y55: 63 | Z55: 73 | AA55: 65 | AB55: 61 | AC55: 67 | AD55: 62 | AE55: 70 | AF55: 50 | AG55: 62 | AH55: 60 | AI55: 67 | AJ55: 61 | AK55: 61 | AL55: 64 | AM55: 66 | AN55: 57 | AO55: 60 | AP55: 71 | AQ55: 61 | AR55: 61 | AS55: 57 | AT55: 54 | AU55: 60 | AV55: 60 | AW55: 58 | AX55: 55 | AY55: 271 | AZ55: 283 | BA55: 317 | BB55: 309 | BC55: 273 | BD55: 288 | BE55: 275 | BF55: 260 | BG55: 243 | BH55: 239 | BI55: 228 | BJ55: 206 | BK55: 181 | BL55: 174 | BM55: 158 | BN55: 155 | BO55: 138 | BP55: 113 | BQ55: 104 | BR55: 99 | BS55: 87 | BT55: 66 | BU55: 60 | BV55: 55 | BW55: 74 | BX55: 69 | BY55: 7 | BZ55: 29 | CA55: 30 | CB55: 31 | CC55: 24 | CD55: 139 | CF55: 292 | CG55: 301 | CH55: 1585 | CI55: 166 | CK55: 113 | CL55: 448 | CM55: 1452 | CN55: 1631 | CO55: 740 | CP55: 1413 | CQ55: 2680 | CR55: 865 | CT55: 649 | CU55: 1215 | CV55: 3860
B56: 03 | C56: 49 | D56: 5777 | E56: P.S. EL AHORCADO | F56: 770 | H56: 390 | I56: 380 | K56: 6 | L56: 6 | M56: 6 | N56: 6 | O56: 7 | P56: 6 | Q56: 7 | R56: 6 | S56: 6 | T56: 6 | U56: 7 | V56: 7 | W56: 7 | X56: 7 | Y56: 7 | Z56: 8 | AA56: 7 | AB56: 7 | AC56: 7 | AD56: 7 | AE56: 8 | AF56: 5 | AG56: 7 | AH56: 6 | AI56: 7 | AJ56: 7 | AK56: 7 | AL56: 7 | AM56: 7 | AN56: 6 | AO56: 6 | AP56: 8 | AQ56: 7 | AR56: 7 | AS56: 6 | AT56: 6 | AU56: 6 | AV56: 6 | AW56: 6 | AX56: 6 | AY56: 29 | AZ56: 30 | BA56: 34 | BB56: 33 | BC56: 29 | BD56: 31 | BE56: 29 | BF56: 28 | BG56: 26 | BH56: 26 | BI56: 24 | BJ56: 22 | BK56: 19 | BL56: 19 | BM56: 17 | BN56: 17 | BO56: 15 | BP56: 12 | BQ56: 11 | BR56: 11 | BS56: 9 | BT56: 7 | BU56: 6 | BV56: 6 | BW56: 8 | BX56: 8 | BY56: 1 | BZ56: 3 | CA56: 3 | CB56: 3 | CC56: 3 | CD56: 15 | CF56: 31 | CG56: 33 | CH56: 170 | CI56: 18 | CK56: 12 | CL56: 50 | CM56: 159 | CN56: 178 | CO56: 81 | CP56: 150 | CQ56: 287 | CR56: 93 | CT56: 71 | CU56: 131 | CV56: 413
B57: 03 | C57: 50 | D57: 6726 | E57: P.S. LA UNION | F57: 770 | H57: 390 | I57: 380 | K57: 6 | L57: 6 | M57: 6 | N57: 6 | O57: 7 | P57: 6 | Q57: 7 | R57: 6 | S57: 6 | T57: 6 | U57: 7 | V57: 7 | W57: 7 | X57: 7 | Y57: 7 | Z57: 8 | AA57: 7 | AB57: 7 | AC57: 7 | AD57: 7 | AE57: 8 | AF57: 5 | AG57: 7 | AH57: 6 | AI57: 7 | AJ57: 7 | AK57: 7 | AL57: 7 | AM57: 7 | AN57: 6 | AO57: 6 | AP57: 8 | AQ57: 7 | AR57: 7 | AS57: 6 | AT57: 6 | AU57: 6 | AV57: 6 | AW57: 6 | AX57: 6 | AY57: 29 | AZ57: 30 | BA57: 34 | BB57: 33 | BC57: 29 | BD57: 31 | BE57: 29 | BF57: 28 | BG57: 26 | BH57: 26 | BI57: 24 | BJ57: 22 | BK57: 19 | BL57: 19 | BM57: 17 | BN57: 17 | BO57: 15 | BP57: 12 | BQ57: 11 | BR57: 11 | BS57: 9 | BT57: 7 | BU57: 6 | BV57: 6 | BW57: 8 | BX57: 8 | BY57: 1 | BZ57: 3 | CA57: 3 | CB57: 3 | CC57: 3 | CD57: 15 | CF57: 31 | CG57: 33 | CH57: 170 | CI57: 18 | CK57: 12 | CL57: 50 | CM57: 159 | CN57: 178 | CO57: 81 | CP57: 150 | CQ57: 287 | CR57: 93 | CT57: 71 | CU57: 131 | CV57: 413
A58: 150812 | C58: 51 | D58: 150812 | E58: DISTRITO VEGUETA | F58: 27987 | H58: 14082 | I58: 13905 | K58: 279 | L58: 283 | M58: 319 | N58: 287 | O58: 279 | P58: 252 | Q58: 297 | R58: 267 | S58: 261 | T58: 269 | U58: 243 | V58: 250 | W58: 288 | X58: 244 | Y58: 289 | Z58: 260 | AA58: 252 | AB58: 260 | AC58: 248 | AD58: 230 | AE58: 249 | AF58: 241 | AG58: 233 | AH58: 250 | AI58: 307 | AJ58: 239 | AK58: 274 | AL58: 239 | AM58: 256 | AN58: 208 | AO58: 262 | AP58: 216 | AQ58: 238 | AR58: 198 | AS58: 218 | AT58: 223 | AU58: 221 | AV58: 206 | AW58: 210 | AX58: 218 | AY58: 975 | AZ58: 1017 | BA58: 1250 | BB58: 1285 | BC58: 1136 | BD58: 1215 | BE58: 1059 | BF58: 1081 | BG58: 896 | BH58: 896 | BI58: 766 | BJ58: 781 | BK58: 655 | BL58: 652 | BM58: 561 | BN58: 584 | BO58: 444 | BP58: 462 | BQ58: 370 | BR58: 345 | BS58: 286 | BT58: 253 | BU58: 215 | BV58: 197 | BW58: 246 | BX58: 297 | BY58: 41 | BZ58: 127 | CA58: 139 | CB58: 152 | CC58: 144 | CD58: 684 | CE58: 0 | CF58: 1177 | CG58: 1061 | CH58: 6275 | CI58: 1038 | CK58: 562 | CL58: 2231 | CM58: 6330 | CN58: 6415 | CO58: 2878 | CP58: 5382 | CQ58: 10282 | CR58: 3115 | CT58: 2564 | CU58: 4706 | CV58: 14809
B59: 04 | C59: 52 | D59: 5673 | E59: C.S. VEGUETA | F59: 7844 | H59: 3948 | I59: 3896 | K59: 78 | L59: 79 | M59: 90 | N59: 80 | O59: 78 | P59: 71 | Q59: 83 | R59: 75 | S59: 73 | T59: 75 | U59: 69 | V59: 70 | W59: 81 | X59: 69 | Y59: 81 | Z59: 73 | AA59: 71 | AB59: 73 | AC59: 70 | AD59: 64 | AE59: 70 | AF59: 68 | AG59: 66 | AH59: 70 | AI59: 86 | AJ59: 67 | AK59: 77 | AL59: 67 | AM59: 72 | AN59: 58 | AO59: 73 | AP59: 60 | AQ59: 67 | AR59: 55 | AS59: 61 | AT59: 63 | AU59: 62 | AV59: 58 | AW59: 59 | AX59: 61 | AY59: 273 | AZ59: 285 | BA59: 350 | BB59: 360 | BC59: 318 | BD59: 340 | BE59: 297 | BF59: 303 | BG59: 251 | BH59: 251 | BI59: 214 | BJ59: 219 | BK59: 183 | BL59: 183 | BM59: 157 | BN59: 164 | BO59: 125 | BP59: 129 | BQ59: 104 | BR59: 97 | BS59: 80 | BT59: 71 | BU59: 60 | BV59: 55 | BW59: 69 | BX59: 83 | BY59: 11 | BZ59: 36 | CA59: 39 | CB59: 43 | CC59: 41 | CD59: 193 | CF59: 330 | CG59: 297 | CH59: 1758 | CI59: 291 | CK59: 157 | CL59: 625 | CM59: 1777 | CN59: 1801 | CO59: 806 | CP59: 1508 | CQ59: 2880 | CR59: 873 | CT59: 721 | CU59: 1320 | CV59: 4148
B60: 04 | C60: 53 | D60: 5674 | E60: P.S. MAZO | F60: 2805 | H60: 1412 | I60: 1393 | K60: 28 | L60: 28 | M60: 32 | N60: 29 | O60: 28 | P60: 25 | Q60: 30 | R60: 27 | S60: 26 | T60: 27 | U60: 24 | V60: 25 | W60: 29 | X60: 24 | Y60: 29 | Z60: 26 | AA60: 25 | AB60: 26 | AC60: 25 | AD60: 23 | AE60: 25 | AF60: 24 | AG60: 23 | AH60: 25 | AI60: 31 | AJ60: 24 | AK60: 27 | AL60: 24 | AM60: 26 | AN60: 21 | AO60: 26 | AP60: 22 | AQ60: 24 | AR60: 20 | AS60: 22 | AT60: 22 | AU60: 22 | AV60: 21 | AW60: 21 | AX60: 22 | AY60: 98 | AZ60: 102 | BA60: 125 | BB60: 129 | BC60: 114 | BD60: 122 | BE60: 106 | BF60: 108 | BG60: 90 | BH60: 90 | BI60: 77 | BJ60: 78 | BK60: 66 | BL60: 65 | BM60: 56 | BN60: 58 | BO60: 44 | BP60: 46 | BQ60: 37 | BR60: 35 | BS60: 29 | BT60: 25 | BU60: 22 | BV60: 20 | BW60: 25 | BX60: 30 | BY60: 5 | BZ60: 13 | CA60: 14 | CB60: 15 | CC60: 14 | CD60: 68 | CF60: 118 | CG60: 107 | CH60: 629 | CI60: 104 | CK60: 56 | CL60: 224 | CM60: 633 | CN60: 642 | CO60: 289 | CP60: 540 | CQ60: 1030 | CR60: 313 | CT60: 256 | CU60: 472 | CV60: 1484
B61: 04 | C61: 54 | D61: 5675 | E61: P.S. PRIMAVERA | F61: 6156 | H61: 3096 | I61: 3060 | K61: 61 | L61: 62 | M61: 70 | N61: 63 | O61: 61 | P61: 55 | Q61: 65 | R61: 59 | S61: 57 | T61: 59 | U61: 53 | V61: 55 | W61: 63 | X61: 54 | Y61: 64 | Z61: 57 | AA61: 55 | AB61: 57 | AC61: 55 | AD61: 51 | AE61: 55 | AF61: 53 | AG61: 51 | AH61: 55 | AI61: 68 | AJ61: 53 | AK61: 60 | AL61: 53 | AM61: 56 | AN61: 46 | AO61: 58 | AP61: 48 | AQ61: 52 | AR61: 44 | AS61: 48 | AT61: 49 | AU61: 49 | AV61: 45 | AW61: 46 | AX61: 48 | AY61: 215 | AZ61: 224 | BA61: 275 | BB61: 283 | BC61: 250 | BD61: 267 | BE61: 233 | BF61: 238 | BG61: 197 | BH61: 197 | BI61: 169 | BJ61: 172 | BK61: 144 | BL61: 143 | BM61: 123 | BN61: 128 | BO61: 98 | BP61: 102 | BQ61: 81 | BR61: 76 | BS61: 63 | BT61: 56 | BU61: 47 | BV61: 43 | BW61: 54 | BX61: 65 | BY61: 9 | BZ61: 28 | CA61: 31 | CB61: 33 | CC61: 32 | CD61: 151 | CF61: 260 | CG61: 234 | CH61: 1381 | CI61: 228 | CK61: 123 | CL61: 489 | CM61: 1390 | CN61: 1413 | CO61: 635 | CP61: 1185 | CQ61: 2261 | CR61: 685 | CT61: 564 | CU61: 1037 | CV61: 3258
B62: 04 | C62: 55 | D62: 5676 | E62: P.S. MARIATEGUI | F62: 7257 | H62: 3653 | I62: 3604 | K62: 73 | L62: 74 | M62: 83 | N62: 75 | O62: 73 | P62: 65 | Q62: 77 | R62: 68 | S62: 68 | T62: 70 | U62: 63 | V62: 64 | W62: 75 | X62: 63 | Y62: 74 | Z62: 67 | AA62: 65 | AB62: 67 | AC62: 64 | AD62: 60 | AE62: 65 | AF62: 63 | AG62: 61 | AH62: 64 | AI62: 79 | AJ62: 62 | AK62: 71 | AL62: 62 | AM62: 66 | AN62: 54 | AO62: 68 | AP62: 56 | AQ62: 62 | AR62: 51 | AS62: 57 | AT62: 58 | AU62: 57 | AV62: 53 | AW62: 55 | AX62: 57 | AY62: 252 | AZ62: 264 | BA62: 324 | BB62: 333 | BC62: 295 | BD62: 316 | BE62: 274 | BF62: 280 | BG62: 233 | BH62: 233 | BI62: 198 | BJ62: 202 | BK62: 170 | BL62: 169 | BM62: 146 | BN62: 152 | BO62: 115 | BP62: 120 | BQ62: 96 | BR62: 89 | BS62: 74 | BT62: 65 | BU62: 56 | BV62: 51 | BW62: 64 | BX62: 77 | BY62: 11 | BZ62: 32 | CA62: 36 | CB62: 39 | CC62: 37 | CD62: 177 | CF62: 305 | CG62: 275 | CH62: 1628 | CI62: 270 | CK62: 147 | CL62: 579 | CM62: 1641 | CN62: 1661 | CO62: 746 | CP62: 1395 | CQ62: 2668 | CR62: 807 | CT62: 662 | CU62: 1221 | CV62: 3841
B63: 04 | C63: 56 | D63: 5677 | E63: P.S. MEDIO MUNDO | F63: 3642 | H63: 1831 | I63: 1811 | K63: 36 | L63: 37 | M63: 41 | N63: 37 | O63: 36 | P63: 33 | Q63: 39 | R63: 35 | S63: 34 | T63: 35 | U63: 32 | V63: 33 | W63: 37 | X63: 32 | Y63: 38 | Z63: 34 | AA63: 33 | AB63: 34 | AC63: 32 | AD63: 30 | AE63: 32 | AF63: 31 | AG63: 30 | AH63: 33 | AI63: 40 | AJ63: 31 | AK63: 36 | AL63: 31 | AM63: 33 | AN63: 27 | AO63: 34 | AP63: 28 | AQ63: 31 | AR63: 26 | AS63: 28 | AT63: 29 | AU63: 29 | AV63: 27 | AW63: 27 | AX63: 28 | AY63: 127 | AZ63: 132 | BA63: 163 | BB63: 167 | BC63: 148 | BD63: 158 | BE63: 138 | BF63: 141 | BG63: 116 | BH63: 116 | BI63: 100 | BJ63: 102 | BK63: 85 | BL63: 85 | BM63: 73 | BN63: 76 | BO63: 58 | BP63: 60 | BQ63: 48 | BR63: 45 | BS63: 37 | BT63: 33 | BU63: 28 | BV63: 26 | BW63: 32 | BX63: 39 | BY63: 5 | BZ63: 17 | CA63: 18 | CB63: 20 | CC63: 19 | CD63: 89 | CF63: 153 | CG63: 138 | CH63: 816 | CI63: 135 | CK63: 73 | CL63: 290 | CM63: 824 | CN63: 835 | CO63: 374 | CP63: 700 | CQ63: 1338 | CR63: 406 | CT63: 335 | CU63: 611 | CV63: 1927
B64: 04 | C64: 57 | D64: 5678 | E64: P.S. TIROLER | F64: 283 | H64: 142 | I64: 141 | K64: 3 | L64: 3 | M64: 3 | N64: 3 | O64: 3 | P64: 3 | Q64: 3 | R64: 3 | S64: 3 | T64: 3 | U64: 2 | V64: 3 | W64: 3 | X64: 2 | Y64: 3 | Z64: 3 | AA64: 3 | AB64: 3 | AC64: 2 | AD64: 2 | AE64: 2 | AF64: 2 | AG64: 2 | AH64: 3 | AI64: 3 | AJ64: 2 | AK64: 3 | AL64: 2 | AM64: 3 | AN64: 2 | AO64: 3 | AP64: 2 | AQ64: 2 | AR64: 2 | AS64: 2 | AT64: 2 | AU64: 2 | AV64: 2 | AW64: 2 | AX64: 2 | AY64: 10 | AZ64: 10 | BA64: 13 | BB64: 13 | BC64: 11 | BD64: 12 | BE64: 11 | BF64: 11 | BG64: 9 | BH64: 9 | BI64: 8 | BJ64: 8 | BK64: 7 | BL64: 7 | BM64: 6 | BN64: 6 | BO64: 4 | BP64: 5 | BQ64: 4 | BR64: 3 | BS64: 3 | BT64: 3 | BU64: 2 | BV64: 2 | BW64: 2 | BX64: 3 | BY64: 0 | BZ64: 1 | CA64: 1 | CB64: 2 | CC64: 1 | CD64: 6 | CF64: 11 | CG64: 10 | CH64: 63 | CI64: 10 | CK64: 6 | CL64: 24 | CM64: 65 | CN64: 63 | CO64: 28 | CP64: 54 | CQ64: 105 | CR64: 31 | CT64: 26 | CU64: 45 | CV64: 151
A65: 150900 | C65: 58 | D65: 150900 | E65: PROVINCIA OYON | F65: 18311 | H65: 9088 | I65: 9223 | K65: 108 | L65: 115 | M65: 114 | N65: 118 | O65: 132 | P65: 116 | Q65: 129 | R65: 135 | S65: 121 | T65: 97 | U65: 136 | V65: 103 | W65: 155 | X65: 137 | Y65: 152 | Z65: 156 | AA65: 143 | AB65: 168 | AC65: 169 | AD65: 169 | AE65: 182 | AF65: 183 | AG65: 181 | AH65: 179 | AI65: 191 | AJ65: 211 | AK65: 206 | AL65: 206 | AM65: 164 | AN65: 175 | AO65: 202 | AP65: 204 | AQ65: 185 | AR65: 218 | AS65: 181 | AT65: 167 | AU65: 178 | AV65: 154 | AW65: 146 | AX65: 145 | AY65: 701 | AZ65: 679 | BA65: 701 | BB65: 722 | BC65: 607 | BD65: 667 | BE65: 608 | BF65: 644 | BG65: 539 | BH65: 484 | BI65: 541 | BJ65: 499 | BK65: 483 | BL65: 484 | BM65: 414 | BN65: 423 | BO65: 380 | BP65: 364 | BQ65: 291 | BR65: 301 | BS65: 238 | BT65: 241 | BU65: 169 | BV65: 214 | BW65: 241 | BX65: 345 | BY65: 21 | BZ65: 53 | CA65: 58 | CB65: 55 | CC65: 57 | CD65: 272 | CE65: 0 | CF65: 954 | CG65: 888 | CH65: 3695 | CI65: 387 | CK65: 223 | CL65: 962 | CM65: 3398 | CN65: 4523 | CO65: 2310 | CP65: 3426 | CQ65: 6393 | CR65: 2784 | CT65: 1488 | CU65: 3658 | CV65: 9196
A66: 150901 | C66: 59 | D66: 150901 | E66: DISTRITO OYON | F66: 11043 | H66: 5418 | I66: 5625 | K66: 68 | L66: 61 | M66: 57 | N66: 68 | O66: 84 | P66: 62 | Q66: 88 | R66: 83 | S66: 75 | T66: 63 | U66: 80 | V66: 62 | W66: 103 | X66: 104 | Y66: 112 | Z66: 113 | AA66: 92 | AB66: 130 | AC66: 121 | AD66: 126 | AE66: 122 | AF66: 125 | AG66: 138 | AH66: 121 | AI66: 125 | AJ66: 138 | AK66: 140 | AL66: 131 | AM66: 118 | AN66: 121 | AO66: 134 | AP66: 137 | AQ66: 120 | AR66: 135 | AS66: 114 | AT66: 103 | AU66: 96 | AV66: 94 | AW66: 92 | AX66: 92 | AY66: 425 | AZ66: 439 | BA66: 453 | BB66: 451 | BC66: 380 | BD66: 457 | BE66: 384 | BF66: 411 | BG66: 319 | BH66: 296 | BI66: 303 | BJ66: 296 | BK66: 283 | BL66: 295 | BM66: 211 | BN66: 219 | BO66: 181 | BP66: 182 | BQ66: 146 | BR66: 151 | BS66: 110 | BT66: 111 | BU66: 67 | BV66: 93 | BW66: 77 | BX66: 155 | BY66: 16 | BZ66: 34 | CA66: 33 | CB66: 34 | CC66: 28 | CD66: 158 | CE66: 0 | CF66: 636 | CG66: 561 | CH66: 2350 | CI66: 207 | CK66: 129 | CL66: 580 | CM66: 2258 | CN66: 3065 | CO66: 1516 | CP66: 2142 | CQ66: 3854 | CR66: 1273 | CT66: 1043 | CU66: 2396 | CV66: 5622
B67: 05 | C67: 60 | D67: 5659 | E67: C.S. OYON | F67: 9159 | H67: 4497 | I67: 4662 | K67: 57 | L67: 50 | M67: 46 | N67: 57 | O67: 69 | P67: 51 | Q67: 73 | R67: 69 | S67: 62 | T67: 52 | U67: 67 | V67: 51 | W67: 86 | X67: 87 | Y67: 93 | Z67: 94 | AA67: 76 | AB67: 108 | AC67: 100 | AD67: 105 | AE67: 101 | AF67: 104 | AG67: 115 | AH67: 100 | AI67: 104 | AJ67: 115 | AK67: 117 | AL67: 109 | AM67: 98 | AN67: 100 | AO67: 111 | AP67: 114 | AQ67: 99 | AR67: 112 | AS67: 95 | AT67: 86 | AU67: 79 | AV67: 77 | AW67: 76 | AX67: 76 | AY67: 353 | AZ67: 365 | BA67: 375 | BB67: 373 | BC67: 316 | BD67: 378 | BE67: 318 | BF67: 341 | BG67: 264 | BH67: 245 | BI67: 252 | BJ67: 245 | BK67: 235 | BL67: 244 | BM67: 175 | BN67: 181 | BO67: 151 | BP67: 151 | BQ67: 122 | BR67: 124 | BS67: 91 | BT67: 92 | BU67: 56 | BV67: 77 | BW67: 65 | BX67: 129 | BY67: 14 | BZ67: 28 | CA67: 27 | CB67: 28 | CC67: 24 | CD67: 131 | CF67: 528 | CG67: 465 | CH67: 1947 | CI67: 172 | CK67: 107 | CL67: 479 | CM67: 1873 | CN67: 2547 | CO67: 1260 | CP67: 1774 | CQ67: 3194 | CR67: 1058 | CT67: 867 | CU67: 1988 | CV67: 4660
B68: 05 | C68: 61 | D68: 5660 | E68: P.S. MALLAY | F68: 557 | H68: 272 | I68: 285 | K68: 3 | L68: 3 | M68: 3 | N68: 3 | O68: 4 | P68: 3 | Q68: 4 | R68: 4 | S68: 4 | T68: 3 | U68: 4 | V68: 3 | W68: 5 | X68: 5 | Y68: 6 | Z68: 6 | AA68: 5 | AB68: 7 | AC68: 6 | AD68: 6 | AE68: 6 | AF68: 6 | AG68: 7 | AH68: 6 | AI68: 6 | AJ68: 7 | AK68: 7 | AL68: 7 | AM68: 6 | AN68: 6 | AO68: 7 | AP68: 7 | AQ68: 6 | AR68: 7 | AS68: 6 | AT68: 5 | AU68: 5 | AV68: 5 | AW68: 5 | AX68: 5 | AY68: 21 | AZ68: 22 | BA68: 23 | BB68: 23 | BC68: 19 | BD68: 23 | BE68: 19 | BF68: 21 | BG68: 16 | BH68: 15 | BI68: 15 | BJ68: 15 | BK68: 14 | BL68: 15 | BM68: 11 | BN68: 11 | BO68: 9 | BP68: 9 | BQ68: 7 | BR68: 8 | BS68: 6 | BT68: 6 | BU68: 3 | BV68: 5 | BW68: 4 | BX68: 8 | BY68: 0 | BZ68: 2 | CA68: 2 | CB68: 2 | CC68: 1 | CD68: 8 | CF68: 32 | CG68: 29 | CH68: 119 | CI68: 10 | CK68: 6 | CL68: 28 | CM68: 112 | CN68: 155 | CO68: 77 | CP68: 109 | CQ68: 194 | CR68: 65 | CT68: 53 | CU68: 122 | CV68: 283
B69: 05 | C69: 62 | D69: 5661 | E69: P.S. NAVA | F69: 110 | H69: 53 | I69: 57 | K69: 1 | L69: 1 | M69: 1 | N69: 1 | O69: 1 | P69: 1 | Q69: 1 | R69: 1 | S69: 1 | T69: 1 | U69: 1 | V69: 1 | W69: 1 | X69: 1 | Y69: 1 | Z69: 1 | AA69: 1 | AB69: 1 | AC69: 1 | AD69: 1 | AE69: 1 | AF69: 1 | AG69: 1 | AH69: 1 | AI69: 1 | AJ69: 1 | AK69: 1 | AL69: 1 | AM69: 1 | AN69: 1 | AO69: 1 | AP69: 1 | AQ69: 1 | AR69: 1 | AS69: 1 | AT69: 1 | AU69: 1 | AV69: 1 | AW69: 1 | AX69: 1 | AY69: 4 | AZ69: 4 | BA69: 5 | BB69: 5 | BC69: 4 | BD69: 5 | BE69: 4 | BF69: 4 | BG69: 3 | BH69: 3 | BI69: 3 | BJ69: 3 | BK69: 3 | BL69: 3 | BM69: 2 | BN69: 2 | BO69: 2 | BP69: 2 | BQ69: 1 | BR69: 2 | BS69: 1 | BT69: 1 | BU69: 1 | BV69: 1 | BW69: 0 | BX69: 2 | BY69: 0 | BZ69: 0 | CA69: 0 | CB69: 0 | CC69: 0 | CD69: 2 | CF69: 5 | CG69: 5 | CH69: 24 | CI69: 2 | CK69: 2 | CL69: 8 | CM69: 24 | CN69: 26 | CO69: 12 | CP69: 22 | CQ69: 39 | CR69: 13 | CT69: 10 | CU69: 20 | CV69: 57
B70: 05 | C70: 63 | D70: 5662 | E70: P.S. TINTA | F70: 333 | H70: 163 | I70: 170 | K70: 2 | L70: 2 | M70: 2 | N70: 2 | O70: 3 | P70: 2 | Q70: 3 | R70: 2 | S70: 2 | T70: 2 | U70: 2 | V70: 2 | W70: 3 | X70: 3 | Y70: 3 | Z70: 3 | AA70: 3 | AB70: 4 | AC70: 4 | AD70: 4 | AE70: 4 | AF70: 4 | AG70: 4 | AH70: 4 | AI70: 4 | AJ70: 4 | AK70: 4 | AL70: 4 | AM70: 4 | AN70: 4 | AO70: 4 | AP70: 4 | AQ70: 4 | AR70: 4 | AS70: 3 | AT70: 3 | AU70: 3 | AV70: 3 | AW70: 3 | AX70: 3 | AY70: 13 | AZ70: 13 | BA70: 14 | BB70: 14 | BC70: 11 | BD70: 14 | BE70: 12 | BF70: 12 | BG70: 10 | BH70: 9 | BI70: 9 | BJ70: 9 | BK70: 8 | BL70: 9 | BM70: 6 | BN70: 7 | BO70: 5 | BP70: 5 | BQ70: 4 | BR70: 5 | BS70: 3 | BT70: 3 | BU70: 2 | BV70: 3 | BW70: 2 | BX70: 4 | BY70: 0 | BZ70: 1 | CA70: 1 | CB70: 1 | CC70: 1 | CD70: 4 | CF70: 20 | CG70: 17 | CH70: 71 | CI70: 6 | CK70: 4 | CL70: 18 | CM70: 69 | CN70: 93 | CO70: 46 | CP70: 66 | CQ70: 116 | CR70: 36 | CT70: 31 | CU70: 74 | CV70: 170
B71: 05 | C71: 64 | D71: 5648 | E71: P.S. RAPAZ | F71: 884 | H71: 433 | I71: 451 | K71: 5 | L71: 5 | M71: 5 | N71: 5 | O71: 7 | P71: 5 | Q71: 7 | R71: 7 | S71: 6 | T71: 5 | U71: 6 | V71: 5 | W71: 8 | X71: 8 | Y71: 9 | Z71: 9 | AA71: 7 | AB71: 10 | AC71: 10 | AD71: 10 | AE71: 10 | AF71: 10 | AG71: 11 | AH71: 10 | AI71: 10 | AJ71: 11 | AK71: 11 | AL71: 10 | AM71: 9 | AN71: 10 | AO71: 11 | AP71: 11 | AQ71: 10 | AR71: 11 | AS71: 9 | AT71: 8 | AU71: 8 | AV71: 8 | AW71: 7 | AX71: 7 | AY71: 34 | AZ71: 35 | BA71: 36 | BB71: 36 | BC71: 30 | BD71: 37 | BE71: 31 | BF71: 33 | BG71: 26 | BH71: 24 | BI71: 24 | BJ71: 24 | BK71: 23 | BL71: 24 | BM71: 17 | BN71: 18 | BO71: 14 | BP71: 15 | BQ71: 12 | BR71: 12 | BS71: 9 | BT71: 9 | BU71: 5 | BV71: 7 | BW71: 6 | BX71: 12 | BY71: 2 | BZ71: 3 | CA71: 3 | CB71: 3 | CC71: 2 | CD71: 13 | CF71: 51 | CG71: 45 | CH71: 189 | CI71: 17 | CK71: 10 | CL71: 47 | CM71: 180 | CN71: 244 | CO71: 121 | CP71: 171 | CQ71: 311 | CR71: 101 | CT71: 82 | CU71: 192 | CV71: 452
A72: 150902 | C72: 65 | D72: 150902 | E72: DISTRITO ANDAJES | F72: 607 | H72: 287 | I72: 320 | J72: 0 | K72: 1 | L72: 5 | M72: 1 | N72: 4 | O72: 5 | P72: 3 | Q72: 2 | R72: 0 | S72: 2 | T72: 4 | U72: 3 | V72: 3 | W72: 3 | X72: 1 | Y72: 3 | Z72: 3 | AA72: 3 | AB72: 1 | AC72: 2 | AD72: 2 | AE72: 5 | AF72: 4 | AG72: 4 | AH72: 8 | AI72: 5 | AJ72: 4 | AK72: 1 | AL72: 6 | AM72: 2 | AN72: 2 | AO72: 4 | AP72: 4 | AQ72: 2 | AR72: 6 | AS72: 6 | AT72: 4 | AU72: 3 | AV72: 3 | AW72: 0 | AX72: 2 | AY72: 13 | AZ72: 10 | BA72: 10 | BB72: 9 | BC72: 9 | BD72: 6 | BE72: 12 | BF72: 15 | BG72: 16 | BH72: 9 | BI72: 9 | BJ72: 13 | BK72: 25 | BL72: 11 | BM72: 17 | BN72: 24 | BO72: 37 | BP72: 28 | BQ72: 13 | BR72: 24 | BS72: 15 | BT72: 23 | BU72: 14 | BV72: 28 | BW72: 40 | BX72: 51 | BY72: 0 | BZ72: 1 | CA72: 0 | CB72: 0 | CC72: 5 | CD72: 7 | CE72: 0 | CF72: 24 | CG72: 19 | CH72: 62 | CI72: 8 | CK72: 6 | CL72: 21 | CM72: 72 | CN72: 91 | CO72: 46 | CP72: 50 | CQ72: 166 | CR72: 273 | CT72: =SUM(U72:AD72) -> 24 | CU72: =SUM(AE72:AX72) -> 75 | CV72: =SUM(AY72:BN72) -> 208
B73: 05 | C73: 66 | D73: 5654 | E73: P.S. ANDAJES | F73: 607 | H73: 287 | I73: 320 | K73: 1 | L73: 5 | M73: 1 | N73: 4 | O73: 5 | P73: 3 | Q73: 2 | R73: 0 | S73: 2 | T73: 4 | U73: 3 | V73: 3 | W73: 3 | X73: 1 | Y73: 3 | Z73: 3 | AA73: 3 | AB73: 1 | AC73: 2 | AD73: 2 | AE73: 5 | AF73: 4 | AG73: 4 | AH73: 8 | AI73: 5 | AJ73: 4 | AK73: 1 | AL73: 6 | AM73: 2 | AN73: 2 | AO73: 4 | AP73: 4 | AQ73: 2 | AR73: 6 | AS73: 6 | AT73: 4 | AU73: 3 | AV73: 3 | AW73: 0 | AX73: 2 | AY73: 13 | AZ73: 10 | BA73: 10 | BB73: 9 | BC73: 9 | BD73: 6 | BE73: 12 | BF73: 15 | BG73: 16 | BH73: 9 | BI73: 9 | BJ73: 13 | BK73: 25 | BL73: 11 | BM73: 17 | BN73: 24 | BO73: 37 | BP73: 28 | BQ73: 13 | BR73: 24 | BS73: 15 | BT73: 23 | BU73: 14 | BV73: 28 | BW73: 40 | BX73: 51 | BY73: 0 | BZ73: 1 | CA73: 0 | CB73: 0 | CC73: 5 | CD73: 7 | CF73: 24 | CG73: 19 | CH73: 62 | CI73: 8 | CK73: =SUM(K73:L73) -> 6 | CL73: =SUM(M73:T73) -> 21 | CM73: =SUM(K73:AH73) -> 72 | CN73: =SUM(U73:AT73) -> 91 | CO73: =SUM(AI73:AT73) -> 46 | CP73: =SUM(AU73:BB73) -> 50 | CQ73: =SUM(BC73:BN73) -> 166 | CR73: =SUM(BO73:BX73) -> 273 | CT73: 24 | CU73: 75 | CV73: 208
A74: 150903 | C74: 67 | D74: 150903 | E74: DISTRITO CAUJUL | F74: 633 | H74: 308 | I74: 325 | K74: 4 | L74: 4 | M74: 3 | N74: 4 | O74: 3 | P74: 4 | Q74: 3 | R74: 2 | S74: 2 | T74: 0 | U74: 8 | V74: 9 | W74: 5 | X74: 0 | Y74: 4 | Z74: 7 | AA74: 1 | AB74: 2 | AC74: 6 | AD74: 6 | AE74: 3 | AF74: 3 | AG74: 6 | AH74: 4 | AI74: 5 | AJ74: 3 | AK74: 3 | AL74: 9 | AM74: 3 | AN74: 4 | AO74: 7 | AP74: 7 | AQ74: 4 | AR74: 7 | AS74: 4 | AT74: 4 | AU74: 4 | AV74: 5 | AW74: 3 | AX74: 5 | AY74: 20 | AZ74: 25 | BA74: 19 | BB74: 26 | BC74: 19 | BD74: 19 | BE74: 17 | BF74: 26 | BG74: 15 | BH74: 15 | BI74: 28 | BJ74: 14 | BK74: 14 | BL74: 16 | BM74: 17 | BN74: 22 | BO74: 19 | BP74: 18 | BQ74: 21 | BR74: 11 | BS74: 11 | BT74: 9 | BU74: 9 | BV74: 11 | BW74: 18 | BX74: 24 | BY74: 1 | BZ74: 2 | CA74: 2 | CB74: 2 | CC74: 2 | CD74: 10 | CE74: 0 | CF74: 23 | CG74: 28 | CH74: 125 | CI74: 15 | CK74: 8 | CL74: 21 | CM74: 93 | CN74: 124 | CO74: 60 | CP74: 107 | CQ74: 222 | CR74: 151 | CT74: 48 | CU74: 93 | CV74: 312
B75: 05 | C75: 68 | D75: 5655 | E75: P.S. CAUJUL | F75: 633 | H75: 308 | I75: 325 | K75: 4 | L75: 4 | M75: 3 | N75: 4 | O75: 3 | P75: 4 | Q75: 3 | R75: 2 | S75: 2 | T75: 0 | U75: 8 | V75: 9 | W75: 5 | X75: 0 | Y75: 4 | Z75: 7 | AA75: 1 | AB75: 2 | AC75: 6 | AD75: 6 | AE75: 3 | AF75: 3 | AG75: 6 | AH75: 4 | AI75: 5 | AJ75: 3 | AK75: 3 | AL75: 9 | AM75: 3 | AN75: 4 | AO75: 7 | AP75: 7 | AQ75: 4 | AR75: 7 | AS75: 4 | AT75: 4 | AU75: 4 | AV75: 5 | AW75: 3 | AX75: 5 | AY75: 20 | AZ75: 25 | BA75: 19 | BB75: 26 | BC75: 19 | BD75: 19 | BE75: 17 | BF75: 26 | BG75: 15 | BH75: 15 | BI75: 28 | BJ75: 14 | BK75: 14 | BL75: 16 | BM75: 17 | BN75: 22 | BO75: 19 | BP75: 18 | BQ75: 21 | BR75: 11 | BS75: 11 | BT75: 9 | BU75: 9 | BV75: 11 | BW75: 18 | BX75: 24 | BY75: 1 | BZ75: 2 | CA75: 2 | CB75: 2 | CC75: 2 | CD75: 10 | CF75: 23 | CG75: 28 | CH75: 125 | CI75: 15 | CK75: 8 | CL75: 21 | CM75: 93 | CN75: 124 | CO75: 60 | CP75: 107 | CQ75: 222 | CR75: 151 | CT75: 48 | CU75: 93 | CV75: 312
A76: 150904 | C76: 69 | D76: 150904 | E76: DISTRITO COCHAMARCA | F76: 1794 | H76: 951 | I76: 843 | K76: 6 | L76: 9 | M76: 14 | N76: 7 | O76: 7 | P76: 14 | Q76: 3 | R76: 6 | S76: 8 | T76: 8 | U76: 10 | V76: 7 | W76: 21 | X76: 14 | Y76: 10 | Z76: 8 | AA76: 10 | AB76: 9 | AC76: 9 | AD76: 15 | AE76: 15 | AF76: 20 | AG76: 18 | AH76: 13 | AI76: 15 | AJ76: 22 | AK76: 21 | AL76: 22 | AM76: 11 | AN76: 21 | AO76: 28 | AP76: 18 | AQ76: 27 | AR76: 30 | AS76: 23 | AT76: 14 | AU76: 33 | AV76: 18 | AW76: 25 | AX76: 26 | AY76: 102 | AZ76: 84 | BA76: 83 | BB76: 70 | BC76: 71 | BD76: 51 | BE76: 53 | BF76: 50 | BG76: 44 | BH76: 34 | BI76: 63 | BJ76: 58 | BK76: 48 | BL76: 43 | BM76: 56 | BN76: 31 | BO76: 32 | BP76: 29 | BQ76: 21 | BR76: 19 | BS76: 24 | BT76: 27 | BU76: 11 | BV76: 16 | BW76: 29 | BX76: 30 | BY76: 1 | BZ76: 2 | CA76: 3 | CB76: 4 | CC76: 6 | CD76: 18 | CE76: 0 | CF76: 98 | CG76: 106 | CH76: 347 | CI76: 43 | CK76: 15 | CL76: 67 | CM76: 261 | CN76: 431 | CO76: 252 | CP76: 441 | CQ76: 602 | CR76: 238 | CT76: 113 | CU76: 420 | CV76: 941
B77: 03 | C77: 70 | D77: 5783 | E77: P.S. COCHAMARCA | F77: 763 | H77: 405 | I77: 358 | K77: 2 | L77: 4 | M77: 6 | N77: 3 | O77: 3 | P77: 6 | Q77: 1 | R77: 2 | S77: 3 | T77: 3 | U77: 4 | V77: 3 | W77: 9 | X77: 6 | Y77: 4 | Z77: 3 | AA77: 4 | AB77: 4 | AC77: 4 | AD77: 6 | AE77: 6 | AF77: 9 | AG77: 8 | AH77: 6 | AI77: 6 | AJ77: 9 | AK77: 9 | AL77: 9 | AM77: 5 | AN77: 9 | AO77: 12 | AP77: 8 | AQ77: 11 | AR77: 13 | AS77: 10 | AT77: 6 | AU77: 14 | AV77: 8 | AW77: 10 | AX77: 11 | AY77: 44 | AZ77: 36 | BA77: 36 | BB77: 30 | BC77: 31 | BD77: 22 | BE77: 23 | BF77: 21 | BG77: 19 | BH77: 15 | BI77: 27 | BJ77: 25 | BK77: 20 | BL77: 18 | BM77: 24 | BN77: 13 | BO77: 14 | BP77: 12 | BQ77: 9 | BR77: 8 | BS77: 10 | BT77: 11 | BU77: 5 | BV77: 6 | BW77: 12 | BX77: 13 | BY77: 0 | BZ77: 1 | CA77: 1 | CB77: 2 | CC77: 2 | CD77: 8 | CF77: 42 | CG77: 46 | CH77: 149 | CI77: 18 | CK77: 6 | CL77: 27 | CM77: 109 | CN77: 183 | CO77: 107 | CP77: 189 | CQ77: 258 | CR77: 100 | CT77: 47 | CU77: 179 | CV77: 404
B78: 03 | C78: 71 | D78: 5784 | E78: P.S. COLCAPAMPA | F78: 851 | H78: 451 | I78: 400 | K78: 3 | L78: 4 | M78: 7 | N78: 3 | O78: 3 | P78: 7 | Q78: 2 | R78: 3 | S78: 4 | T78: 4 | U78: 5 | V78: 3 | W78: 10 | X78: 7 | Y78: 5 | Z78: 4 | AA78: 5 | AB78: 4 | AC78: 4 | AD78: 7 | AE78: 7 | AF78: 9 | AG78: 8 | AH78: 6 | AI78: 7 | AJ78: 11 | AK78: 10 | AL78: 11 | AM78: 5 | AN78: 10 | AO78: 13 | AP78: 8 | AQ78: 13 | AR78: 14 | AS78: 11 | AT78: 7 | AU78: 16 | AV78: 8 | AW78: 12 | AX78: 12 | AY78: 48 | AZ78: 40 | BA78: 39 | BB78: 33 | BC78: 33 | BD78: 24 | BE78: 25 | BF78: 24 | BG78: 21 | BH78: 16 | BI78: 30 | BJ78: 27 | BK78: 23 | BL78: 21 | BM78: 26 | BN78: 15 | BO78: 15 | BP78: 14 | BQ78: 10 | BR78: 9 | BS78: 12 | BT78: 13 | BU78: 5 | BV78: 8 | BW78: 14 | BX78: 14 | BY78: 1 | BZ78: 1 | CA78: 2 | CB78: 2 | CC78: 3 | CD78: 8 | CF78: 47 | CG78: 49 | CH78: 164 | CI78: 21 | CK78: 7 | CL78: 33 | CM78: 124 | CN78: 204 | CO78: 120 | CP78: 208 | CQ78: 285 | CR78: 114 | CT78: 54 | CU78: 198 | CV78: 445
B79: 03 | C79: 72 | D79: 5785 | E79: P.S. YARUCAYA | F79: 180 | H79: 95 | I79: 85 | K79: 1 | L79: 1 | M79: 1 | N79: 1 | O79: 1 | P79: 1 | Q79: 0 | R79: 1 | S79: 1 | T79: 1 | U79: 1 | V79: 1 | W79: 2 | X79: 1 | Y79: 1 | Z79: 1 | AA79: 1 | AB79: 1 | AC79: 1 | AD79: 2 | AE79: 2 | AF79: 2 | AG79: 2 | AH79: 1 | AI79: 2 | AJ79: 2 | AK79: 2 | AL79: 2 | AM79: 1 | AN79: 2 | AO79: 3 | AP79: 2 | AQ79: 3 | AR79: 3 | AS79: 2 | AT79: 1 | AU79: 3 | AV79: 2 | AW79: 3 | AX79: 3 | AY79: 10 | AZ79: 8 | BA79: 8 | BB79: 7 | BC79: 7 | BD79: 5 | BE79: 5 | BF79: 5 | BG79: 4 | BH79: 3 | BI79: 6 | BJ79: 6 | BK79: 5 | BL79: 4 | BM79: 6 | BN79: 3 | BO79: 3 | BP79: 3 | BQ79: 2 | BR79: 2 | BS79: 2 | BT79: 3 | BU79: 1 | BV79: 2 | BW79: 3 | BX79: 3 | BY79: 0 | BZ79: 0 | CA79: 0 | CB79: 0 | CC79: 1 | CD79: 2 | CF79: 9 | CG79: 11 | CH79: 34 | CI79: 4 | CK79: 2 | CL79: 7 | CM79: 28 | CN79: 44 | CO79: 25 | CP79: 44 | CQ79: 59 | CR79: 24 | CT79: 12 | CU79: 43 | CV79: 92
A80: 150905 | C80: 73 | D80: 150905 | E80: DISTRITO NAVAN | F80: 956 | H80: 475 | I80: 481 | K80: 7 | L80: 3 | M80: 3 | N80: 5 | O80: 3 | P80: 3 | Q80: 1 | R80: 6 | S80: 4 | T80: 4 | U80: 5 | V80: 4 | W80: 8 | X80: 2 | Y80: 6 | Z80: 3 | AA80: 7 | AB80: 4 | AC80: 4 | AD80: 3 | AE80: 7 | AF80: 9 | AG80: 3 | AH80: 5 | AI80: 8 | AJ80: 13 | AK80: 8 | AL80: 11 | AM80: 7 | AN80: 5 | AO80: 4 | AP80: 6 | AQ80: 5 | AR80: 15 | AS80: 8 | AT80: 14 | AU80: 9 | AV80: 12 | AW80: 7 | AX80: 4 | AY80: 31 | AZ80: 28 | BA80: 21 | BB80: 23 | BC80: 19 | BD80: 34 | BE80: 42 | BF80: 31 | BG80: 26 | BH80: 29 | BI80: 34 | BJ80: 35 | BK80: 45 | BL80: 29 | BM80: 31 | BN80: 31 | BO80: 32 | BP80: 26 | BQ80: 25 | BR80: 22 | BS80: 19 | BT80: 19 | BU80: 14 | BV80: 16 | BW80: 22 | BX80: 27 | BY80: 0 | BZ80: 3 | CA80: 2 | CB80: 4 | CC80: 1 | CD80: 12 | CE80: 0 | CF80: 43 | CG80: 51 | CH80: 180 | CI80: 14 | CK80: 10 | CL80: 29 | CM80: 109 | CN80: 174 | CO80: 104 | CP80: 135 | CQ80: 386 | CR80: 222 | CT80: 46 | CU80: 160 | CV80: 489
B81: 05 | C81: 74 | D81: 5656 | E81: P.S. NAVAN | F81: 956 | H81: 475 | I81: 481 | K81: 7 | L81: 3 | M81: 3 | N81: 5 | O81: 3 | P81: 3 | Q81: 1 | R81: 6 | S81: 4 | T81: 4 | U81: 5 | V81: 4 | W81: 8 | X81: 2 | Y81: 6 | Z81: 3 | AA81: 7 | AB81: 4 | AC81: 4 | AD81: 3 | AE81: 7 | AF81: 9 | AG81: 3 | AH81: 5 | AI81: 8 | AJ81: 13 | AK81: 8 | AL81: 11 | AM81: 7 | AN81: 5 | AO81: 4 | AP81: 6 | AQ81: 5 | AR81: 15 | AS81: 8 | AT81: 14 | AU81: 9 | AV81: 12 | AW81: 7 | AX81: 4 | AY81: 31 | AZ81: 28 | BA81: 21 | BB81: 23 | BC81: 19 | BD81: 34 | BE81: 42 | BF81: 31 | BG81: 26 | BH81: 29 | BI81: 34 | BJ81: 35 | BK81: 45 | BL81: 29 | BM81: 31 | BN81: 31 | BO81: 32 | BP81: 26 | BQ81: 25 | BR81: 22 | BS81: 19 | BT81: 19 | BU81: 14 | BV81: 16 | BW81: 22 | BX81: 27 | BY81: 0 | BZ81: 3 | CA81: 2 | CB81: 4 | CC81: 1 | CD81: 12 | CF81: 43 | CG81: 51 | CH81: 180 | CI81: 14 | CK81: 10 | CL81: 29 | CM81: 109 | CN81: 174 | CO81: 104 | CP81: 135 | CQ81: 386 | CR81: 222 | CT81: 46 | CU81: 160 | CV81: 489
A82: 150906 | C82: 75 | D82: 150906 | E82: DISTRITO PACHANGARA | F82: 3278 | H82: 1649 | I82: 1629 | K82: 22 | L82: 33 | M82: 36 | N82: 30 | O82: 30 | P82: 30 | Q82: 32 | R82: 38 | S82: 30 | T82: 18 | U82: 30 | V82: 18 | W82: 15 | X82: 16 | Y82: 17 | Z82: 22 | AA82: 30 | AB82: 22 | AC82: 27 | AD82: 17 | AE82: 30 | AF82: 22 | AG82: 12 | AH82: 28 | AI82: 33 | AJ82: 31 | AK82: 33 | AL82: 27 | AM82: 23 | AN82: 22 | AO82: 25 | AP82: 32 | AQ82: 27 | AR82: 25 | AS82: 26 | AT82: 28 | AU82: 33 | AV82: 22 | AW82: 19 | AX82: 16 | AY82: 110 | AZ82: 93 | BA82: 115 | BB82: 143 | BC82: 109 | BD82: 100 | BE82: 100 | BF82: 111 | BG82: 119 | BH82: 101 | BI82: 104 | BJ82: 83 | BK82: 68 | BL82: 90 | BM82: 82 | BN82: 96 | BO82: 79 | BP82: 81 | BQ82: 65 | BR82: 74 | BS82: 59 | BT82: 52 | BU82: 54 | BV82: 50 | BW82: 55 | BX82: 58 | BY82: 3 | BZ82: 11 | CA82: 18 | CB82: 11 | CC82: 15 | CD82: 67 | CE82: 0 | CF82: 130 | CG82: 123 | CH82: 631 | CI82: 100 | CK82: 55 | CL82: 244 | CM82: 605 | CN82: 638 | CO82: 332 | CP82: 551 | CQ82: 1163 | CR82: 627 | CT82: 214 | CU82: 514 | CV82: 1624
B83: 05 | C83: 76 | D83: 5657 | E83: C.S. CHURIN | F83: 2524 | H83: 1271 | I83: 1253 | K83: 17 | L83: 25 | M83: 28 | N83: 23 | O83: 23 | P83: 23 | Q83: 24 | R83: 29 | S83: 23 | T83: 14 | U83: 23 | V83: 14 | W83: 11 | X83: 12 | Y83: 13 | Z83: 17 | AA83: 23 | AB83: 17 | AC83: 21 | AD83: 13 | AE83: 23 | AF83: 17 | AG83: 10 | AH83: 22 | AI83: 25 | AJ83: 24 | AK83: 25 | AL83: 21 | AM83: 17 | AN83: 17 | AO83: 19 | AP83: 24 | AQ83: 21 | AR83: 19 | AS83: 20 | AT83: 22 | AU83: 25 | AV83: 17 | AW83: 15 | AX83: 12 | AY83: 85 | AZ83: 72 | BA83: 88 | BB83: 110 | BC83: 84 | BD83: 77 | BE83: 77 | BF83: 86 | BG83: 92 | BH83: 78 | BI83: 81 | BJ83: 64 | BK83: 53 | BL83: 69 | BM83: 63 | BN83: 73 | BO83: 61 | BP83: 62 | BQ83: 50 | BR83: 57 | BS83: 46 | BT83: 40 | BU83: 42 | BV83: 38 | BW83: 43 | BX83: 45 | BY83: 3 | BZ83: 9 | CA83: 14 | CB83: 9 | CC83: 11 | CD83: 52 | CF83: 101 | CG83: 94 | CH83: 487 | CI83: 77 | CK83: 42 | CL83: 187 | CM83: 465 | CN83: 490 | CO83: 254 | CP83: 424 | CQ83: 897 | CR83: 484 | CT83: 164 | CU83: 395 | CV83: 1252
B84: 05 | C84: 77 | D84: 5658 | E84: P.S. PACHANGARA | F84: 359 | H84: 181 | I84: 178 | K84: 2 | L84: 4 | M84: 4 | N84: 3 | O84: 3 | P84: 3 | Q84: 4 | R84: 4 | S84: 3 | T84: 2 | U84: 3 | V84: 2 | W84: 2 | X84: 2 | Y84: 2 | Z84: 2 | AA84: 3 | AB84: 2 | AC84: 3 | AD84: 2 | AE84: 3 | AF84: 2 | AG84: 1 | AH84: 3 | AI84: 4 | AJ84: 3 | AK84: 4 | AL84: 3 | AM84: 3 | AN84: 2 | AO84: 3 | AP84: 4 | AQ84: 3 | AR84: 3 | AS84: 3 | AT84: 3 | AU84: 4 | AV84: 2 | AW84: 2 | AX84: 2 | AY84: 12 | AZ84: 10 | BA84: 13 | BB84: 16 | BC84: 12 | BD84: 11 | BE84: 11 | BF84: 12 | BG84: 13 | BH84: 11 | BI84: 11 | BJ84: 9 | BK84: 7 | BL84: 10 | BM84: 9 | BN84: 11 | BO84: 9 | BP84: 9 | BQ84: 7 | BR84: 8 | BS84: 6 | BT84: 6 | BU84: 6 | BV84: 6 | BW84: 6 | BX84: 6 | BY84: 0 | BZ84: 1 | CA84: 2 | CB84: 1 | CC84: 2 | CD84: 7 | CF84: 13 | CG84: 14 | CH84: 69 | CI84: 11 | CK84: 6 | CL84: 26 | CM84: 64 | CN84: 70 | CO84: 38 | CP84: 61 | CQ84: 127 | CR84: 69 | CT84: 23 | CU84: 57 | CV84: 178
B85: 05 | C85: 78 | D85: 5649 | E85: P.S. HUANCAHUASI | F85: 395 | H85: 197 | I85: 198 | K85: 3 | L85: 4 | M85: 4 | N85: 4 | O85: 4 | P85: 4 | Q85: 4 | R85: 5 | S85: 4 | T85: 2 | U85: 4 | V85: 2 | W85: 2 | X85: 2 | Y85: 2 | Z85: 3 | AA85: 4 | AB85: 3 | AC85: 3 | AD85: 2 | AE85: 4 | AF85: 3 | AG85: 1 | AH85: 3 | AI85: 4 | AJ85: 4 | AK85: 4 | AL85: 3 | AM85: 3 | AN85: 3 | AO85: 3 | AP85: 4 | AQ85: 3 | AR85: 3 | AS85: 3 | AT85: 3 | AU85: 4 | AV85: 3 | AW85: 2 | AX85: 2 | AY85: 13 | AZ85: 11 | BA85: 14 | BB85: 17 | BC85: 13 | BD85: 12 | BE85: 12 | BF85: 13 | BG85: 14 | BH85: 12 | BI85: 12 | BJ85: 10 | BK85: 8 | BL85: 11 | BM85: 10 | BN85: 12 | BO85: 9 | BP85: 10 | BQ85: 8 | BR85: 9 | BS85: 7 | BT85: 6 | BU85: 6 | BV85: 6 | BW85: 6 | BX85: 7 | BY85: 0 | BZ85: 1 | CA85: 2 | CB85: 1 | CC85: 2 | CD85: 8 | CF85: 16 | CG85: 15 | CH85: 75 | CI85: 12 | CK85: 7 | CL85: 31 | CM85: 76 | CN85: 78 | CO85: 40 | CP85: 66 | CQ85: 139 | CR85: 74 | CT85: 27 | CU85: 62 | CV85: 194
C86: 79 | E86: PROVINCIA HUARAL | F86: 1419 | H86: 766 | I86: 653 | K86: 8 | L86: 7 | M86: 8 | N86: 4 | O86: 6 | P86: 5 | Q86: 8 | R86: 13 | S86: 10 | T86: 10 | U86: 13 | V86: 7 | W86: 7 | X86: 9 | Y86: 9 | Z86: 6 | AA86: 10 | AB86: 8 | AC86: 11 | AD86: 7 | AE86: 10 | AF86: 5 | AG86: 11 | AH86: 10 | AI86: 9 | AJ86: 10 | AK86: 12 | AL86: 9 | AM86: 10 | AN86: 12 | AO86: 7 | AP86: 11 | AQ86: 14 | AR86: 9 | AS86: 8 | AT86: 9 | AU86: 12 | AV86: 11 | AW86: 9 | AX86: 8 | AY86: 53 | AZ86: 45 | BA86: 56 | BB86: 43 | BC86: 71 | BD86: 46 | BE86: 60 | BF86: 43 | BG86: 38 | BH86: 45 | BI86: 51 | BJ86: 39 | BK86: 41 | BL86: 36 | BM86: 43 | BN86: 44 | BO86: 40 | BP86: 38 | BQ86: 31 | BR86: 24 | BS86: 28 | BT86: 21 | BU86: 23 | BV86: 16 | BW86: 39 | BX86: 43 | BY86: 1 | BZ86: 5 | CA86: 3 | CB86: 3 | CC86: 3 | CD86: 18 | CE86: 0 | CF86: 46 | CG86: 48 | CH86: 261 | CI86: 26 | CK86: 15 | CL86: 64 | CM86: 202 | CN86: 243 | CO86: 120 | CP86: 237 | CQ86: 557 | CR86: 303 | CT86: 87 | CU86: 196 | CV86: 754
C87: 80 | D87: 150600 | E87: IHUARI - ACOTAMA | F87: 1419 | H87: 766 | I87: 653 | K87: 8 | L87: 7 | M87: 8 | N87: 4 | O87: 6 | P87: 5 | Q87: 8 | R87: 13 | S87: 10 | T87: 10 | U87: 13 | V87: 7 | W87: 7 | X87: 9 | Y87: 9 | Z87: 6 | AA87: 10 | AB87: 8 | AC87: 11 | AD87: 7 | AE87: 10 | AF87: 5 | AG87: 11 | AH87: 10 | AI87: 9 | AJ87: 10 | AK87: 12 | AL87: 9 | AM87: 10 | AN87: 12 | AO87: 7 | AP87: 11 | AQ87: 14 | AR87: 9 | AS87: 8 | AT87: 9 | AU87: 12 | AV87: 11 | AW87: 9 | AX87: 8 | AY87: 53 | AZ87: 45 | BA87: 56 | BB87: 43 | BC87: 71 | BD87: 46 | BE87: 60 | BF87: 43 | BG87: 38 | BH87: 45 | BI87: 51 | BJ87: 39 | BK87: 41 | BL87: 36 | BM87: 43 | BN87: 44 | BO87: 40 | BP87: 38 | BQ87: 31 | BR87: 24 | BS87: 28 | BT87: 21 | BU87: 23 | BV87: 16 | BW87: 39 | BX87: 43 | BY87: 1 | BZ87: 5 | CA87: 3 | CB87: 3 | CC87: 3 | CD87: 18 | CF87: 46 | CG87: 48 | CH87: 261 | CI87: 26 | CK87: 15 | CL87: 64 | CM87: 202 | CN87: 243 | CO87: 120 | CP87: 237 | CQ87: 557 | CR87: 303 | CT87: 87 | CU87: 196 | CV87: 754
A88: 150606 | B88: 03 | C88: 81
C89: 82 | E89: MICRORED HUAURA | F89: =SUM(H89:I89) -> 41083 | H89: =K89+M89+O89+Q89+S89+U89+W89+Y89+AA89+AC89+AE89+AG89+AI89+AK89+AM89+AO89+AQ89+AS89+AU89+AW89+AY89+BA89+BC89+BE89+BG89+BI89+BK89+BM89+BO89+BQ89+BS89+BU89+BW89 -> 20895 | I89: =L89+N89+P89+R89+T89+V89+X89+Z89+AB89+AD89+AF89+AH89+AJ89+AL89+AN89+AP89+AR89+AT89+AV89+AX89+AZ89+BB89+BD89+BF89+BH89+BJ89+BL89+BN89+BP89+BR89+BT89+BV89+BX89 -> 20188 | K89: =K13+K24 -> 261 | L89: =L13+L24 -> 275 | M89: 325 | N89: 290 | O89: 345 | P89: 332 | Q89: 340 | R89: 301 | S89: 260 | T89: 249 | U89: 263 | V89: 260 | W89: 382 | X89: 383 | Y89: 404 | Z89: 321 | AA89: 389 | AB89: 336 | AC89: 366 | AD89: 332 | AE89: 372 | AF89: 343 | AG89: 375 | AH89: 365 | AI89: 389 | AJ89: 362 | AK89: 349 | AL89: 341 | AM89: 342 | AN89: 332 | AO89: 324 | AP89: 327 | AQ89: 320 | AR89: 346 | AS89: 298 | AT89: 313 | AU89: 320 | AV89: 310 | AW89: 319 | AX89: 310 | AY89: 1573 | AZ89: 1505 | BA89: 1911 | BB89: 1821 | BC89: 1769 | BD89: 1653 | BE89: 1535 | BF89: 1537 | BG89: 1473 | BH89: 1351 | BI89: 1248 | BJ89: 1279 | BK89: 1074 | BL89: 1151 | BM89: 954 | BN89: 952 | BO89: 799 | BP89: 749 | BQ89: 604 | BR89: 584 | BS89: 458 | BT89: 428 | BU89: 340 | BV89: 291 | BW89: 414 | BX89: =BX13+BX24 -> 459 | BY89: 36 | BZ89: 119 | CA89: 159 | CB89: 142 | CC89: 116 | CD89: 651 | CE89: =CE13+CE24 -> 0 | CF89: 1743 | CG89: 1606 | CH89: 9146 | CI89: 916 | CK89: =CK13+CK24 -> 536 | CL89: =CL13+CL24 -> 2442 | CM89: 7869 | CN89: 8934 | CO89: 4043 | CP89: 8069 | CQ89: 15976 | CR89: 5126 | CT89: =CT13+CT24 -> 3436 | CU89: 6757 | CV89: 22786
B90: 1 | C90: 83 | E90: MICRORED HUALMAY | F90: =SUM(H90:I90) -> 95317 | H90: =K90+M90+O90+Q90+S90+U90+W90+Y90+AA90+AC90+AE90+AG90+AI90+AK90+AM90+AO90+AQ90+AS90+AU90+AW90+AY90+BA90+BC90+BE90+BG90+BI90+BK90+BM90+BO90+BQ90+BS90+BU90+BW90 -> 47471 | I90: =L90+N90+P90+R90+T90+V90+X90+Z90+AB90+AD90+AF90+AH90+AJ90+AL90+AN90+AP90+AR90+AT90+AV90+AX90+AZ90+BB90+BD90+BF90+BH90+BJ90+BL90+BN90+BP90+BR90+BT90+BV90+BX90 -> 47846 | K90: =K44+K20+K16+K12 -> 663 | L90: =L44+L20+L16+L12 -> 648 | M90: 712 | N90: 705 | O90: 740 | P90: 728 | Q90: 719 | R90: 739 | S90: 636 | T90: 601 | U90: 628 | V90: 615 | W90: 833 | X90: 803 | Y90: 849 | Z90: 841 | AA90: 857 | AB90: 859 | AC90: 813 | AD90: 820 | AE90: 779 | AF90: 730 | AG90: 812 | AH90: 753 | AI90: 864 | AJ90: 779 | AK90: 809 | AL90: 793 | AM90: 764 | AN90: 737 | AO90: 736 | AP90: 753 | AQ90: 739 | AR90: 682 | AS90: 732 | AT90: 717 | AU90: 706 | AV90: 672 | AW90: 672 | AX90: 698 | AY90: 3699 | AZ90: 3482 | BA90: 4020 | BB90: 4151 | BC90: 3634 | BD90: 3741 | BE90: 3505 | BF90: 3626 | BG90: 3211 | BH90: 3250 | BI90: 2994 | BJ90: 3042 | BK90: 2647 | BL90: 2570 | BM90: 2216 | BN90: 2271 | BO90: 1816 | BP90: 1883 | BQ90: 1485 | BR90: 1604 | BS90: 1201 | BT90: 1286 | BU90: 871 | BV90: 983 | BW90: 1109 | BX90: =BX44+BX20+BX16+BX12 -> 1284 | BY90: 71 | BZ90: 348 | CA90: 336 | CB90: 315 | CC90: 312 | CD90: 1597 | CE90: =CE44+CE20+CE16+CE12 -> 0 | CF90: 3792 | CG90: 3522 | CH90: 21292 | CI90: 2383 | CK90: =CK44+CK20+CK16+CK12 -> 1311 | CL90: =CL44+CL20+CL16+CL12 -> 5580 | CM90: 17883 | CN90: 20097 | CO90: 9105 | CP90: 18100 | CQ90: 36707 | CR90: 13522 | CT90: =CT44+CT20+CT16+CT12 -> 7918 | CU90: 14927 | CV90: 52059
B91: 2 | C91: 84 | E91: MICRORED SAYAN | F91: 31235 | H91: 16132 | I91: 15103 | K91: =K50+K30+K76++K87 -> 249 | L91: =L50+L30+L76++L87 -> 228 | M91: 236 | N91: 214 | O91: 248 | P91: 221 | Q91: 253 | R91: 234 | S91: 231 | T91: 220 | U91: 277 | V91: 246 | W91: 271 | X91: 274 | Y91: 260 | Z91: 288 | AA91: 270 | AB91: 253 | AC91: 276 | AD91: 264 | AE91: 293 | AF91: 215 | AG91: 270 | AH91: 255 | AI91: 282 | AJ91: 269 | AK91: 275 | AL91: 281 | AM91: 273 | AN91: 257 | AO91: 278 | AP91: 298 | AQ91: 280 | AR91: 279 | AS91: 257 | AT91: 233 | AU91: 287 | AV91: 263 | AW91: 267 | AX91: 247 | AY91: 1252 | AZ91: 1242 | BA91: 1354 | BB91: 1301 | BC91: 1236 | BD91: 1202 | BE91: 1196 | BF91: 1097 | BG91: 1043 | BH91: 997 | BI91: 1020 | BJ91: 900 | BK91: 807 | BL91: 757 | BM91: 729 | BN91: 672 | BO91: 624 | BP91: 520 | BQ91: 491 | BR91: 449 | BS91: 396 | BT91: 307 | BU91: 275 | BV91: 256 | BW91: 376 | BX91: =BX50+BX30+BX76++BX87 -> 364 | BY91: 36 | BZ91: 121 | CA91: 126 | CB91: 128 | CC91: 101 | CD91: 582 | CE91: =CE50+CE30+CE76++CE87 -> 0 | CF91: 1277 | CG91: 1320 | CH91: 6739 | CI91: 740 | CK91: =CK50+CK30+CK76++CK87 -> 477 | CL91: =CL50+CL30+CL76++CL87 -> 1857 | CM91: 6046 | CN91: 6974 | CO91: 3262 | CP91: 6213 | CQ91: 11656 | CR91: 4058 | CT91: =CT50+CT30+CT76++CT87 -> 2679 | CU91: 5359 | CV91: 16805
B92: 3 | C92: 85 | E92: MICRORED VEGUETA | F92: 27987 | H92: 14082 | I92: 13905 | K92: =K58 -> 279 | L92: =L58 -> 283 | M92: 319 | N92: 287 | O92: 279 | P92: 252 | Q92: 297 | R92: 267 | S92: 261 | T92: 269 | U92: 243 | V92: 250 | W92: 288 | X92: 244 | Y92: 289 | Z92: 260 | AA92: 252 | AB92: 260 | AC92: 248 | AD92: 230 | AE92: 249 | AF92: 241 | AG92: 233 | AH92: 250 | AI92: 307 | AJ92: 239 | AK92: 274 | AL92: 239 | AM92: 256 | AN92: 208 | AO92: 262 | AP92: 216 | AQ92: 238 | AR92: 198 | AS92: 218 | AT92: 223 | AU92: 221 | AV92: 206 | AW92: 210 | AX92: 218 | AY92: 975 | AZ92: 1017 | BA92: 1250 | BB92: 1285 | BC92: 1136 | BD92: 1215 | BE92: 1059 | BF92: 1081 | BG92: 896 | BH92: 896 | BI92: 766 | BJ92: 781 | BK92: 655 | BL92: 652 | BM92: 561 | BN92: 584 | BO92: 444 | BP92: 462 | BQ92: 370 | BR92: 345 | BS92: 286 | BT92: 253 | BU92: 215 | BV92: 197 | BW92: 246 | BX92: =BX58 -> 297 | BY92: 41 | BZ92: 127 | CA92: 139 | CB92: 152 | CC92: 144 | CD92: 684 | CE92: =CE58 -> 0 | CF92: 1177 | CG92: 1061 | CH92: 6275 | CI92: 1038 | CK92: =CK58 -> 562 | CL92: =CL58 -> 2231 | CM92: 6330 | CN92: 6415 | CO92: 2878 | CP92: 5382 | CQ92: 10282 | CR92: 3115 | CT92: =CT58 -> 2564 | CU92: 4706 | CV92: 14809
B93: 4 | C93: 86 | E93: MICRORED CHURIN - OYON | F93: 20293 | H93: 10068 | I93: 10225 | K93: =K82+K66+K72+K74+K80+K18+K35+K40 -> 118 | L93: =L82+L66+L72+L74+L80+L18+L35+L40 -> 128 | M93: 119 | N93: 136 | O93: 145 | P93: 118 | Q93: 142 | R93: 157 | S93: 132 | T93: 108 | U93: 143 | V93: 113 | W93: 151 | X93: 145 | Y93: 175 | Z93: 161 | AA93: 156 | AB93: 176 | AC93: 178 | AD93: 172 | AE93: 193 | AF93: 181 | AG93: 187 | AH93: 188 | AI93: 202 | AJ93: 222 | AK93: 213 | AL93: 206 | AM93: 180 | AN93: 180 | AO93: 212 | AP93: 211 | AQ93: 194 | AR93: 217 | AS93: 192 | AT93: 173 | AU93: 173 | AV93: 167 | AW93: 144 | AX93: 135 | AY93: 701 | AZ93: 707 | BA93: 740 | BB93: 765 | BC93: 635 | BD93: 723 | BE93: 670 | BF93: 680 | BG93: 597 | BH93: 541 | BI93: 590 | BJ93: 538 | BK93: 557 | BL93: 570 | BM93: 489 | BN93: 498 | BO93: 460 | BP93: 436 | BQ93: 382 | BR93: 381 | BS93: 302 | BT93: 300 | BU93: 239 | BV93: 297 | BW93: 357 | BX93: =BX82+BX66+BX72+BX74+BX80+BX18+BX35+BX40 -> 495 | BY93: 22 | BZ93: 60 | CA93: 67 | CB93: 58 | CC93: 61 | CD93: 299 | CE93: 0 | CF93: 977 | CG93: 903 | CH93: 3954 | CI93: 425 | CK93: 246 | CL93: 1057 | CM93: 3622 | CN93: 4721 | CO93: 2402 | CP93: 3532 | CQ93: 7088 | CR93: 3649 | CT93: 1570 | CU93: 3770 | CV93: 10001

Sheet etapas y mredes
C2: POBLACION ASIGNADA POR DISTRITO SIERRA, HOSPITAL, MICROREDES Y POR ETAPAS DE VIDA 2022
C7: DISTRITO | P7: MICROREDES
C8: 65 | D8: 67 | E8: 11 | F8: 74 | G8: 60 | H8: 28 | I8: 76 | J8: 33 | N8: 4 | P8: 82 | Q8: 83 | R8: 84 | S8: 85 | T8: 86
B9: POBLACION POR ETAPAS DE VIDA | C9: Andajes | D9: Caujul | E9: Checras | F9: Naván | G9: Oyón | H9: Paccho | I9: Pachangara | J9: Santa Leonor | K9: TOTAL | L9: PORC. (%) | N9: HOSPITAL HUACHO | P9: HUAURA | Q9: HUALMAY | R9: SAYAN | S9: VEGUETA | T9: CHURIN OYON | U9: Total Microredes
A10: 75 | B10: Neonatal (0-28dias) | C10: =VLOOKUP(C$8,Poblacion!$C$8:$CV$93,$A10) -> 0 | D10: =VLOOKUP(D$8,Poblacion!$C$8:$CV$93,$A10) -> 1 | E10: =VLOOKUP(E$8,Poblacion!$C$8:$CV$93,$A10) -> 0 | F10: =VLOOKUP(F$8,Poblacion!$C$8:$CV$93,$A10) -> 0 | G10: =VLOOKUP(G$8,Poblacion!$C$8:$CV$93,$A10) -> 14 | H10: =VLOOKUP(H$8,Poblacion!$C$8:$CV$93,$A10) -> 1 | I10: =VLOOKUP(I$8,Poblacion!$C$8:$CV$93,$A10) -> 3 | J10: =VLOOKUP(J$8,Poblacion!$C$8:$CV$93,$A10) -> 1 | K10: =SUM(C10:J10) -> 20 | L10: =IFERROR((K10/$K$20)*100,0) -> 0.1132823563 | N10: =VLOOKUP(N$8,Poblacion!$C$8:$CV$93,$A10) -> 24 | P10: =VLOOKUP(P$8,Poblacion!$C$8:$CV$93,$A10) -> 36 | Q10: =VLOOKUP(Q$8,Poblacion!$C$8:$CV$93,$A10) -> 71 | R10: =VLOOKUP(R$8,Poblacion!$C$8:$CV$93,$A10) -> 36 | S10: =VLOOKUP(S$8,Poblacion!$C$8:$CV$93,$A10) -> 41 | T10: =VLOOKUP(T$8,Poblacion!$C$8:$CV$93,$A10) -> 22 | U10: =SUM(P10:T10) -> 206
A11: 87 | B11: Infantil (Men.1año) | C11: =VLOOKUP(C$8,Poblacion!$C$8:$CV$93,$A11) -> 6 | D11: =VLOOKUP(D$8,Poblacion!$C$8:$CV$93,$A11) -> 8 | E11: =VLOOKUP(E$8,Poblacion!$C$8:$CV$93,$A11) -> 14 | F11: =VLOOKUP(F$8,Poblacion!$C$8:$CV$93,$A11) -> 10 | G11: =VLOOKUP(G$8,Poblacion!$C$8:$CV$93,$A11) -> 107 | H11: =VLOOKUP(H$8,Poblacion!$C$8:$CV$93,$A11) -> 14 | I11: =VLOOKUP(I$8,Poblacion!$C$8:$CV$93,$A11) -> 42 | J11: =VLOOKUP(J$8,Poblacion!$C$8:$CV$93,$A11) -> 10 | K11: =SUM(C11:J11) -> 211 | L11: =IFERROR((K11/$K$20)*100,0) -> 1.195128859 | N11: =VLOOKUP(N$8,Poblacion!$C$8:$CV$93,$A11) -> 513 | P11: =VLOOKUP(P$8,Poblacion!$C$8:$CV$93,$A11) -> 536 | Q11: =VLOOKUP(Q$8,Poblacion!$C$8:$CV$93,$A11) -> 1311 | R11: =VLOOKUP(R$8,Poblacion!$C$8:$CV$93,$A11) -> 477 | S11: =VLOOKUP(S$8,Poblacion!$C$8:$CV$93,$A11) -> 562 | T11: =VLOOKUP(T$8,Poblacion!$C$8:$CV$93,$A11) -> 246 | U11: =SUM(P11:T11) -> 3132
A12: 88 | B12: Pre-escolar (01-04años) | C12: =VLOOKUP(C$8,Poblacion!$C$8:$CV$93,$A12) -> 21 | D12: =VLOOKUP(D$8,Poblacion!$C$8:$CV$93,$A12) -> 21 | E12: =VLOOKUP(E$8,Poblacion!$C$8:$CV$93,$A12) -> 28 | F12: =VLOOKUP(F$8,Poblacion!$C$8:$CV$93,$A12) -> 29 | G12: =VLOOKUP(G$8,Poblacion!$C$8:$CV$93,$A12) -> 479 | H12: =VLOOKUP(H$8,Poblacion!$C$8:$CV$93,$A12) -> 81 | I12: =VLOOKUP(I$8,Poblacion!$C$8:$CV$93,$A12) -> 187 | J12: =VLOOKUP(J$8,Poblacion!$C$8:$CV$93,$A12) -> 53 | K12: 899 | L12: 5.092041914 | N12: =VLOOKUP(N$8,Poblacion!$C$8:$CV$93,$A12) -> 2502 | P12: =VLOOKUP(P$8,Poblacion!$C$8:$CV$93,$A12) -> 2442 | Q12: =VLOOKUP(Q$8,Poblacion!$C$8:$CV$93,$A12) -> 5580 | R12: =VLOOKUP(R$8,Poblacion!$C$8:$CV$93,$A12) -> 1857 | S12: =VLOOKUP(S$8,Poblacion!$C$8:$CV$93,$A12) -> 2231 | T12: =VLOOKUP(T$8,Poblacion!$C$8:$CV$93,$A12) -> 1057 | U12: 13167
A13: 89 | B13: Niño (0-11años) | C13: =VLOOKUP(C$8,Poblacion!$C$8:$CV$93,$A13) -> 72 | D13: =VLOOKUP(D$8,Poblacion!$C$8:$CV$93,$A13) -> 93 | E13: =VLOOKUP(E$8,Poblacion!$C$8:$CV$93,$A13) -> 110 | F13: =VLOOKUP(F$8,Poblacion!$C$8:$CV$93,$A13) -> 109 | G13: =VLOOKUP(G$8,Poblacion!$C$8:$CV$93,$A13) -> 1873 | H13: =VLOOKUP(H$8,Poblacion!$C$8:$CV$93,$A13) -> 216 | I13: =VLOOKUP(I$8,Poblacion!$C$8:$CV$93,$A13) -> 465 | J13: =VLOOKUP(J$8,Poblacion!$C$8:$CV$93,$A13) -> 159 | K13: 3097 | L13: 17.54177287 | N13: =VLOOKUP(N$8,Poblacion!$C$8:$CV$93,$A13) -> 8529 | P13: =VLOOKUP(P$8,Poblacion!$C$8:$CV$93,$A13) -> 7869 | Q13: =VLOOKUP(Q$8,Poblacion!$C$8:$CV$93,$A13) -> 17883 | R13: =VLOOKUP(R$8,Poblacion!$C$8:$CV$93,$A13) -> 6046 | S13: =VLOOKUP(S$8,Poblacion!$C$8:$CV$93,$A13) -> 6330 | T13: =VLOOKUP(T$8,Poblacion!$C$8:$CV$93,$A13) -> 3622 | U13: 41750
A14: 90 | B14: Escolar (05-17años) | C14: =VLOOKUP(C$8,Poblacion!$C$8:$CV$93,$A14) -> 91 | D14: =VLOOKUP(D$8,Poblacion!$C$8:$CV$93,$A14) -> 124 | E14: =VLOOKUP(E$8,Poblacion!$C$8:$CV$93,$A14) -> 184 | F14: =VLOOKUP(F$8,Poblacion!$C$8:$CV$93,$A14) -> 174 | G14: =VLOOKUP(G$8,Poblacion!$C$8:$CV$93,$A14) -> 2547 | H14: =VLOOKUP(H$8,Poblacion!$C$8:$CV$93,$A14) -> 247 | I14: =VLOOKUP(I$8,Poblacion!$C$8:$CV$93,$A14) -> 490 | J14: =VLOOKUP(J$8,Poblacion!$C$8:$CV$93,$A14) -> 198 | K14: 4055 | L14: 22.96799773 | N14: =VLOOKUP(N$8,Poblacion!$C$8:$CV$93,$A14) -> 10027 | P14: =VLOOKUP(P$8,Poblacion!$C$8:$CV$93,$A14) -> 8934 | Q14: =VLOOKUP(Q$8,Poblacion!$C$8:$CV$93,$A14) -> 20097 | R14: =VLOOKUP(R$8,Poblacion!$C$8:$CV$93,$A14) -> 6974 | S14: =VLOOKUP(S$8,Poblacion!$C$8:$CV$93,$A14) -> 6415 | T14: =VLOOKUP(T$8,Poblacion!$C$8:$CV$93,$A14) -> 4721 | U14: 47141
A15: 91 | B15: Adolescente (12-17años) | C15: =VLOOKUP(C$8,Poblacion!$C$8:$CV$93,$A15) -> 46 | D15: =VLOOKUP(D$8,Poblacion!$C$8:$CV$93,$A15) -> 60 | E15: =VLOOKUP(E$8,Poblacion!$C$8:$CV$93,$A15) -> 116 | F15: =VLOOKUP(F$8,Poblacion!$C$8:$CV$93,$A15) -> 104 | G15: =VLOOKUP(G$8,Poblacion!$C$8:$CV$93,$A15) -> 1260 | H15: =VLOOKUP(H$8,Poblacion!$C$8:$CV$93,$A15) -> 126 | I15: =VLOOKUP(I$8,Poblacion!$C$8:$CV$93,$A15) -> 254 | J15: =VLOOKUP(J$8,Poblacion!$C$8:$CV$93,$A15) -> 102 | K15: 2068 | L15: 11.71339564 | N15: =VLOOKUP(N$8,Poblacion!$C$8:$CV$93,$A15) -> 4513 | P15: =VLOOKUP(P$8,Poblacion!$C$8:$CV$93,$A15) -> 4043 | Q15: =VLOOKUP(Q$8,Poblacion!$C$8:$CV$93,$A15) -> 9105 | R15: =VLOOKUP(R$8,Poblacion!$C$8:$CV$93,$A15) -> 3262 | S15: =VLOOKUP(S$8,Poblacion!$C$8:$CV$93,$A15) -> 2878 | T15: =VLOOKUP(T$8,Poblacion!$C$8:$CV$93,$A15) -> 2402 | U15: 21690
A16: 92 | B16: Adulto Joven (18-29años) | C16: =VLOOKUP(C$8,Poblacion!$C$8:$CV$93,$A16) -> 50 | D16: =VLOOKUP(D$8,Poblacion!$C$8:$CV$93,$A16) -> 107 | E16: =VLOOKUP(E$8,Poblacion!$C$8:$CV$93,$A16) -> 143 | F16: =VLOOKUP(F$8,Poblacion!$C$8:$CV$93,$A16) -> 135 | G16: =VLOOKUP(G$8,Poblacion!$C$8:$CV$93,$A16) -> 1774 | H16: =VLOOKUP(H$8,Poblacion!$C$8:$CV$93,$A16) -> 224 | I16: =VLOOKUP(I$8,Poblacion!$C$8:$CV$93,$A16) -> 424 | J16: =VLOOKUP(J$8,Poblacion!$C$8:$CV$93,$A16) -> 180 | K16: 3037 | L16: 17.2019258 | N16: =VLOOKUP(N$8,Poblacion!$C$8:$CV$93,$A16) -> 8907 | P16: =VLOOKUP(P$8,Poblacion!$C$8:$CV$93,$A16) -> 8069 | Q16: =VLOOKUP(Q$8,Poblacion!$C$8:$CV$93,$A16) -> 18100 | R16: =VLOOKUP(R$8,Poblacion!$C$8:$CV$93,$A16) -> 6213 | S16: =VLOOKUP(S$8,Poblacion!$C$8:$CV$93,$A16) -> 5382 | T16: =VLOOKUP(T$8,Poblacion!$C$8:$CV$93,$A16) -> 3532 | U16: 41296
A17: 93 | B17: Adulto (30-59años) | C17: =VLOOKUP(C$8,Poblacion!$C$8:$CV$93,$A17) -> 166 | D17: =VLOOKUP(D$8,Poblacion!$C$8:$CV$93,$A17) -> 222 | E17: =VLOOKUP(E$8,Poblacion!$C$8:$CV$93,$A17) -> 309 | F17: =VLOOKUP(F$8,Poblacion!$C$8:$CV$93,$A17) -> 386 | G17: =VLOOKUP(G$8,Poblacion!$C$8:$CV$93,$A17) -> 3194 | H17: =VLOOKUP(H$8,Poblacion!$C$8:$CV$93,$A17) -> 569 | I17: =VLOOKUP(I$8,Poblacion!$C$8:$CV$93,$A17) -> 897 | J17: =VLOOKUP(J$8,Poblacion!$C$8:$CV$93,$A17) -> 419 | K17: 6162 | L17: 34.90229397 | N17: =VLOOKUP(N$8,Poblacion!$C$8:$CV$93,$A17) -> 20181 | P17: =VLOOKUP(P$8,Poblacion!$C$8:$CV$93,$A17) -> 15976 | Q17: =VLOOKUP(Q$8,Poblacion!$C$8:$CV$93,$A17) -> 36707 | R17: =VLOOKUP(R$8,Poblacion!$C$8:$CV$93,$A17) -> 11656 | S17: =VLOOKUP(S$8,Poblacion!$C$8:$CV$93,$A17) -> 10282 | T17: =VLOOKUP(T$8,Poblacion!$C$8:$CV$93,$A17) -> 7088 | U17: 81709
A18: 94 | B18: Adu.Mayor (60 a MAS) | C18: =VLOOKUP(C$8,Poblacion!$C$8:$CV$93,$A18) -> 273 | D18: =VLOOKUP(D$8,Poblacion!$C$8:$CV$93,$A18) -> 151 | E18: =VLOOKUP(E$8,Poblacion!$C$8:$CV$93,$A18) -> 319 | F18: =VLOOKUP(F$8,Poblacion!$C$8:$CV$93,$A18) -> 222 | G18: =VLOOKUP(G$8,Poblacion!$C$8:$CV$93,$A18) -> 1058 | H18: =VLOOKUP(H$8,Poblacion!$C$8:$CV$93,$A18) -> 473 | I18: =VLOOKUP(I$8,Poblacion!$C$8:$CV$93,$A18) -> 484 | J18: =VLOOKUP(J$8,Poblacion!$C$8:$CV$93,$A18) -> 311 | K18: 3291 | L18: 18.64061172 | N18: =VLOOKUP(N$8,Poblacion!$C$8:$CV$93,$A18) -> 8733 | P18: =VLOOKUP(P$8,Poblacion!$C$8:$CV$93,$A18) -> 5126 | Q18: =VLOOKUP(Q$8,Poblacion!$C$8:$CV$93,$A18) -> 13522 | R18: =VLOOKUP(R$8,Poblacion!$C$8:$CV$93,$A18) -> 4058 | S18: =VLOOKUP(S$8,Poblacion!$C$8:$CV$93,$A18) -> 3115 | T18: =VLOOKUP(T$8,Poblacion!$C$8:$CV$93,$A18) -> 3649 | U18: 29470
A19: 85 | B19: Gestantes | C19: =VLOOKUP(C$8,Poblacion!$C$8:$CV$93,$A19) -> 8 | D19: =VLOOKUP(D$8,Poblacion!$C$8:$CV$93,$A19) -> 15 | E19: =VLOOKUP(E$8,Poblacion!$C$8:$CV$93,$A19) -> 36 | F19: =VLOOKUP(F$8,Poblacion!$C$8:$CV$93,$A19) -> 14 | G19: =VLOOKUP(G$8,Poblacion!$C$8:$CV$93,$A19) -> 172 | H19: =VLOOKUP(H$8,Poblacion!$C$8:$CV$93,$A19) -> 19 | I19: =VLOOKUP(I$8,Poblacion!$C$8:$CV$93,$A19) -> 77 | J19: =VLOOKUP(J$8,Poblacion!$C$8:$CV$93,$A19) -> 26 | K19: 367 | L19: 2.078731238 | N19: =VLOOKUP(N$8,Poblacion!$C$8:$CV$93,$A19) -> 921 | P19: =VLOOKUP(P$8,Poblacion!$C$8:$CV$93,$A19) -> 916 | Q19: =VLOOKUP(Q$8,Poblacion!$C$8:$CV$93,$A19) -> 2383 | R19: =VLOOKUP(R$8,Poblacion!$C$8:$CV$93,$A19) -> 740 | S19: =VLOOKUP(S$8,Poblacion!$C$8:$CV$93,$A19) -> 1038 | T19: =VLOOKUP(T$8,Poblacion!$C$8:$CV$93,$A19) -> 425 | U19: 5502
B20: TOTAL | C20: =C13+C15+C16+C17+C18 -> 607 | D20: =D13+D15+D16+D17+D18 -> 633 | E20: 997 | F20: 956 | G20: 9159 | H20: 1608 | I20: 2524 | J20: 1171 | K20: =K13+K15+K16+K17+K18 -> 17655 | L20: =IFERROR((K20/$K$20)*100,0) -> 100 | N20: =N13+N15+N16+N17+N18 -> 50863 | P20: 41083 | Q20: 95317 | R20: 31235 | S20: 27987 | T20: 20293 | U20: 215915
B21: =Interfaz!$A$22 -> Elaboración: Área de Estadística - RIS Huaura Oyón.
G25: 1 | H25: =VLOOKUP($G$25,Poblacion!$C$8:$E$93,3,FALSE) -> HUAURA - OYON
B26: POBLACION POR ETAPAS DE VIDA | C26: TOTAL | E26: PORC. (%) | H26: =+"POBLACION POR ETAPAS DE VIDA DEL "&$H$25 -> POBLACION POR ETAPAS DE VIDA DEL HUAURA - OYON
A27: 75 | B27: Neonatal (0-28dias) | C27: =VLOOKUP($G$25,Poblacion!$C$8:$CV$93,$A27) -> 230 | E27: =IFERROR(($C27/$C$37)*100,0) -> 0.08621400565 | H27: =B30 -> Niño (0-11años) | I27: =C30 -> 50279
A28: 87 | B28: Infantil (Men.1año) | C28: =VLOOKUP($G$25,Poblacion!$C$8:$CV$93,$A28) -> 3645 | E28: =IFERROR(($C28/$C$37)*100,0) -> 1.366304568 | H28: =B32 -> Adolescente (12-17años) | I28: 26203
A29: 88 | B29: Pre-escolar (01-04años) | C29: =VLOOKUP($G$25,Poblacion!$C$8:$CV$93,$A29) -> 15669 | E29: 5.873422846 | H29: Adulto Joven (18-29años) | I29: 50203
A30: 89 | B30: Niño (0-11años) | C30: =VLOOKUP($G$25,Poblacion!$C$8:$CV$93,$A30) -> 50279 | E30: 18.84675648 | H30: Adulto (30-59años) | I30: 101890
A31: 90 | B31: Escolar (05-17años) | C31: =VLOOKUP($G$25,Poblacion!$C$8:$CV$93,$A31) -> 57168 | E31: 21.42905337 | H31: Adu.Mayor (60 a MAS) | I31: 38203
A32: 91 | B32: Adolescente (12-17años) | C32: =VLOOKUP($G$25,Poblacion!$C$8:$CV$93,$A32) -> 26203 | E32: 9.822024305
A33: 92 | B33: Adulto Joven (18-29años) | C33: =VLOOKUP($G$25,Poblacion!$C$8:$CV$93,$A33) -> 50203 | E33: 18.81826837
A34: 93 | B34: Adulto (30-59años) | C34: =VLOOKUP($G$25,Poblacion!$C$8:$CV$93,$A34) -> 101890 | E34: 38.1928045
A35: 94 | B35: Adu.Mayor (60 a MAS) | C35: =VLOOKUP($G$25,Poblacion!$C$8:$CV$93,$A35) -> 38203 | E35: 14.32014634
A36: 85 | B36: Gestantes | C36: =VLOOKUP($G$25,Poblacion!$C$8:$CV$93,$A36) -> 6423 | E36: 2.407619819
B37: TOTAL | C37: =C30+C32+C33+C34+C35 -> 266778 | E37: 100
B38: =Interfaz!$A$22 -> Elaboración: Área de Estadística - RIS Huaura Oyón.

Sheet Pobla_EESS
D2: POBLACIÓN SEGÚN DISTRITOS Y EE.SS - 2022
D8: SIN MICRORED | K8: MICRORED HUALMAY
D9: DISTRITO | E9: POBLACIÓN | F9: EE.SS | G9: POBLACIÓN | H9: MASCULINO | I9: FEMENINO | K9: DISTRITO | L9: POBLACIÓN | M9: EE.SS | N9: POBLACIÓN | O9: MASCULINO | P9: FEMENINO
D10: HUACHO | E10: =SUM(G10) -> 50863 | F10: HOSPITAL HUACHO | G10: =VLOOKUP($F10,Poblacion!$E$8:$I$87,2,FALSE) -> 50863 | H10: =VLOOKUP($F10,Poblacion!$E$8:$I$87,4,FALSE) -> 24915 | I10: =VLOOKUP($F10,Poblacion!$E$8:$I$87,5,FALSE) -> 25948 | K10: HUALMAY | L10: =SUM(N10:N12) -> 29514 | M10: C.S. HUALMAY | N10: =VLOOKUP($M10,Poblacion!$E$8:$I$87,2,FALSE) -> 14182 | O10: =VLOOKUP($M10,Poblacion!$E$8:$I$87,4,FALSE) -> 7037 | P10: =VLOOKUP($M10,Poblacion!$E$8:$I$87,5,FALSE) -> 7145
D11: HUACHO | F11: CLINICA SAN PEDRO | G11: 0 | K11: HUALMAY | M11: P.S. DGO. MANDAMIENTO | N11: =VLOOKUP($M11,Poblacion!$E$8:$I$87,2,FALSE) -> 10610 | O11: =VLOOKUP($M11,Poblacion!$E$8:$I$87,4,FALSE) -> 5264 | P11: =VLOOKUP($M11,Poblacion!$E$8:$I$87,5,FALSE) -> 5346
D12: HUACHO | F12: ESSALUD GUSTAVO LA NATA | G12: 0 | K12: HUALMAY | M12: P.S. CAMPO ALEGRE | N12: =VLOOKUP($M12,Poblacion!$E$8:$I$87,2,FALSE) -> 4722 | O12: =VLOOKUP($M12,Poblacion!$E$8:$I$87,4,FALSE) -> 2342 | P12: =VLOOKUP($M12,Poblacion!$E$8:$I$87,5,FALSE) -> 2380
D13: HUACHO | F13: CLINICA SAN BARTOLOME | G13: 0 | K13: S.MARIA | L13: =SUM(N13:N17) -> 40189 | M13: C.S. SANTA MARIA | N13: =VLOOKUP($M13,Poblacion!$E$8:$I$87,2,FALSE) -> 11252 | O13: =VLOOKUP($M13,Poblacion!$E$8:$I$87,4,FALSE) -> 5639 | P13: =VLOOKUP($M13,Poblacion!$E$8:$I$87,5,FALSE) -> 5613
D14: HUACHO | F14: GOLD ESTANDAR EIRL. | G14: 0 | K14: S.MARIA | M14: P.S. CHONTA | N14: =VLOOKUP($M14,Poblacion!$E$8:$I$87,2,FALSE) -> 6028 | O14: =VLOOKUP($M14,Poblacion!$E$8:$I$87,4,FALSE) -> 3019 | P14: =VLOOKUP($M14,Poblacion!$E$8:$I$87,5,FALSE) -> 3009
D15: CARQUIN | F15: INSITUTO NACIONAL PENITENCIARIO CARQUIN | G15: 0 | K15: S.MARIA | M15: P.S. ZAPATA | N15: =VLOOKUP($M15,Poblacion!$E$8:$I$87,2,FALSE) -> 4007 | O15: =VLOOKUP($M15,Poblacion!$E$8:$I$87,4,FALSE) -> 2005 | P15: =VLOOKUP($M15,Poblacion!$E$8:$I$87,5,FALSE) -> 2002
F16: OTROS ESTABLECIMIENTOS | G16: 0 | K16: S.MARIA | M16: P.S. AMADO VELASQUEZ | N16: =VLOOKUP($M16,Poblacion!$E$8:$I$87,2,FALSE) -> 11252 | O16: =VLOOKUP($M16,Poblacion!$E$8:$I$87,4,FALSE) -> 5639 | P16: =VLOOKUP($M16,Poblacion!$E$8:$I$87,5,FALSE) -> 5613
D17: TOTAL SIN MICRORED | G17: =SUM(G10:G16) -> 50863 | H17: =SUM(H10:H16) -> 24915 | I17: =SUM(I10:I16) -> 25948 | K17: S.MARIA | M17: P.S. SAN BARTOLOME | N17: =VLOOKUP($M17,Poblacion!$E$8:$I$87,2,FALSE) -> 7650 | O17: =VLOOKUP($M17,Poblacion!$E$8:$I$87,4,FALSE) -> 3837 | P17: =VLOOKUP($M17,Poblacion!$E$8:$I$87,5,FALSE) -> 3813
D18: ='etapas y mredes'!B21 -> Elaboración: Área de Estadística - RIS Huaura Oyón. | K18: CARQUIN | L18: =N18 -> 6806 | M18: P.S. CARQUIN | N18: =VLOOKUP($M18,Poblacion!$E$8:$I$87,2,FALSE) -> 6806 | O18: =VLOOKUP($M18,Poblacion!$E$8:$I$87,4,FALSE) -> 3475 | P18: =VLOOKUP($M18,Poblacion!$E$8:$I$87,5,FALSE) -> 3331
K19: HUACHO | L19: =N19 -> 18808 | M19: C.S. MANZANARES | N19: =VLOOKUP($M19,Poblacion!$E$8:$I$87,2,FALSE) -> 18808 | O19: =VLOOKUP($M19,Poblacion!$E$8:$I$87,4,FALSE) -> 9214 | P19: =VLOOKUP($M19,Poblacion!$E$8:$I$87,5,FALSE) -> 9594
K20: TOTAL MCR HUALMAY | M20: TOTAL MICRORED HUALMAY | N20: =SUM(N10:N19) -> 95317 | O20: =SUM(O10:O19) -> 47471 | P20: =SUM(P10:P19) -> 47846
K21: =D18 -> Elaboración: Área de Estadística - RIS Huaura Oyón.
D24: MICRORED HUAURA | K24: MICRORED VEGUETA
D25: DISTRITO | E25: POBLACIÓN | F25: EE.SS | G25: POBLACIÓN | H25: MASCULINO | I25: FEMENINO | K25: DISTRITO | L25: POBLACIÓN | M25: EE.SS | N25: POBLACIÓN | O25: MASCULINO | P25: FEMENINO
D26: HUAURA | E26: =SUM(G26:G30) -> 38463 | F26: C.S. HUAURA | G26: =VLOOKUP($F26,Poblacion!$E$8:$I$87,2,FALSE) -> 19231 | H26: =VLOOKUP($F26,Poblacion!$E$8:$I$87,4,FALSE) -> 9753 | I26: =VLOOKUP($F26,Poblacion!$E$8:$I$87,5,FALSE) -> 9478 | K26: VEGUETA | L26: =SUM(N26:N31) -> 27987 | M26: C.S. VEGUETA | N26: =VLOOKUP($M26,Poblacion!$E$8:$I$87,2,FALSE) -> 7844 | O26: =VLOOKUP($M26,Poblacion!$E$8:$I$87,4,FALSE) -> 3948 | P26: =VLOOKUP($M26,Poblacion!$E$8:$I$87,5,FALSE) -> 3896
D27: HUAURA | F27: C.S. SOCORRO | G27: =VLOOKUP($F27,Poblacion!$E$8:$I$87,2,FALSE) -> 12693 | H27: =VLOOKUP($F27,Poblacion!$E$8:$I$87,4,FALSE) -> 6436 | I27: =VLOOKUP($F27,Poblacion!$E$8:$I$87,5,FALSE) -> 6257 | K27: VEGUETA | M27: P.S. MAZO | N27: =VLOOKUP($M27,Poblacion!$E$8:$I$87,2,FALSE) -> 2805 | O27: =VLOOKUP($M27,Poblacion!$E$8:$I$87,4,FALSE) -> 1412 | P27: =VLOOKUP($M27,Poblacion!$E$8:$I$87,5,FALSE) -> 1393
D28: HUAURA | F28: P.S. HUMAYA | G28: =VLOOKUP($F28,Poblacion!$E$8:$I$87,2,FALSE) -> 3466 | H28: =VLOOKUP($F28,Poblacion!$E$8:$I$87,4,FALSE) -> 1757 | I28: =VLOOKUP($F28,Poblacion!$E$8:$I$87,5,FALSE) -> 1709 | K28: VEGUETA | M28: P.S. PRIMAVERA | N28: =VLOOKUP($M28,Poblacion!$E$8:$I$87,2,FALSE) -> 6156 | O28: =VLOOKUP($M28,Poblacion!$E$8:$I$87,4,FALSE) -> 3096 | P28: =VLOOKUP($M28,Poblacion!$E$8:$I$87,5,FALSE) -> 3060
D29: HUAURA | F29: P.S. VILCAHUAURA | G29: =VLOOKUP($F29,Poblacion!$E$8:$I$87,2,FALSE) -> 2691 | H29: =VLOOKUP($F29,Poblacion!$E$8:$I$87,4,FALSE) -> 1363 | I29: =VLOOKUP($F29,Poblacion!$E$8:$I$87,5,FALSE) -> 1328 | K29: VEGUETA | M29: P.S. MARIATEGUI | N29: =VLOOKUP($M29,Poblacion!$E$8:$I$87,2,FALSE) -> 7257 | O29: =VLOOKUP($M29,Poblacion!$E$8:$I$87,4,FALSE) -> 3653 | P29: =VLOOKUP($M29,Poblacion!$E$8:$I$87,5,FALSE) -> 3604
D30: HUAURA | F30: P.S. PEÑICO | G30: =VLOOKUP($F30,Poblacion!$E$8:$I$87,2,FALSE) -> 382 | H30: =VLOOKUP($F30,Poblacion!$E$8:$I$87,4,FALSE) -> 195 | I30: =VLOOKUP($F30,Poblacion!$E$8:$I$87,5,FALSE) -> 187 | K30: VEGUETA | M30: P.S. MEDIO MUNDO | N30: =VLOOKUP($M30,Poblacion!$E$8:$I$87,2,FALSE) -> 3642 | O30: =VLOOKUP($M30,Poblacion!$E$8:$I$87,4,FALSE) -> 1831 | P30: =VLOOKUP($M30,Poblacion!$E$8:$I$87,5,FALSE) -> 1811
D31: AMBAR | E31: =SUM(G31:G32) -> 2620 | F31: C.S. AMBAR | G31: =VLOOKUP($F31,Poblacion!$E$8:$I$87,2,FALSE) -> 1576 | H31: =VLOOKUP($F31,Poblacion!$E$8:$I$87,4,FALSE) -> 837 | I31: =VLOOKUP($F31,Poblacion!$E$8:$I$87,5,FALSE) -> 739 | K31: VEGUETA | M31: P.S. TIROLER | N31: =VLOOKUP($M31,Poblacion!$E$8:$I$87,2,FALSE) -> 283 | O31: =VLOOKUP($M31,Poblacion!$E$8:$I$87,4,FALSE) -> 142 | P31: =VLOOKUP($M31,Poblacion!$E$8:$I$87,5,FALSE) -> 141
D32: AMBAR | F32: P.S. AYNACA | G32: =VLOOKUP($F32,Poblacion!$E$8:$I$87,2,FALSE) -> 1044 | H32: =VLOOKUP($F32,Poblacion!$E$8:$I$87,4,FALSE) -> 554 | I32: =VLOOKUP($F32,Poblacion!$E$8:$I$87,5,FALSE) -> 490 | K32: TOTAL MCR VEGUETA | N32: =SUM(N26:N31) -> 27987 | O32: =SUM(O26:O31) -> 14082 | P32: =SUM(P26:P31) -> 13905
D33: TOTAL MCR HUAURA | F33: TOTAL MICRORED HUAURA | G33: =SUM(G26:G32) -> 41083 | H33: =SUM(H26:H32) -> 20895 | I33: 20188 | K33: =K21 -> Elaboración: Área de Estadística - RIS Huaura Oyón.
D34: =K21 -> Elaboración: Área de Estadística - RIS Huaura Oyón.
D38: MICRORED SAYAN | K38: MICRORED CHURIN OYÓN
D39: DISTRITO | E39: POBLACIÓN | F39: EE.SS | G39: POBLACIÓN | H39: MASCULINO | I39: FEMENINO | K39: DISTRITO | L39: POBLACIÓN | M39: EE.SS | N39: POBLACIÓN | O39: MASCULINO | P39: FEMENINO
D40: SAYAN | E40: =SUM(G40:G46) -> 25538 | F40: C.S. SAYAN | G40: =VLOOKUP($F40,Poblacion!$E$8:$I$87,2,FALSE) -> 8160 | H40: =VLOOKUP($F40,Poblacion!$E$8:$I$87,4,FALSE) -> 4174 | I40: =VLOOKUP($F40,Poblacion!$E$8:$I$87,5,FALSE) -> 3986 | K40: PACHANGARA | L40: =SUM(N40:N42) -> 3278 | M40: C.S. CHURIN | N40: =VLOOKUP(M40,Poblacion!$E$5:$I$88,2,FALSE) -> 2524 | O40: =VLOOKUP(M40,Poblacion!$E$5:$I$88,4,FALSE) -> 1271 | P40: =VLOOKUP(M40,Poblacion!$E$5:$I$88,5,FALSE) -> 1253
D41: SAYAN | F41: C.S. 9 DE OCTUBRE | G41: =VLOOKUP($F41,Poblacion!$E$8:$I$87,2,FALSE) -> 6893 | H41: =VLOOKUP($F41,Poblacion!$E$8:$I$87,4,FALSE) -> 3519 | I41: =VLOOKUP($F41,Poblacion!$E$8:$I$87,5,FALSE) -> 3374 | K41: PACHANGARA | M41: P.S. PACHANGARA | N41: =VLOOKUP(M41,Poblacion!$E$5:$I$88,2,FALSE) -> 359 | O41: =VLOOKUP(M41,Poblacion!$E$5:$I$88,4,FALSE) -> 181 | P41: =VLOOKUP(M41,Poblacion!$E$5:$I$88,5,FALSE) -> 178
D42: SAYAN | F42: P.S. CHAMBARA | G42: =VLOOKUP($F42,Poblacion!$E$8:$I$87,2,FALSE) -> 770 | H42: =VLOOKUP($F42,Poblacion!$E$8:$I$87,4,FALSE) -> 390 | I42: =VLOOKUP($F42,Poblacion!$E$8:$I$87,5,FALSE) -> 380 | K42: PACHANGARA | M42: P.S. HUANCAHUASI | N42: =VLOOKUP(M42,Poblacion!$E$5:$I$88,2,FALSE) -> 395 | O42: =VLOOKUP(M42,Poblacion!$E$5:$I$88,4,FALSE) -> 197 | P42: =VLOOKUP(M42,Poblacion!$E$5:$I$88,5,FALSE) -> 198
D43: SAYAN | F43: P.S. LA MERCED | G43: =VLOOKUP($F43,Poblacion!$E$8:$I$87,2,FALSE) -> 1025 | H43: =VLOOKUP($F43,Poblacion!$E$8:$I$87,4,FALSE) -> 524 | I43: =VLOOKUP($F43,Poblacion!$E$8:$I$87,5,FALSE) -> 501 | K43: OYON | L43: =SUM(N43:N47) -> 11043 | M43: C.S. OYON | N43: =VLOOKUP(M43,Poblacion!$E$5:$I$88,2,FALSE) -> 9159 | O43: =VLOOKUP(M43,Poblacion!$E$5:$I$88,4,FALSE) -> 4497 | P43: =VLOOKUP(M43,Poblacion!$E$5:$I$88,5,FALSE) -> 4662
D44: SAYAN | F44: P.S. LA VILLA | G44: =VLOOKUP($F44,Poblacion!$E$8:$I$87,2,FALSE) -> 7150 | H44: =VLOOKUP($F44,Poblacion!$E$8:$I$87,4,FALSE) -> 3649 | I44: =VLOOKUP($F44,Poblacion!$E$8:$I$87,5,FALSE) -> 3501 | K44: OYON | M44: P.S. MALLAY | N44: =VLOOKUP(M44,Poblacion!$E$5:$I$88,2,FALSE) -> 557 | O44: =VLOOKUP(M44,Poblacion!$E$5:$I$88,4,FALSE) -> 272 | P44: =VLOOKUP(M44,Poblacion!$E$5:$I$88,5,FALSE) -> 285
D45: SAYAN | F45: P.S. EL AHORCADO | G45: =VLOOKUP($F45,Poblacion!$E$8:$I$87,2,FALSE) -> 770 | H45: =VLOOKUP($F45,Poblacion!$E$8:$I$87,4,FALSE) -> 390 | I45: =VLOOKUP($F45,Poblacion!$E$8:$I$87,5,FALSE) -> 380 | K45: OYON | M45: P.S. NAVA | N45: =VLOOKUP(M45,Poblacion!$E$5:$I$88,2,FALSE) -> 110 | O45: =VLOOKUP(M45,Poblacion!$E$5:$I$88,4,FALSE) -> 53 | P45: =VLOOKUP(M45,Poblacion!$E$5:$I$88,5,FALSE) -> 57
D46: SAYAN | F46: P.S. LA UNION | G46: =VLOOKUP($F46,Poblacion!$E$8:$I$87,2,FALSE) -> 770 | H46: =VLOOKUP($F46,Poblacion!$E$8:$I$87,4,FALSE) -> 390 | I46: =VLOOKUP($F46,Poblacion!$E$8:$I$87,5,FALSE) -> 380 | K46: OYON | M46: P.S. TINTA | N46: =VLOOKUP(M46,Poblacion!$E$5:$I$88,2,FALSE) -> 333 | O46: =VLOOKUP(M46,Poblacion!$E$5:$I$88,4,FALSE) -> 163 | P46: =VLOOKUP(M46,Poblacion!$E$5:$I$88,5,FALSE) -> 170
D47: L.PRADO | E47: =SUM(G47:G50) -> 2484 | F47: P.S. AUQUIMARCA | G47: =VLOOKUP($F47,Poblacion!$E$8:$I$87,2,FALSE) -> 126 | H47: =VLOOKUP($F47,Poblacion!$E$8:$I$87,4,FALSE) -> 69 | I47: =VLOOKUP($F47,Poblacion!$E$8:$I$87,5,FALSE) -> 57 | K47: OYON | M47: P.S. RAPAZ | N47: =VLOOKUP(M47,Poblacion!$E$5:$I$88,2,FALSE) -> 884 | O47: =VLOOKUP(M47,Poblacion!$E$5:$I$88,4,FALSE) -> 433 | P47: =VLOOKUP(M47,Poblacion!$E$5:$I$88,5,FALSE) -> 451
D48: L.PRADO | F48: P.S. PARAN | G48: =VLOOKUP($F48,Poblacion!$E$8:$I$87,2,FALSE) -> 856 | H48: =VLOOKUP($F48,Poblacion!$E$8:$I$87,4,FALSE) -> 477 | I48: =VLOOKUP($F48,Poblacion!$E$8:$I$87,5,FALSE) -> 379 | K48: ANDAJES | L48: =N48 -> 607 | M48: P.S. ANDAJES | N48: =VLOOKUP(M48,Poblacion!$E$5:$I$88,2,FALSE) -> 607 | O48: =VLOOKUP(M48,Poblacion!$E$5:$I$88,4,FALSE) -> 287 | P48: =VLOOKUP(M48,Poblacion!$E$5:$I$88,5,FALSE) -> 320
D49: L.PRADO | F49: P.S. SANTA CRUZ | G49: =VLOOKUP($F49,Poblacion!$E$8:$I$87,2,FALSE) -> 495 | H49: =VLOOKUP($F49,Poblacion!$E$8:$I$87,4,FALSE) -> 274 | I49: =VLOOKUP($F49,Poblacion!$E$8:$I$87,5,FALSE) -> 221 | K49: CAUJUL | L49: =N49 -> 633 | M49: P.S. CAUJUL | N49: =VLOOKUP(M49,Poblacion!$E$5:$I$88,2,FALSE) -> 633 | O49: =VLOOKUP(M49,Poblacion!$E$5:$I$88,4,FALSE) -> 308 | P49: =VLOOKUP(M49,Poblacion!$E$5:$I$88,5,FALSE) -> 325
D50: L.PRADO | F50: P.S. HUANANGUI | G50: =VLOOKUP($F50,Poblacion!$E$8:$I$87,2,FALSE) -> 1007 | H50: =VLOOKUP($F50,Poblacion!$E$8:$I$87,4,FALSE) -> 559 | I50: =VLOOKUP($F50,Poblacion!$E$8:$I$87,5,FALSE) -> 448 | K50: NAVAN | L50: 956 | M50: P.S. NAVAN | N50: =VLOOKUP(M50,Poblacion!$E$5:$I$88,2,FALSE) -> 956 | O50: =VLOOKUP(M50,Poblacion!$E$5:$I$88,4,FALSE) -> 475 | P50: =VLOOKUP(M50,Poblacion!$E$5:$I$88,5,FALSE) -> 481
D51: COCHAMARCA | E51: =SUM(G51:G53) -> 1794 | F51: P.S. COCHAMARCA | G51: =VLOOKUP($F51,Poblacion!$E$8:$I$87,2,FALSE) -> 763 | H51: =VLOOKUP($F51,Poblacion!$E$8:$I$87,4,FALSE) -> 405 | I51: =VLOOKUP($F51,Poblacion!$E$8:$I$87,5,FALSE) -> 358 | K51: CHECRAS | L51: 997 | M51: P.S. PUÑUN | N51: =VLOOKUP(M51,Poblacion!$E$5:$I$88,2,FALSE) -> 997 | O51: =VLOOKUP(M51,Poblacion!$E$5:$I$88,4,FALSE) -> 494 | P51: =VLOOKUP(M51,Poblacion!$E$5:$I$88,5,FALSE) -> 503
D52: COCHAMARCA | F52: P.S. COLCAPAMPA | G52: =VLOOKUP($F52,Poblacion!$E$8:$I$87,2,FALSE) -> 851 | H52: =VLOOKUP($F52,Poblacion!$E$8:$I$87,4,FALSE) -> 451 | I52: =VLOOKUP($F52,Poblacion!$E$8:$I$87,5,FALSE) -> 400 | K52: PACCHO | L52: =SUM(N52:N55) -> 1608 | M52: P.S. PACCHO | N52: =VLOOKUP(M52,Poblacion!$E$5:$I$88,2,FALSE) -> 659 | O52: =VLOOKUP(M52,Poblacion!$E$5:$I$88,4,FALSE) -> 337 | P52: =VLOOKUP(M52,Poblacion!$E$5:$I$88,5,FALSE) -> 322
D53: COCHAMARCA | F53: P.S. YARUCAYA | G53: =VLOOKUP($F53,Poblacion!$E$8:$I$87,2,FALSE) -> 180 | H53: =VLOOKUP($F53,Poblacion!$E$8:$I$87,4,FALSE) -> 95 | I53: =VLOOKUP($F53,Poblacion!$E$8:$I$87,5,FALSE) -> 85 | K53: PACCHO | M53: P.S. LACSANGA | N53: =VLOOKUP(M53,Poblacion!$E$5:$I$88,2,FALSE) -> 384 | O53: =VLOOKUP(M53,Poblacion!$E$5:$I$88,4,FALSE) -> 195 | P53: =VLOOKUP(M53,Poblacion!$E$5:$I$88,5,FALSE) -> 189
D54: IHUARI - ACOTAMA | E54: =G54 -> 1419 | F54: IHUARI - ACOTAMA | G54: =VLOOKUP($F54,Poblacion!$E$8:$I$87,2,FALSE) -> 1419 | H54: =VLOOKUP($F54,Poblacion!$E$8:$I$87,4,FALSE) -> 766 | I54: =VLOOKUP($F54,Poblacion!$E$8:$I$87,5,FALSE) -> 653 | K54: PACCHO | M54: P.S. AYARANGA | N54: =VLOOKUP(M54,Poblacion!$E$5:$I$88,2,FALSE) -> 263 | O54: =VLOOKUP(M54,Poblacion!$E$5:$I$88,4,FALSE) -> 134 | P54: =VLOOKUP(M54,Poblacion!$E$5:$I$88,5,FALSE) -> 129
D55: TOTAL MICRORED SAYAN | G55: =SUM(G40:G54) -> 31235 | H55: =SUM(H40:H54) -> 16132 | I55: 15103 | K55: PACCHO | M55: P.S. MUZGA | N55: =VLOOKUP(M55,Poblacion!$E$5:$I$88,2,FALSE) -> 302 | O55: =VLOOKUP(M55,Poblacion!$E$5:$I$88,4,FALSE) -> 153 | P55: =VLOOKUP(M55,Poblacion!$E$5:$I$88,5,FALSE) -> 149
D56: =K33 -> Elaboración: Área de Estadística - RIS Huaura Oyón. | K56: S.LEONOR | L56: =SUM(N56:N58) -> 1171 | M56: P.S. CHIUCHIN | N56: =VLOOKUP(M56,Poblacion!$E$5:$I$88,2,FALSE) -> 728 | O56: =VLOOKUP(M56,Poblacion!$E$5:$I$88,4,FALSE) -> 384 | P56: =VLOOKUP(M56,Poblacion!$E$5:$I$88,5,FALSE) -> 344
K57: S.LEONOR | M57: P.S. PARQUIN | N57: =VLOOKUP(M57,Poblacion!$E$5:$I$88,2,FALSE) -> 252 | O57: =VLOOKUP(M57,Poblacion!$E$5:$I$88,4,FALSE) -> 133 | P57: =VLOOKUP(M57,Poblacion!$E$5:$I$88,5,FALSE) -> 119
K58: S.LEONOR | M58: P.S. JUCUL | N58: =VLOOKUP(M58,Poblacion!$E$5:$I$88,2,FALSE) -> 191 | O58: =VLOOKUP(M58,Poblacion!$E$5:$I$88,4,FALSE) -> 101 | P58: =VLOOKUP(M58,Poblacion!$E$5:$I$88,5,FALSE) -> 90
K59: TOTAL MICRORED CHURIN - OYON | N59: =SUM(N40:N58) -> 20293 | O59: =SUM(O40:O58) -> 10068 | P59: 10225
K60: =K33 -> Elaboración: Área de Estadística - RIS Huaura Oyón.
